Body_Code,Body_Name,Service,Posting Date,GL Code,GL Code Desc,Doc Number,Doc Net Amount,Supplier Name
http://statistics.data.gov.uk/id/local-authority/38,Oxfordshire County Council,Unregistered Placements,27/09/2022,4859,Medical and Counselling Fees,2201031822,"-149,826.03",NURSELINE COMMUNITY SERVICES
http://statistics.data.gov.uk/id/local-authority/38,Oxfordshire County Council,Unregistered Placements,27/09/2022,4859,Medical and Counselling Fees,2201031818,"-83,617.06",NURSELINE COMMUNITY SERVICES
http://statistics.data.gov.uk/id/local-authority/38,Oxfordshire County Council,Support at Home 65+ Physical Support,06/09/2022,5689,,3111245757,"-81,114.46",AVR (Oxon) Ltd
http://statistics.data.gov.uk/id/local-authority/38,Oxfordshire County Council,Unregistered Placements,27/09/2022,4859,Medical and Counselling Fees,2201031820,"-75,951.07",NURSELINE COMMUNITY SERVICES
http://statistics.data.gov.uk/id/local-authority/38,Oxfordshire County Council,COMM DRAWDOWN FUNDNG,12/09/2022,8102,Payments to main contractor,2201024278,"-46,023.40",Milestone Infrastructure Limited
http://statistics.data.gov.uk/id/local-authority/38,Oxfordshire County Council,FIRE CONTROL,21/09/2022,4940,Other Services,2201028308,"-37,682.00",ROYAL BERKSHIRE FIRE AUTHORITY
http://statistics.data.gov.uk/id/local-authority/38,Oxfordshire County Council,LD Continuing Care  Care Homes  Under 65,12/09/2022,5687,,3111248918,"-35,574.34",Dimensions (UK) Ltd
http://statistics.data.gov.uk/id/local-authority/38,Oxfordshire County Council,CHC Fast Track - Care Homes - Over 65,12/09/2022,5687,,3111251063,"-25,464.30",Rushcourt Nursing Home
http://statistics.data.gov.uk/id/local-authority/38,Oxfordshire County Council,High Cost INMSS Placements,29/09/2022,5537,Payments to Other Establishments,3111260343,"-25,347.31",Chilworth House School
http://statistics.data.gov.uk/id/local-authority/38,Oxfordshire County Council,COMM DRAWDOWN FUNDNG,05/09/2022,8511,Legal Fees & expenses,2201021564,"-21,543.07",Aspinall Verdi LTD
http://statistics.data.gov.uk/id/local-authority/38,Oxfordshire County Council,COMM DRAWDOWN FUNDNG,15/09/2022,8511,Legal Fees & expenses,2201026210,"-21,543.07",Aspinall Verdi LTD
http://statistics.data.gov.uk/id/local-authority/38,Oxfordshire County Council,Care Homes - Under 65 Leaning Disability,12/09/2022,5686,,3111250314,"-21,174.49",H F TRUST LTD
http://statistics.data.gov.uk/id/local-authority/38,Oxfordshire County Council,COMM DRAWDOWN FUNDNG,12/09/2022,8102,Payments to main contractor,2201024244,"-19,621.27",Milestone Infrastructure Limited
http://statistics.data.gov.uk/id/local-authority/38,Oxfordshire County Council,Continuing Care - Care Homes - 65+,12/09/2022,5687,,3111249859,"-18,943.60",Orders of St John
http://statistics.data.gov.uk/id/local-authority/38,Oxfordshire County Council,Support at Home 65+ Physical Support,13/09/2022,5699,,3111254174,"-16,998.80",CaringPlus Healthcare Services Ltd
http://statistics.data.gov.uk/id/local-authority/38,Oxfordshire County Council,Care Homes - Over 65 Physical Sypport,12/09/2022,5685,B*Cycle tracks,3111251140,"-16,431.47",Barchester Healthcare Homes Ltd
http://statistics.data.gov.uk/id/local-authority/38,Oxfordshire County Council,Unregistered Placements,27/09/2022,4859,Medical and Counselling Fees,2201031814,"-15,480.30",NURSELINE COMMUNITY SERVICES
http://statistics.data.gov.uk/id/local-authority/38,Oxfordshire County Council,CHC Fast Track - Care Homes - Over 65,12/09/2022,5687,,3111251222,"-15,314.28",Stowford House
http://statistics.data.gov.uk/id/local-authority/38,Oxfordshire County Council,CHERWELL,07/09/2022,1362,Creditors GR/IR -,2201022648,"-14,610.00",Cherwell District Council
http://statistics.data.gov.uk/id/local-authority/38,Oxfordshire County Council,Care Homes - Over 65 Physical Sypport,12/09/2022,5685,B*Cycle tracks,3111250674,"-14,570.96",Meadow View Nursing Home
http://statistics.data.gov.uk/id/local-authority/38,Oxfordshire County Council,Funded Nursing Care  - Over 65,12/09/2022,5692,,3111249369,"-13,898.69",Orders of St John
http://statistics.data.gov.uk/id/local-authority/38,Oxfordshire County Council,Continuing Care - Care Homes - 65+,12/09/2022,5687,,3111248331,"-13,393.72",Chacombe Park Care Home
http://statistics.data.gov.uk/id/local-authority/38,Oxfordshire County Council,Support at Home U65 Physical Support,12/09/2022,5685,B*Cycle tracks,3111250921,"-12,539.30",Oxford Beaumont
http://statistics.data.gov.uk/id/local-authority/38,Oxfordshire County Council,Support at Home U65 Learning Disability,12/09/2022,5688,,3111249115,"-11,689.84",Community Integrated Care
http://statistics.data.gov.uk/id/local-authority/38,Oxfordshire County Council,CHC Fast Track - Care Homes - Over 65,12/09/2022,5687,,3111248235,"-11,403.00",CARE UK COMMUNITY PARTNERSHIPS LIMI
http://statistics.data.gov.uk/id/local-authority/38,Oxfordshire County Council,Support at Home 65+ Physical Support,12/09/2022,5685,B*Cycle tracks,3111250216,"-10,080.11",Heathfield House Nursing Home
http://statistics.data.gov.uk/id/local-authority/38,Oxfordshire County Council,Care Homes - Over 65 Physical Sypport,12/09/2022,5687,,3111249134,"-9,938.77",Fewcott Healthcare Ltd
http://statistics.data.gov.uk/id/local-authority/38,Oxfordshire County Council,"Health, Safety & Compliance",07/09/2022,4498,Health and Safety Equipment,2201022760,"-9,785.00",Fred Dryden LTD
http://statistics.data.gov.uk/id/local-authority/38,Oxfordshire County Council,Funded Nursing Care  - Under 65,12/09/2022,5692,,3111251500,"-8,887.09",Four Seasons (Headington) Ltd
http://statistics.data.gov.uk/id/local-authority/38,Oxfordshire County Council,CHC Fast Track - Care Homes - Over 65,12/09/2022,5687,,3111248247,"-8,610.43",CARE UK COMMUNITY PARTNERSHIPS LIMI
http://statistics.data.gov.uk/id/local-authority/38,Oxfordshire County Council,High Cost INMSS Placements,29/09/2022,5537,Payments to Other Establishments,3111260315,"-8,570.30",Swalcliffe Park school
http://statistics.data.gov.uk/id/local-authority/38,Oxfordshire County Council,Support at Home 65+ Physical Support,13/09/2022,5689,,3111253172,"-8,168.58",Bridges Home Care Ltd
http://statistics.data.gov.uk/id/local-authority/38,Oxfordshire County Council,Support at Home 65+ Learning Disability,28/09/2022,5899,Social Care - Direct Payments,3111260105,"-7,706.60",Purple Conversation Com In Co (DP)
http://statistics.data.gov.uk/id/local-authority/38,Oxfordshire County Council,Support at Home U65 Learning Disability,12/09/2022,5688,,3111248995,"-7,552.47",The Camden Society
http://statistics.data.gov.uk/id/local-authority/38,Oxfordshire County Council,Care Homes - Over 65 Mental Health,12/09/2022,5687,,3111251467,"-7,248.07",Four Seasons (Headington) Ltd
http://statistics.data.gov.uk/id/local-authority/38,Oxfordshire County Council,Continuing Care - Care Homes - 65+,12/09/2022,5687,,3111251557,"-6,560.00",The Langston
http://statistics.data.gov.uk/id/local-authority/38,Oxfordshire County Council,COMM DRAWDOWN FUNDNG,12/09/2022,8102,Payments to main contractor,2201024247,"-6,222.81",Milestone Infrastructure Limited
http://statistics.data.gov.uk/id/local-authority/38,Oxfordshire County Council,Care Homes - Over 65 Physical Sypport,12/09/2022,5685,B*Cycle tracks,3111250211,"-6,107.68",Heathfield House Nursing Home
http://statistics.data.gov.uk/id/local-authority/38,Oxfordshire County Council,Funded Nursing Care  - Over 65,12/09/2022,5692,,3111250730,"-6,099.89",Merryfield Nursing Home
http://statistics.data.gov.uk/id/local-authority/38,Oxfordshire County Council,Care Homes - Over 65 Physical Sypport,12/09/2022,5685,B*Cycle tracks,3111248043,"-5,877.22",METHODIST HOMES
http://statistics.data.gov.uk/id/local-authority/38,Oxfordshire County Council,CHC Fast Track - Care Homes - Over 65,12/09/2022,5687,,3111249650,"-5,757.14",GCH (St Katherines) Ltd
http://statistics.data.gov.uk/id/local-authority/38,Oxfordshire County Council,Transport Monitoring,26/09/2022,4496,Equipment Maintenance Contracts,2201030491,"-5,568.00",Intelligent Data (Collection) Ltd
http://statistics.data.gov.uk/id/local-authority/38,Oxfordshire County Council,High Cost INMSS Placements,16/09/2022,5537,Payments to Other Establishments,2201026836,"-5,364.52",Orbis Education and Care Ltd
http://statistics.data.gov.uk/id/local-authority/38,Oxfordshire County Council,CHC Fast Track - Care Homes - Over 65,12/09/2022,5687,,3111251037,"-5,115.32",RICHMOND VILLAGE WITNEY
http://statistics.data.gov.uk/id/local-authority/38,Oxfordshire County Council,Support at Home 65+ Physical Support,01/09/2022,5696,,3111245024,"-5,098.24",Orders of St John Care Trust
http://statistics.data.gov.uk/id/local-authority/38,Oxfordshire County Council,Care Homes - Over 65 Physical Sypport,12/09/2022,5686,,3111248249,"-5,092.86",CARE UK COMMUNITY PARTNERSHIPS LIMI
http://statistics.data.gov.uk/id/local-authority/38,Oxfordshire County Council,Support at Home 65+ Physical Support,12/09/2022,5687,,3111249083,"-5,028.57",Fewcott Healthcare Ltd
http://statistics.data.gov.uk/id/local-authority/38,Oxfordshire County Council,Support at Home 65+ Physical Support,12/09/2022,5686,,3111248620,"-4,990.87",Orders of St John
http://statistics.data.gov.uk/id/local-authority/38,Oxfordshire County Council,Support at Home 65+ Physical Support,12/09/2022,5686,,3111250684,"-4,877.43",Orders of St John
http://statistics.data.gov.uk/id/local-authority/38,Oxfordshire County Council,Care Homes Under 65 Other Soc Isolation,12/09/2022,5686,,3111248197,"-4,790.86",Calcot Services For Children Ltd
http://statistics.data.gov.uk/id/local-authority/38,Oxfordshire County Council,CHC Fast Track - Care Homes - Over 65,12/09/2022,5687,,3111251230,"-4,764.29",Stowford House
http://statistics.data.gov.uk/id/local-authority/38,Oxfordshire County Council,COMM DRAWDOWN FUNDNG,12/09/2022,8102,Payments to main contractor,2201024241,"-4,646.80",Milestone Infrastructure Limited
http://statistics.data.gov.uk/id/local-authority/38,Oxfordshire County Council,COMM DRAWDOWN FUNDNG,12/09/2022,8004,Design Consultant,2201024242,"-4,646.80",Milestone Infrastructure Limited
http://statistics.data.gov.uk/id/local-authority/38,Oxfordshire County Council,Care Homes - Over 65 Physical Sypport,12/09/2022,5687,,3111250398,"-4,627.22",Huntercombe Hall Ltd
http://statistics.data.gov.uk/id/local-authority/38,Oxfordshire County Council,Mainstream Res,07/09/2022,5558,,3111246751,"-4,626.44",Pathways Care Group
http://statistics.data.gov.uk/id/local-authority/38,Oxfordshire County Council,Support at Home 65+ Learning Disability,12/09/2022,5690,,3111247503,"-4,600.80",HF TRUST Ltd
http://statistics.data.gov.uk/id/local-authority/38,Oxfordshire County Council,Care Homes - Under 65 Mental Health,12/09/2022,5686,,3111248941,"-4,584.46",Edenplace Ltd
http://statistics.data.gov.uk/id/local-authority/38,Oxfordshire County Council,Continuing Care - Care Homes - 65+,12/09/2022,5687,,3111248776,"-4,462.86",Coxwell Hall & Mews Nursing Home
http://statistics.data.gov.uk/id/local-authority/38,Oxfordshire County Council,Hospital Discharge and Reablement,13/09/2022,5699,,3111252088,"-4,459.87",Agincare UK Ltd
http://statistics.data.gov.uk/id/local-authority/38,Oxfordshire County Council,Care Homes - Over 65 Memory & Cognition,12/09/2022,5686,,3111249184,"-4,423.72",Orders of St John
http://statistics.data.gov.uk/id/local-authority/38,Oxfordshire County Council,Support at Home U65 Learning Disability,12/09/2022,5688,,3111249819,"-4,377.19",The Brandon Trust
http://statistics.data.gov.uk/id/local-authority/38,Oxfordshire County Council,Interim Funding  - Care Homes - Over 65,12/09/2022,5687,,3111248730,"-4,350.00",Coxwell Hall & Mews Nursing Home
http://statistics.data.gov.uk/id/local-authority/38,Oxfordshire County Council,RESIDENTIAL TREATMEN,14/09/2022,5686,,2201025952,"-4,262.50",Adferiad Recovery
http://statistics.data.gov.uk/id/local-authority/38,Oxfordshire County Council,CHC Fast Track - Care Homes - Over 65,12/09/2022,5687,,3111248346,"-4,242.86",Chacombe Park Care Home
http://statistics.data.gov.uk/id/local-authority/38,Oxfordshire County Council,Care Homes - Over 65 Physical Sypport,12/09/2022,5687,,3111249602,"-4,237.32",Orders of St John
http://statistics.data.gov.uk/id/local-authority/38,Oxfordshire County Council,IBC Partnership,26/09/2022,4940,Other Services,2201029645,"-4,225.00",H3 Finance
http://statistics.data.gov.uk/id/local-authority/38,Oxfordshire County Council,CHC Fast Track - Care Homes - Over 65,12/09/2022,5687,,3111249424,"-4,207.14",LAWTON GROUP LTD
http://statistics.data.gov.uk/id/local-authority/38,Oxfordshire County Council,Care Homes - Over 65 Physical Sypport,12/09/2022,5685,B*Cycle tracks,3111251125,"-4,156.21",Barchester Healthcare Homes Ltd
http://statistics.data.gov.uk/id/local-authority/38,Oxfordshire County Council,Continuing Care - Care Homes - 65+,12/09/2022,5687,,3111250754,"-4,109.14",Merryfield Nursing Home
http://statistics.data.gov.uk/id/local-authority/38,Oxfordshire County Council,CHC Fast Track - Care Homes - Over 65,12/09/2022,5687,,3111250823,"-3,942.86",Mill House Nursing Home
http://statistics.data.gov.uk/id/local-authority/38,Oxfordshire County Council,Support at Home 65+ Mental Health,12/09/2022,5686,,3111250877,"-3,942.86",Mon Choisy
http://statistics.data.gov.uk/id/local-authority/38,Oxfordshire County Council,Care Homes - Over 65 Physical Sypport,12/09/2022,5686,,3111249682,"-3,893.57",Orders of St John
http://statistics.data.gov.uk/id/local-authority/38,Oxfordshire County Council,Funded Nursing Care  - Over 65,12/09/2022,5692,,3111250773,"-3,855.07",Middletown Grange Care Home
http://statistics.data.gov.uk/id/local-authority/38,Oxfordshire County Council,Support at Home 65+ Physical Support,13/09/2022,5699,,3111254346,"-3,816.00",PLL Care Services
http://statistics.data.gov.uk/id/local-authority/38,Oxfordshire County Council,Hospital Discharge and Reablement,13/09/2022,5699,,3111252085,"-3,809.47",Agincare UK Ltd
http://statistics.data.gov.uk/id/local-authority/38,Oxfordshire County Council,Hospital Discharge and Reablement,13/09/2022,5699,,3111252086,"-3,778.56",Eleanor Nursing & Social Care Ltd
http://statistics.data.gov.uk/id/local-authority/38,Oxfordshire County Council,Funded Nursing Care  - Over 65,12/09/2022,5692,,3111249981,"-3,765.41",HAMBERLEY CARE 2 LIMITED
http://statistics.data.gov.uk/id/local-authority/38,Oxfordshire County Council,Health Acquired Brain Injury C Homes U65,12/09/2022,5687,,3111251190,"-3,679.20",ST ANDREWS HEALTHCARE
http://statistics.data.gov.uk/id/local-authority/38,Oxfordshire County Council,CHC Fast Track - Care Homes - Under 65,12/09/2022,5687,,3111251799,"-3,657.14",MARIA MALLABAND CARE GROUP
http://statistics.data.gov.uk/id/local-authority/38,Oxfordshire County Council,Bicester & Banbury Team,09/09/2022,2040,Agency Staff,2201024091,"-3,575.85",MATCHTECH GROUP PLC
http://statistics.data.gov.uk/id/local-authority/38,Oxfordshire County Council,Care Homes - Over 65 Memory & Cognition,12/09/2022,5686,,3111248269,"-3,428.57",CARE UK COMMUNITY PARTNERSHIPS LIMI
http://statistics.data.gov.uk/id/local-authority/38,Oxfordshire County Council,Funded Nursing Care  - Over 65,12/09/2022,5692,,3111250747,"-3,317.15",Merryfield Nursing Home
http://statistics.data.gov.uk/id/local-authority/38,Oxfordshire County Council,Support at Home 65+ Physical Support,01/09/2022,5696,,3111244918,"-3,316.34",Orders of St John Care Trust
http://statistics.data.gov.uk/id/local-authority/38,Oxfordshire County Council,Care Homes - Over 65 Physical Sypport,12/09/2022,5686,,3111249909,"-3,289.43",Orders of St John
http://statistics.data.gov.uk/id/local-authority/38,Oxfordshire County Council,Continuing Care - Care Homes - 65+,12/09/2022,5687,,3111249437,"-3,278.57",LAWTON GROUP LTD
http://statistics.data.gov.uk/id/local-authority/38,Oxfordshire County Council,Funded Nursing Care  - Over 65,12/09/2022,5692,,3111250767,"-3,197.61",Middletown Grange Care Home
http://statistics.data.gov.uk/id/local-authority/38,Oxfordshire County Council,Support at Home U65 Learning Disability,12/09/2022,5690,,3111247498,"-3,118.23",ADVANCE HOUSING & SUPPORT LTD
http://statistics.data.gov.uk/id/local-authority/38,Oxfordshire County Council,Care Homes - Over 65 Physical Sypport,12/09/2022,5686,,3111250469,"-3,062.57",OSJ  - Old Station House
http://statistics.data.gov.uk/id/local-authority/38,Oxfordshire County Council,Continuing Care - Care Homes - 65+,12/09/2022,5687,,3111251723,"-3,000.00",SANCTUARY CARE LTD
http://statistics.data.gov.uk/id/local-authority/38,Oxfordshire County Council,Care Homes - Over 65 Physical Sypport,12/09/2022,5685,B*Cycle tracks,3111251837,"-2,950.94",SANCTUARY CARE LTD
http://statistics.data.gov.uk/id/local-authority/38,Oxfordshire County Council,Funded Nursing Care  - Over 65,12/09/2022,5692,,3111247611,"-2,928.66",Abbey Crest Nursing Home
http://statistics.data.gov.uk/id/local-authority/38,Oxfordshire County Council,Continuing Care - Care Homes - Under 65,12/09/2022,5687,,3111250914,"-2,845.80",Orchard House (Harwell)
http://statistics.data.gov.uk/id/local-authority/38,Oxfordshire County Council,FOSTERING MAIN,06/09/2022,5573,,3111246238,"-2,725.21",Personal Redacted Data
http://statistics.data.gov.uk/id/local-authority/38,Oxfordshire County Council,Support at Home U65 Physical Support,12/09/2022,5686,,3111250538,"-2,722.29",Orders of St John
http://statistics.data.gov.uk/id/local-authority/38,Oxfordshire County Council,Support at Home U65 Learning Disability,12/09/2022,5688,,3111250312,"-2,707.79",Autism at Kingwood Limited
http://statistics.data.gov.uk/id/local-authority/38,Oxfordshire County Council,Care Homes - Over 65 Memory & Cognition,12/09/2022,5685,B*Cycle tracks,3111251124,"-2,602.00",Barchester Healthcare Homes Ltd
http://statistics.data.gov.uk/id/local-authority/38,Oxfordshire County Council,CHC Fast Track - Care Homes - Over 65,12/09/2022,5687,,3111248325,"-2,592.86",Chacombe Park Care Home
http://statistics.data.gov.uk/id/local-authority/38,Oxfordshire County Council,Funded Nursing Care  - Over 65,12/09/2022,5692,,3111248578,"-2,570.04",CHURCHFIELDS CARE HOME
http://statistics.data.gov.uk/id/local-authority/38,Oxfordshire County Council,Support at Home U65 Learning Disability,12/09/2022,5688,,3111248885,"-2,553.34",White Leaf Support Ltd
http://statistics.data.gov.uk/id/local-authority/38,Oxfordshire County Council,Support at Home 65+ Physical Support,13/09/2022,5693,,3111252149,"-2,527.11",Catherine Care Ltd
http://statistics.data.gov.uk/id/local-authority/38,Oxfordshire County Council,Support at Home 65+ Physical Support,12/09/2022,5686,,3111247782,"-2,514.29",Didcot Care Home Ltd
http://statistics.data.gov.uk/id/local-authority/38,Oxfordshire County Council,Care Homes - Over 65 Physical Sypport,12/09/2022,5686,,3111249758,"-2,495.68",Gracewell Healthcare 3 Ltd
http://statistics.data.gov.uk/id/local-authority/38,Oxfordshire County Council,Support at Home U65 Learning Disability,13/09/2022,5682,,3111252758,"-2,481.04",The Brandon Trust
http://statistics.data.gov.uk/id/local-authority/38,Oxfordshire County Council,CHC Fast Track - Care Homes - Over 65,12/09/2022,5687,,3111251087,"-2,385.71",SANCTUARY CARE PROPERTY (2) LTD
http://statistics.data.gov.uk/id/local-authority/38,Oxfordshire County Council,Support at Home 65+ Physical Support,13/09/2022,5699,,3111254207,"-2,381.40",Direct Link Care Ltd
http://statistics.data.gov.uk/id/local-authority/38,Oxfordshire County Council,Care Homes - Over 65 Physical Sypport,12/09/2022,5685,B*Cycle tracks,3111250083,"-2,331.04",Cedar Court Care Home
http://statistics.data.gov.uk/id/local-authority/38,Oxfordshire County Council,Continuing Care - Support at Home - U65,01/09/2022,5691,,3111245325,"-2,323.44",Better Healthcare Services
http://statistics.data.gov.uk/id/local-authority/38,Oxfordshire County Council,Continuing Care - Support at Home - U65,01/09/2022,5691,,3111245326,"-2,323.44",Better Healthcare Services
http://statistics.data.gov.uk/id/local-authority/38,Oxfordshire County Council,Contracted Services,07/09/2022,5161,Adoption Expenses - Fees and Expenses,2201022939,"-2,317.50",Louise Capstick
http://statistics.data.gov.uk/id/local-authority/38,Oxfordshire County Council,Care Homes - Over 65 Physical Sypport,12/09/2022,5687,,3111249676,"-2,278.57",GCH (St Katherines) Ltd
http://statistics.data.gov.uk/id/local-authority/38,Oxfordshire County Council,Care Homes - Under 65 Physical Sypport,12/09/2022,5686,,3111250870,"-2,200.00",Mon Choisy
http://statistics.data.gov.uk/id/local-authority/38,Oxfordshire County Council,Care Homes - Over 65 Mental Health,12/09/2022,5685,B*Cycle tracks,3111251425,"-2,195.15",The Grange Care Centre
http://statistics.data.gov.uk/id/local-authority/38,Oxfordshire County Council,Care Homes - Over 65 Memory & Cognition,12/09/2022,5686,,3111249043,"-2,155.14",Orders of St John
http://statistics.data.gov.uk/id/local-authority/38,Oxfordshire County Council,Funded Nursing Care  - Over 65,12/09/2022,5692,,3111248754,"-2,121.78",Coxwell Hall & Mews Nursing Home
http://statistics.data.gov.uk/id/local-authority/38,Oxfordshire County Council,TRADING STANDARDS,15/09/2022,3103,Other Training Courses and Qualification,2201026562,"-2,100.00",Aquila
http://statistics.data.gov.uk/id/local-authority/38,Oxfordshire County Council,Care Homes - Over 65 Physical Sypport,12/09/2022,5687,,3111251791,"-2,034.66",MARIA MALLABAND CARE GROUP
http://statistics.data.gov.uk/id/local-authority/38,Oxfordshire County Council,SEN Alternative Provision,05/09/2022,4861,Hired and Contracted Services,2201021910,"-2,000.00",NISAI SATELLITE SCHOOL
http://statistics.data.gov.uk/id/local-authority/38,Oxfordshire County Council,Continuing Care - Support at Home - U65,01/09/2022,5691,,3111245327,"-1,984.61",Better Healthcare Services
http://statistics.data.gov.uk/id/local-authority/38,Oxfordshire County Council,Funded Nursing Care  - Over 65,12/09/2022,5692,,3111247616,"-1,912.59",Abbey Crest Nursing Home
http://statistics.data.gov.uk/id/local-authority/38,Oxfordshire County Council,Hospital Discharge and Reablement,13/09/2022,5699,,3111252084,"-1,858.56",Care Outlook Ltd
http://statistics.data.gov.uk/id/local-authority/38,Oxfordshire County Council,LD Continuing Care - Sup at Home - U65,27/09/2022,5691,,3111257611,"-1,856.00",Same Ways Care Ltd
http://statistics.data.gov.uk/id/local-authority/38,Oxfordshire County Council,Care Homes - Over 65 Physical Sypport,12/09/2022,5686,,3111249937,"-1,848.86",Orders of St John
http://statistics.data.gov.uk/id/local-authority/38,Oxfordshire County Council,PLACEMENTS- RELEVANT,28/09/2022,5785,Client Lodgings and Accommodation,3111259952,"-1,800.50",Response Organisation
http://statistics.data.gov.uk/id/local-authority/38,Oxfordshire County Council,Care Homes - Over 65 Physical Sypport,12/09/2022,5685,B*Cycle tracks,3111248070,"-1,772.43",METHODIST HOMES
http://statistics.data.gov.uk/id/local-authority/38,Oxfordshire County Council,Youth Justice & Exploitation,06/09/2022,3103,Other Training Courses and Qualification,2201021986,"-1,750.00",Association of YOT Managers
http://statistics.data.gov.uk/id/local-authority/38,Oxfordshire County Council,FOSTERING MAIN,27/09/2022,5549,B*Fostering Allowance - Regulation 38,3111257845,"-1,702.71",Personal Redacted Data
http://statistics.data.gov.uk/id/local-authority/38,Oxfordshire County Council,Support at Home 65+ Physical Support,12/09/2022,5686,,3111250666,"-1,701.43",Orders of St John
http://statistics.data.gov.uk/id/local-authority/38,Oxfordshire County Council,Care Homes - Over 65 Memory & Cognition,12/09/2022,5686,,3111249863,"-1,643.43",Orders of St John
http://statistics.data.gov.uk/id/local-authority/38,Oxfordshire County Council,CHC Fast Track - Care Homes - Over 65,12/09/2022,5687,,3111250264,"-1,642.86",Heathfield House Nursing Home
http://statistics.data.gov.uk/id/local-authority/38,Oxfordshire County Council,Planned Maintenance,05/09/2022,3787,Premises Repairs,2201021642,"-1,579.75",SMS Environmental Limited
http://statistics.data.gov.uk/id/local-authority/38,Oxfordshire County Council,Independent Foster,26/09/2022,5559,,3111257419,"-1,579.65",NATIONAL FOSTERING AGENCY
http://statistics.data.gov.uk/id/local-authority/38,Oxfordshire County Council,Independent Foster,26/09/2022,5559,,3111257420,"-1,579.65",NATIONAL FOSTERING AGENCY
http://statistics.data.gov.uk/id/local-authority/38,Oxfordshire County Council,Unregistered Placements,09/09/2022,4940,Other Services,2201023862,"-1,560.00",Oxfordshire Accommodation Ltd
http://statistics.data.gov.uk/id/local-authority/38,Oxfordshire County Council,Support at Home 65+ Physical Support,12/09/2022,5685,B*Cycle tracks,3111251599,"-1,515.10",The Triangle Nursing Home
http://statistics.data.gov.uk/id/local-authority/38,Oxfordshire County Council,Continuing Care - Support at Home - U65,16/09/2022,5691,,3111255621,"-1,505.13",The Care Workshop Limited
http://statistics.data.gov.uk/id/local-authority/38,Oxfordshire County Council,Funded Nursing Care  - Over 65,12/09/2022,5692,,3111250596,"-1,494.21",Lincroft Meadow
http://statistics.data.gov.uk/id/local-authority/38,Oxfordshire County Council,Care Homes - Over 65 Physical Sypport,12/09/2022,5685,B*Cycle tracks,3111250347,"-1,464.32",Caring Homes Healthcare Group Ltd
http://statistics.data.gov.uk/id/local-authority/38,Oxfordshire County Council,Family Solutions Plus Staffing - North,20/09/2022,2060,Support Assistants - Basic Pay,3111255864,"-1,450.75",Liquid Personnel Ltd
http://statistics.data.gov.uk/id/local-authority/38,Oxfordshire County Council,Care Homes - Over 65 Physical Sypport,12/09/2022,5686,,3111249050,"-1,428.57",Ferendune Court (Anchor Trust)
http://statistics.data.gov.uk/id/local-authority/38,Oxfordshire County Council,Continuing Care - Support at Home - U65,16/09/2022,5691,,3111255626,"-1,394.83",The Care Workshop Limited
http://statistics.data.gov.uk/id/local-authority/38,Oxfordshire County Council,Care Homes - Over 65 Physical Sypport,12/09/2022,5687,,3111250717,"-1,371.43",Meadow View Nursing Home
http://statistics.data.gov.uk/id/local-authority/38,Oxfordshire County Council,Care Homes - Over 65 Physical Sypport,12/09/2022,5686,,3111250107,"-1,361.14",Orders of St John
http://statistics.data.gov.uk/id/local-authority/38,Oxfordshire County Council,Care Homes - Over 65 Memory & Cognition,12/09/2022,5685,B*Cycle tracks,3111251433,"-1,347.79",The Grange Care Centre
http://statistics.data.gov.uk/id/local-authority/38,Oxfordshire County Council,Funded Nursing Care  - Over 65,12/09/2022,5692,,3111247657,"-1,344.79",ACER HEALTHCARE LTD
http://statistics.data.gov.uk/id/local-authority/38,Oxfordshire County Council,Independent Foster,15/09/2022,5559,,3111255308,"-1,312.50",Foster Care Associates Limited
http://statistics.data.gov.uk/id/local-authority/38,Oxfordshire County Council,Support at Home 65+ Physical Support,12/09/2022,5685,B*Cycle tracks,3111248126,"-1,273.90",METHODIST HOMES
http://statistics.data.gov.uk/id/local-authority/38,Oxfordshire County Council,Independent Foster,15/09/2022,5559,,3111255309,"-1,270.50",Foster Care Associates Limited
http://statistics.data.gov.uk/id/local-authority/38,Oxfordshire County Council,COMMUNITY & ROAD SAFETY,22/09/2022,3103,Other Training Courses and Qualification,2201028787,"-1,260.00",Windrush Bike Project CIC
http://statistics.data.gov.uk/id/local-authority/38,Oxfordshire County Council,Support at Home 65+ Physical Support,12/09/2022,5686,,3111250874,"-1,257.14",Mon Choisy
http://statistics.data.gov.uk/id/local-authority/38,Oxfordshire County Council,Early Help - Abingdon,06/09/2022,5251,Legal Costs,2201021959,"-1,250.00",Boardman Hawkins and Osborne
http://statistics.data.gov.uk/id/local-authority/38,Oxfordshire County Council,Support at Home U65 Physical Support,13/09/2022,5693,,3111252148,"-1,245.79",Catherine Care Ltd
http://statistics.data.gov.uk/id/local-authority/38,Oxfordshire County Council,Care Homes - Over 65 Physical Sypport,12/09/2022,5687,,3111249333,"-1,210.66",Orders of St John
http://statistics.data.gov.uk/id/local-authority/38,Oxfordshire County Council,Funded Nursing Care  - Over 65,12/09/2022,5692,,3111247586,"-1,165.48",Abbey Crest Nursing Home
http://statistics.data.gov.uk/id/local-authority/38,Oxfordshire County Council,Funded Nursing Care  - Over 65,12/09/2022,5692,,3111247590,"-1,165.48",Abbey Crest Nursing Home
http://statistics.data.gov.uk/id/local-authority/38,Oxfordshire County Council,Care Homes - Under 65 Leaning Disability,12/09/2022,5686,,3111248511,"-1,164.04",Choice Ltd
http://statistics.data.gov.uk/id/local-authority/38,Oxfordshire County Council,ALTERNATIVES TO CARE,20/09/2022,2040,Agency Staff,2201027879,"-1,163.78",THORNBURY NURSING SERVICES
http://statistics.data.gov.uk/id/local-authority/38,Oxfordshire County Council,Care Homes - Over 65 Physical Sypport,12/09/2022,5686,,3111249850,"-1,134.29",Orders of St John
http://statistics.data.gov.uk/id/local-authority/38,Oxfordshire County Council,Support at Home 65+ Physical Support,12/09/2022,5685,B*Cycle tracks,3111249013,"-1,093.04",Orders of St John
http://statistics.data.gov.uk/id/local-authority/38,Oxfordshire County Council,Funded Nursing Care  - Over 65,12/09/2022,5692,,3111250974,"-1,045.95",Penhurst Gardens
http://statistics.data.gov.uk/id/local-authority/38,Oxfordshire County Council,Support at Home 65+ Physical Support,13/09/2022,5699,,3111254025,"-1,039.50",Agincare UK Ltd
http://statistics.data.gov.uk/id/local-authority/38,Oxfordshire County Council,CHC Fast Track - Care Homes - Over 65,12/09/2022,5687,,3111247641,"-1,000.00",ACER HEALTHCARE LTD
http://statistics.data.gov.uk/id/local-authority/38,Oxfordshire County Council,Family Solutions Plus Non-staff - Centra,09/09/2022,4940,Other Services,2201023779,-945,Muddy Feet Training
http://statistics.data.gov.uk/id/local-authority/38,Oxfordshire County Council,Care Homes - Over 65 Physical Sypport,12/09/2022,5686,,3111250732,-943.34,Orders of St John
http://statistics.data.gov.uk/id/local-authority/38,Oxfordshire County Council,SERVICE DELIVERY,14/09/2022,4685,Clothing and Uniforms,2201025956,-931.44,Oxford Safety Supplies
http://statistics.data.gov.uk/id/local-authority/38,Oxfordshire County Council,Oxfordshire Adoption Support Fund,15/09/2022,4861,Hired and Contracted Services,2201026295,-910,JR Child Psychologists
http://statistics.data.gov.uk/id/local-authority/38,Oxfordshire County Council,Support at Home 65+ Physical Support,12/09/2022,5686,,3111250526,-907.43,Orders of St John
http://statistics.data.gov.uk/id/local-authority/38,Oxfordshire County Council,Family Solutions Plus Non-staff - Centra,28/09/2022,4940,Other Services,2201032456,-906.1,Aylesbury Nursery Child First
http://statistics.data.gov.uk/id/local-authority/38,Oxfordshire County Council,Care Homes - Over 65 Memory & Cognition,12/09/2022,5687,,3111248675,-901.9,Orders of St John
http://statistics.data.gov.uk/id/local-authority/38,Oxfordshire County Council,Support at Home 65+ Memory & Cognition,12/09/2022,5686,,3111250825,-901,Orders of St John
http://statistics.data.gov.uk/id/local-authority/38,Oxfordshire County Council,Care Homes - Over 65 Memory & Cognition,12/09/2022,5685,B*Cycle tracks,3111256675,-896.53,Caring Homes Healthcare Group Ltd
http://statistics.data.gov.uk/id/local-authority/38,Oxfordshire County Council,Care Homes - Over 65 Memory & Cognition,12/09/2022,5685,B*Cycle tracks,3111256678,-896.53,Huntercombe Hall Ltd
http://statistics.data.gov.uk/id/local-authority/38,Oxfordshire County Council,Care Homes - Over 65 Physical Sypport,12/09/2022,5685,B*Cycle tracks,3111256687,-896.53,Tall Trees
http://statistics.data.gov.uk/id/local-authority/38,Oxfordshire County Council,Care Homes - Over 65 Memory & Cognition,12/09/2022,5685,B*Cycle tracks,3111256684,-896.53,The Langston
http://statistics.data.gov.uk/id/local-authority/38,Oxfordshire County Council,Funded Nursing Care  - Over 65,12/09/2022,5692,,3111249843,-883.38,Green Pastures Christian NH
http://statistics.data.gov.uk/id/local-authority/38,Oxfordshire County Council,COMMUNITY & ROAD SAFETY,26/09/2022,3103,Other Training Courses and Qualification,2201030526,-855,The Bike Academy (South) Ltd
http://statistics.data.gov.uk/id/local-authority/38,Oxfordshire County Council,Care Homes - Over 65 Memory & Cognition,12/09/2022,5685,B*Cycle tracks,3111248661,-854.36,Coxwell Hall & Mews Nursing Home
http://statistics.data.gov.uk/id/local-authority/38,Oxfordshire County Council,Hospital Discharge and Reablement,13/09/2022,5699,,3111252087,-836.16,All Care GB Ltd
http://statistics.data.gov.uk/id/local-authority/38,Oxfordshire County Council,COMMUNITY & ROAD SAFETY,08/09/2022,3103,Other Training Courses and Qualification,2201023260,-810,Windrush Bike Project CIC
http://statistics.data.gov.uk/id/local-authority/38,Oxfordshire County Council,Early Years SEN Funding,29/09/2022,5537,Payments to Other Establishments,3111260359,-808.5,Chacombe Pre-school
http://statistics.data.gov.uk/id/local-authority/38,Oxfordshire County Council,PRIM. STAT ASSESS.,23/09/2022,7003,"Courses, Classes, Workshops and Clubs",3111257319,-800,OCC Beckley CE PS
http://statistics.data.gov.uk/id/local-authority/38,Oxfordshire County Council,Funded Nursing Care  - Over 65,12/09/2022,5692,,3111248838,-776.99,CUMNOR HILL HOUSE
http://statistics.data.gov.uk/id/local-authority/38,Oxfordshire County Council,Unregistered Placements,09/09/2022,4940,Other Services,2201023858,-770,Oxfordshire Accommodation Ltd
http://statistics.data.gov.uk/id/local-authority/38,Oxfordshire County Council,COMMUNITY & ROAD SAFETY,29/09/2022,3103,Other Training Courses and Qualification,2201032516,-765,The Bike Academy (South) Ltd
http://statistics.data.gov.uk/id/local-authority/38,Oxfordshire County Council,Support at Home U65 Learning Disability,21/09/2022,5227,Other Transport Arrangements,3111257026,-760,Go Green Taxis
http://statistics.data.gov.uk/id/local-authority/38,Oxfordshire County Council,Support at Home 65+ Physical Support,29/09/2022,5696,,3111260262,-743.73,Orders of St John Care Trust
http://statistics.data.gov.uk/id/local-authority/38,Oxfordshire County Council,NURSERY ED FUND,14/09/2022,5537,Payments to Other Establishments,3111254602,-719.13,The Horton Day Nursery
http://statistics.data.gov.uk/id/local-authority/38,Oxfordshire County Council,Funded Nursing Care  - Over 65,12/09/2022,5692,,3111250197,-700.61,Heathfield House Nursing Home
http://statistics.data.gov.uk/id/local-authority/38,Oxfordshire County Council,LEGAL BUDGET,15/09/2022,5251,Legal Costs,2201026366,-662.5,K International PLC
http://statistics.data.gov.uk/id/local-authority/38,Oxfordshire County Council,Funded Nursing Care  - Over 65,12/09/2022,5692,,3111251475,-657.45,Four Seasons (Headington) Ltd
http://statistics.data.gov.uk/id/local-authority/38,Oxfordshire County Council,Care Homes - Over 65 Physical Sypport,12/09/2022,5687,,3111250476,-654.62,The Julie Richardson Nursing Home
http://statistics.data.gov.uk/id/local-authority/38,Oxfordshire County Council,ALTERNATIVES TO CARE,20/09/2022,2040,Agency Staff,2201027854,-650.28,THORNBURY NURSING SERVICES
http://statistics.data.gov.uk/id/local-authority/38,Oxfordshire County Council,Care Homes - Over 65 Physical Sypport,12/09/2022,5686,,3111250869,-642.23,Mon Choisy
http://statistics.data.gov.uk/id/local-authority/38,Oxfordshire County Council,LIBRARY COLLECTIONS,26/09/2022,4539,"Books, DVDs and CDs",2201031813,-621.99,Books Asia Ltd
http://statistics.data.gov.uk/id/local-authority/38,Oxfordshire County Council,SEN TRANSPORT,23/09/2022,4330,Transport to School Activities,3111257346,-600,Oxon Transport Services Ltd
http://statistics.data.gov.uk/id/local-authority/38,Oxfordshire County Council,Funded Nursing Care  - Over 65,12/09/2022,5692,,3111251285,-597.69,St. Lukes Oxford - Free Nursing
http://statistics.data.gov.uk/id/local-authority/38,Oxfordshire County Council,Funded Nursing Care  - Over 65,12/09/2022,5692,,3111251434,-597.69,The Grange Care Centre
http://statistics.data.gov.uk/id/local-authority/38,Oxfordshire County Council,COMMUNITY & ROAD SAFETY,29/09/2022,3103,Other Training Courses and Qualification,2201032506,-585,The Bike Academy (South) Ltd
http://statistics.data.gov.uk/id/local-authority/38,Oxfordshire County Council,DISABILITIES TEAM S,20/09/2022,5394,Other Expenses,9300057077,-584.52,OCC SS Vale of White Horse Bank
http://statistics.data.gov.uk/id/local-authority/38,Oxfordshire County Council,STI TESTING+TREATMEN,08/09/2022,4940,Other Services,3111247029,-555.22,George Eliot Hospital NHS Trust
http://statistics.data.gov.uk/id/local-authority/38,Oxfordshire County Council,STI TESTING+TREATMEN,08/09/2022,4940,Other Services,3111247037,-555.21,George Eliot Hospital NHS Trust
http://statistics.data.gov.uk/id/local-authority/38,Oxfordshire County Council,COMM DRAWDOWN FUNDNG,12/09/2022,8102,Payments to main contractor,2201024240,-554.81,Milestone Infrastructure Limited
http://statistics.data.gov.uk/id/local-authority/38,Oxfordshire County Council,Support at Home U65 Learning Disability,12/09/2022,5690,,3111248302,-542.56,Turnstyle
http://statistics.data.gov.uk/id/local-authority/38,Oxfordshire County Council,Support at Home 65+ Memory & Cognition,01/09/2022,5696,,3111244935,-542.02,Orders of St John Care Trust
http://statistics.data.gov.uk/id/local-authority/38,Oxfordshire County Council,Support at Home U65 Learning Disability,12/09/2022,5690,,3111248130,-540,MacIntyre Care (Womaston)
http://statistics.data.gov.uk/id/local-authority/38,Oxfordshire County Council,FAMILY TIME TEAM,21/09/2022,5394,Other Expenses,2201028151,-540,The Salvation Army
http://statistics.data.gov.uk/id/local-authority/38,Oxfordshire County Council,COMMUNITY & ROAD SAFETY,20/09/2022,3103,Other Training Courses and Qualification,2201027855,-540,Windrush Bike Project CIC
http://statistics.data.gov.uk/id/local-authority/38,Oxfordshire County Council,Funded Nursing Care  - Over 65,12/09/2022,5692,,3111251476,-537.92,Four Seasons (Headington) Ltd
http://statistics.data.gov.uk/id/local-authority/38,Oxfordshire County Council,Support at Home U65 Learning Disability,12/09/2022,5690,,3111248479,-537.69,Style Acre
http://statistics.data.gov.uk/id/local-authority/38,Oxfordshire County Council,Support at Home 65+ Physical Support,01/09/2022,5696,,3111244979,-531.05,Orders of St John Care Trust
http://statistics.data.gov.uk/id/local-authority/38,Oxfordshire County Council,Children in Care Non-staffing - North,13/09/2022,5365,Non-Staff Subsistence and Expenses,9300056986,-530.5,OCC SS Banbury Area Off Cash
http://statistics.data.gov.uk/id/local-authority/38,Oxfordshire County Council,Children in Care Council,21/09/2022,5380,"Author, Speaker and Lecturer Fees",2201028443,-528,The Cirdan Sailing Trust Ltd
http://statistics.data.gov.uk/id/local-authority/38,Oxfordshire County Council,FLEET MAINTENANCE,05/09/2022,4495,IT Software,2201021874,-522,C Track UK
http://statistics.data.gov.uk/id/local-authority/38,Oxfordshire County Council,COMM DRAWDOWN FUNDNG,12/09/2022,8102,Payments to main contractor,2201024246,-519.54,Milestone Infrastructure Limited
http://statistics.data.gov.uk/id/local-authority/38,Oxfordshire County Council,UASC 16&17,16/09/2022,5665,B*Fostering Project Care Fee,9300057072,-516.9,OCC SS Vale of White Horse Cash
http://statistics.data.gov.uk/id/local-authority/38,Oxfordshire County Council,Delegated Health Tasks  - Over 65,16/09/2022,5691,,3111255612,-511.63,Allied Health-Services Limited
http://statistics.data.gov.uk/id/local-authority/38,Oxfordshire County Council,Care Homes - Over 65 Physical Sypport,12/09/2022,5686,,3111251214,-502.71,Stowford House
http://statistics.data.gov.uk/id/local-authority/38,Oxfordshire County Council,LEGAL SERVICES,28/09/2022,5251,Legal Costs,2201031418,500,Alex Line
http://statistics.data.gov.uk/id/local-authority/38,Oxfordshire County Council,Delegated Health Tasks  - Over 65,26/09/2022,5691,,3111257492,500,Angel Care Group
http://statistics.data.gov.uk/id/local-authority/38,Oxfordshire County Council,LEAVING CARE CITY 2,01/09/2022,4540,"Educational Supplies, Stationery & Mater",3111245126,500,Personal Redacted Data
http://statistics.data.gov.uk/id/local-authority/38,Oxfordshire County Council,Family Solutions Plus Non-staff - North,15/09/2022,5227,Other Transport Arrangements,3111255359,500,BC CARS
http://statistics.data.gov.uk/id/local-authority/38,Oxfordshire County Council,SEN Alternative Provision,21/09/2022,4861,Hired and Contracted Services,2201028549,500,FLEET TUTORS
http://statistics.data.gov.uk/id/local-authority/38,Oxfordshire County Council,Wokingham Adoption Support Fund,12/09/2022,4861,Hired and Contracted Services,2201024483,500,Graham Kennedy
http://statistics.data.gov.uk/id/local-authority/38,Oxfordshire County Council,FOSTERING TEAM,05/09/2022,4861,Hired and Contracted Services,2201021519,500,Green Light People Solutions
http://statistics.data.gov.uk/id/local-authority/38,Oxfordshire County Council,FOSTERING TEAM,05/09/2022,4861,Hired and Contracted Services,2201021522,500,Green Light People Solutions
http://statistics.data.gov.uk/id/local-authority/38,Oxfordshire County Council,FOSTERING TEAM,05/09/2022,4861,Hired and Contracted Services,2201021523,500,Green Light People Solutions
http://statistics.data.gov.uk/id/local-authority/38,Oxfordshire County Council,West Berkshire Adoption Support Fund,14/09/2022,4861,Hired and Contracted Services,2201025970,500,Hands on Play Therapy
http://statistics.data.gov.uk/id/local-authority/38,Oxfordshire County Council,Consultation & Engagement,13/09/2022,5380,"Author, Speaker and Lecturer Fees",2201025399,500,Headline Media UK
http://statistics.data.gov.uk/id/local-authority/38,Oxfordshire County Council,RBWM Adoption Support Fund,06/09/2022,4861,Hired and Contracted Services,2201022032,500,Heads & Hearts Ltd
http://statistics.data.gov.uk/id/local-authority/38,Oxfordshire County Council,Bracknell Adoption Support Fund,06/09/2022,4861,Hired and Contracted Services,2201022038,500,Heads & Hearts Ltd
http://statistics.data.gov.uk/id/local-authority/38,Oxfordshire County Council,Oxfordshire Safeguarding Adults Board,06/09/2022,4835,Management Consultant Fees,2201021977,500,JCC Partnership
http://statistics.data.gov.uk/id/local-authority/38,Oxfordshire County Council,PRIM. STAT ASSESS.,15/09/2022,7003,"Courses, Classes, Workshops and Clubs",3111255720,500,Leafield School
http://statistics.data.gov.uk/id/local-authority/38,Oxfordshire County Council,PERSONNEL,02/09/2022,4940,Other Services,2201021368,500,Lee Hecht Harrison Penna Limited
http://statistics.data.gov.uk/id/local-authority/38,Oxfordshire County Council,PERSONNEL,12/09/2022,4940,Other Services,2201024439,500,Lee Hecht Harrison Penna Limited
http://statistics.data.gov.uk/id/local-authority/38,Oxfordshire County Council,PERSONNEL,28/09/2022,4940,Other Services,2201031478,500,Lee Hecht Harrison Penna Limited
http://statistics.data.gov.uk/id/local-authority/38,Oxfordshire County Council,Support at Home U65 Physical Support,21/09/2022,5227,Other Transport Arrangements,3111256800,500,LINK SHIRES LTD
http://statistics.data.gov.uk/id/local-authority/38,Oxfordshire County Council,LEGAL SERVICES,20/09/2022,5251,Legal Costs,2201027485,500,Miss Chloe Wilkins
http://statistics.data.gov.uk/id/local-authority/38,Oxfordshire County Council,PERSONNEL,02/09/2022,5251,Legal Costs,3111245505,500,OCC One Time Vendor
http://statistics.data.gov.uk/id/local-authority/38,Oxfordshire County Council,Voice of Customer,14/09/2022,5394,Other Expenses,3111254801,500,OCC One Time Vendor
http://statistics.data.gov.uk/id/local-authority/38,Oxfordshire County Council,LIABILITY,26/09/2022,3153,,3111257437,500,OCC One Time Vendor
http://statistics.data.gov.uk/id/local-authority/38,Oxfordshire County Council,HIGHWAYS GENERAL,27/09/2022,5055,Insurance Costs,3111257621,500,OCC One Time Vendor
http://statistics.data.gov.uk/id/local-authority/38,Oxfordshire County Council,HIGHWAYS GENERAL,27/09/2022,5055,Insurance Costs,3111257623,500,OCC One Time Vendor
http://statistics.data.gov.uk/id/local-authority/38,Oxfordshire County Council,L&D CORE PROGRAMME,27/09/2022,3105,Training related expenditure,3111259877,500,OCC One Time Vendor
http://statistics.data.gov.uk/id/local-authority/38,Oxfordshire County Council,LEGAL SERVICES,29/09/2022,5251,Legal Costs,3111260361,500,OCC One Time Vendor
http://statistics.data.gov.uk/id/local-authority/38,Oxfordshire County Council,PRIM. STAT ASSESS.,15/09/2022,7003,"Courses, Classes, Workshops and Clubs",3111255721,500,Orchard Meadow Primary School
http://statistics.data.gov.uk/id/local-authority/38,Oxfordshire County Council,Reading Adoption Support Fund,14/09/2022,4861,Hired and Contracted Services,2201025962,500,Partnership Projects
http://statistics.data.gov.uk/id/local-authority/38,Oxfordshire County Council,PRIM. STAT ASSESS.,15/09/2022,7003,"Courses, Classes, Workshops and Clubs",3111255729,500,River Learning Trust - Rose Hill Sc
http://statistics.data.gov.uk/id/local-authority/38,Oxfordshire County Council,FAM GRP CONFERENCES,27/09/2022,4940,Other Services,2201030908,500,Sharon Peart
http://statistics.data.gov.uk/id/local-authority/38,Oxfordshire County Council,COUNTY PRINT FINSHRS,23/09/2022,4940,Other Services,2201029471,500,Shelton and White Ltd
http://statistics.data.gov.uk/id/local-authority/38,Oxfordshire County Council,Councillors Priorities Fund,09/09/2022,4940,Other Services,3111247259,500,Taynton Parish Meeting
http://statistics.data.gov.uk/id/local-authority/38,Oxfordshire County Council,Councillors Priorities Fund,05/09/2022,4940,Other Services,3111245570,500,Weston on the Green Memorial Villag
http://statistics.data.gov.uk/id/local-authority/38,Oxfordshire County Council,SEN TRANSPORT,13/09/2022,4314,"Other Trans Contract Costs (CRB, Car Sea",3111254542,500.25,Oxon Transport Services Ltd
http://statistics.data.gov.uk/id/local-authority/38,Oxfordshire County Council,Family Solutions Plus Non-staff - Centra,08/09/2022,5365,Non-Staff Subsistence and Expenses,9300056944,500.38,OCC SS Banbury Area Off Cash
http://statistics.data.gov.uk/id/local-authority/38,Oxfordshire County Council,Support at Home U65 Physical Support,16/09/2022,5693,,3111255522,500.6,SAINT CATHERINE'S CARE LTD
http://statistics.data.gov.uk/id/local-authority/38,Oxfordshire County Council,Support at Home U65 Learning Disability,12/09/2022,5690,,3111247520,500.66,MacIntyre Care (Womaston)
http://statistics.data.gov.uk/id/local-authority/38,Oxfordshire County Council,SM DISABILITIES,27/09/2022,5554,Childrens' Social Care - Direct Payments,3111258541,500.74,Purple Conversation Com In Co (DP)
http://statistics.data.gov.uk/id/local-authority/38,Oxfordshire County Council,SM DISABILITIES,27/09/2022,5554,Childrens' Social Care - Direct Payments,3111258146,500.74,Personal Redacted Data
http://statistics.data.gov.uk/id/local-authority/38,Oxfordshire County Council,Oxford City Team,21/09/2022,5227,Other Transport Arrangements,3111256798,501,LINK SHIRES LTD
http://statistics.data.gov.uk/id/local-authority/38,Oxfordshire County Council,Children in Care Non-staffing - South,23/09/2022,5227,Other Transport Arrangements,9300057222,501.25,OCC SS Vale of White Horse Cash
http://statistics.data.gov.uk/id/local-authority/38,Oxfordshire County Council,Homes for Ukraine - Education,26/09/2022,5537,Payments to Other Establishments,3111259884,501.48,OCC Hanborough Manor C E Primary Sc
http://statistics.data.gov.uk/id/local-authority/38,Oxfordshire County Council,SEN Additional Funding,14/09/2022,5537,Payments to Other Establishments,3111255215,501.64,Tackely Church of England Primary S
http://statistics.data.gov.uk/id/local-authority/38,Oxfordshire County Council,Support at Home 65+ Physical Support,13/09/2022,5689,,3111253712,501.98,My Carer Ltd
http://statistics.data.gov.uk/id/local-authority/38,Oxfordshire County Council,Support at Home 65+ Physical Support,01/09/2022,5696,,3111244987,502.74,Orders of St John Care Trust
http://statistics.data.gov.uk/id/local-authority/38,Oxfordshire County Council,Support at Home 65+ Physical Support,29/09/2022,5696,,3111260273,502.74,Orders of St John Care Trust
http://statistics.data.gov.uk/id/local-authority/38,Oxfordshire County Council,VACANT PROPERTY,28/09/2022,4000,Council Tax,3500087813,503,West Oxfordshire District Council
http://statistics.data.gov.uk/id/local-authority/38,Oxfordshire County Council,Planned Maintenance,28/09/2022,3787,Premises Repairs,2201031523,503.93,R J Lift Services Ltd
http://statistics.data.gov.uk/id/local-authority/38,Oxfordshire County Council,Support at Home 65+ Physical Support,13/09/2022,5699,,3111253927,504,All Care GB Ltd
http://statistics.data.gov.uk/id/local-authority/38,Oxfordshire County Council,Support at Home 65+ Physical Support,13/09/2022,5699,,3111254106,504,CaringPlus Healthcare Services Ltd
http://statistics.data.gov.uk/id/local-authority/38,Oxfordshire County Council,LEGAL BUDGET,29/09/2022,5251,Legal Costs,2201032071,504,CARTER BROWN THE EXPERT SERVICE
http://statistics.data.gov.uk/id/local-authority/38,Oxfordshire County Council,Support at Home 65+ Physical Support,27/09/2022,5899,Social Care - Direct Payments,3111258715,504,Personal Redacted Data
http://statistics.data.gov.uk/id/local-authority/38,Oxfordshire County Council,Support at Home U65 Physical Support,14/09/2022,5693,,3111254718,504,HEALTHCARE ACCESS LTD
http://statistics.data.gov.uk/id/local-authority/38,Oxfordshire County Council,Support at Home U65 Physical Support,14/09/2022,5693,,3111254733,504,HEALTHCARE ACCESS LTD
http://statistics.data.gov.uk/id/local-authority/38,Oxfordshire County Council,Support at Home 65+ Memory & Cognition,13/09/2022,5699,,3111254333,504,PLL Care Services
http://statistics.data.gov.uk/id/local-authority/38,Oxfordshire County Council,Support at Home 65+ Physical Support,13/09/2022,5699,,3111254406,504,YOD Ltd
http://statistics.data.gov.uk/id/local-authority/38,Oxfordshire County Council,Unregistered Placements,21/09/2022,2040,Agency Staff,2201028384,504.1,NURSELINE COMMUNITY SERVICES
http://statistics.data.gov.uk/id/local-authority/38,Oxfordshire County Council,Support at Home 65+ Learning Disability,12/09/2022,5690,,3111247504,504.26,HF TRUST Ltd
http://statistics.data.gov.uk/id/local-authority/38,Oxfordshire County Council,Support at Home U65 HFA,27/09/2022,5899,Social Care - Direct Payments,3111258243,504.32,Connection Support (Oxford)
http://statistics.data.gov.uk/id/local-authority/38,Oxfordshire County Council,LEAVING CARE CITY 1,13/09/2022,4407,Equipment,9300056995,504.35,OCC SS Banbury Area Off Cash
http://statistics.data.gov.uk/id/local-authority/38,Oxfordshire County Council,SM DISABILITIES,27/09/2022,5554,Childrens' Social Care - Direct Payments,3111258242,504.55,Personal Redacted Data
http://statistics.data.gov.uk/id/local-authority/38,Oxfordshire County Council,SM DISABILITIES,27/09/2022,5554,Childrens' Social Care - Direct Payments,3111258246,504.55,Personal Redacted Data
http://statistics.data.gov.uk/id/local-authority/38,Oxfordshire County Council,Support at Home 65+ Mental Health,13/09/2022,5698,,3111253827,505.96,Oxford Private Care
http://statistics.data.gov.uk/id/local-authority/38,Oxfordshire County Council,Support at Home U65 Physical Support,13/09/2022,5689,,3111253660,506.42,My Carer Ltd
http://statistics.data.gov.uk/id/local-authority/38,Oxfordshire County Council,Planned Maintenance,05/09/2022,3787,Premises Repairs,2201021486,507,Thames Valley Temperature Control
http://statistics.data.gov.uk/id/local-authority/38,Oxfordshire County Council,Support at Home U65 MH OBC Contract,22/09/2022,5691,,3111257269,507.45,The Kingwood Trust
http://statistics.data.gov.uk/id/local-authority/38,Oxfordshire County Council,Support at Home U65 Learning Disability,27/09/2022,5899,Social Care - Direct Payments,3111259493,507.84,Purple Conversation Com In Co (DP)
http://statistics.data.gov.uk/id/local-authority/38,Oxfordshire County Council,Family Solutions Plus Non-staff - North,30/09/2022,5394,Other Expenses,3500087975,508,Personal Redacted Data
http://statistics.data.gov.uk/id/local-authority/38,Oxfordshire County Council,Early Years SEN Funding,09/09/2022,5537,Payments to Other Establishments,3111247104,508.2,Ladybird Pre-School Limited
http://statistics.data.gov.uk/id/local-authority/38,Oxfordshire County Council,Early Years SEN Funding,09/09/2022,5537,Payments to Other Establishments,3111247106,508.2,Ladybird Pre-School Limited
http://statistics.data.gov.uk/id/local-authority/38,Oxfordshire County Council,Delegated Health Tasks  - Over 65,26/09/2022,5691,,3111257484,508.48,Allied Health-Services Limited
http://statistics.data.gov.uk/id/local-authority/38,Oxfordshire County Council,Support at Home U65 Learning Disability,13/09/2022,5689,,3111253441,508.69,Greigcare Home Service
http://statistics.data.gov.uk/id/local-authority/38,Oxfordshire County Council,SM DISABILITIES,27/09/2022,5554,Childrens' Social Care - Direct Payments,3111258406,508.75,Purple Conversation Com In Co (DP)
http://statistics.data.gov.uk/id/local-authority/38,Oxfordshire County Council,Support at Home 65+ Physical Support,13/09/2022,5698,,3111253902,508.79,Oxfordshire Crossroads
http://statistics.data.gov.uk/id/local-authority/38,Oxfordshire County Council,Support at Home U65 HFA,27/09/2022,5899,Social Care - Direct Payments,3111259031,508.8,Personal Redacted Data
http://statistics.data.gov.uk/id/local-authority/38,Oxfordshire County Council,Support at Home 65+ Physical Support,13/09/2022,5689,,3111253997,508.9,Prestige Nursing Ltd
http://statistics.data.gov.uk/id/local-authority/38,Oxfordshire County Council,SEN TRANSPORT,05/09/2022,4314,"Other Trans Contract Costs (CRB, Car Sea",3111245556,509.82,Town Cars
http://statistics.data.gov.uk/id/local-authority/38,Oxfordshire County Council,ON ST PARK OXFD P&D,16/09/2022,4861,Hired and Contracted Services,2201027131,510,Flowbird Smart City
http://statistics.data.gov.uk/id/local-authority/38,Oxfordshire County Council,OTHER,15/09/2022,3942,Hire of Accommodation and Facilities,2201026434,510,West Oxfordshire District Council
http://statistics.data.gov.uk/id/local-authority/38,Oxfordshire County Council,SPECIAL GUARDIANSHIP,06/09/2022,5661,B*Carriageway pre surf. dressing patchin,3111246037,510.3,Personal Redacted Data
http://statistics.data.gov.uk/id/local-authority/38,Oxfordshire County Council,DISABILITIES TEAM-N,13/09/2022,5526,Payments to Private Contractors,2201025474,510.3,PB Moinville Care Limited
http://statistics.data.gov.uk/id/local-authority/38,Oxfordshire County Council,DISABILITIES TEAM-N,13/09/2022,5526,Payments to Private Contractors,2201025475,510.3,PB Moinville Care Limited
http://statistics.data.gov.uk/id/local-authority/38,Oxfordshire County Council,DISABILITIES TEAM-N,13/09/2022,5526,Payments to Private Contractors,2201025476,510.3,PB Moinville Care Limited
http://statistics.data.gov.uk/id/local-authority/38,Oxfordshire County Council,DISABILITIES TEAM-N,15/09/2022,5526,Payments to Private Contractors,2201026409,510.3,PB Moinville Care Limited
http://statistics.data.gov.uk/id/local-authority/38,Oxfordshire County Council,Support at Home U65 Learning Disability,12/09/2022,5690,,3111247479,511.07,ADVANCE HOUSING & SUPPORT LTD
http://statistics.data.gov.uk/id/local-authority/38,Oxfordshire County Council,Support at Home U65 Physical Support,12/09/2022,5690,,3111247497,511.07,ADVANCE HOUSING & SUPPORT LTD
http://statistics.data.gov.uk/id/local-authority/38,Oxfordshire County Council,Family Solutions Plus Non-staff - Centra,22/09/2022,4940,Other Services,2201028714,511.25,Multilingual Translation & Interpre
http://statistics.data.gov.uk/id/local-authority/38,Oxfordshire County Council,Support at Home 65+ Other /Soc Isolation,28/09/2022,5693,,3111260007,512,Personal Redacted Data
http://statistics.data.gov.uk/id/local-authority/38,Oxfordshire County Council,,05/09/2022,1531,Cash Allocation Control Account,3111246562,512,Personal Redacted Data
http://statistics.data.gov.uk/id/local-authority/38,Oxfordshire County Council,Children in Care Non-staffing - North,21/09/2022,5227,Other Transport Arrangements,3111256809,512,Local Cars Kidlington
http://statistics.data.gov.uk/id/local-authority/38,Oxfordshire County Council,Support at Home U65 Learning Disability,27/09/2022,5899,Social Care - Direct Payments,3111259252,512.16,Purple Conversation Com In Co (DP)
http://statistics.data.gov.uk/id/local-authority/38,Oxfordshire County Council,Support at Home U65 Physical Support,13/09/2022,5689,,3111253060,512.4,Bicester PA and Care LLP
http://statistics.data.gov.uk/id/local-authority/38,Oxfordshire County Council,Community Support Service Banbury,01/09/2022,2040,Agency Staff,2201020959,512.4,Completely Care Ltd
http://statistics.data.gov.uk/id/local-authority/38,Oxfordshire County Council,Community Support Service - Abingdon,06/09/2022,2040,Agency Staff,2201022190,512.4,Completely Care Ltd
http://statistics.data.gov.uk/id/local-authority/38,Oxfordshire County Council,LIBRARY COLLECTIONS,26/09/2022,4539,"Books, DVDs and CDs",2201030582,512.78,Books Asia Ltd
http://statistics.data.gov.uk/id/local-authority/38,Oxfordshire County Council,SEN TRANSPORT,08/09/2022,4314,"Other Trans Contract Costs (CRB, Car Sea",3111246875,513,BORJAN LTD
http://statistics.data.gov.uk/id/local-authority/38,Oxfordshire County Council,SM DISABILITIES,27/09/2022,5554,Childrens' Social Care - Direct Payments,3111258233,513.01,Personal Redacted Data
http://statistics.data.gov.uk/id/local-authority/38,Oxfordshire County Council,Support at Home 65+ Physical Support,13/09/2022,5696,,3111253618,513.57,All Care GB Ltd
http://statistics.data.gov.uk/id/local-authority/38,Oxfordshire County Council,Homes for Ukraine - Education,26/09/2022,5537,Payments to Other Establishments,3111259898,513.92,Gillotts School (Academy)
http://statistics.data.gov.uk/id/local-authority/38,Oxfordshire County Council,Homes for Ukraine - Education,26/09/2022,5537,Payments to Other Establishments,3111259900,513.92,Maiden Erlegh Trust
http://statistics.data.gov.uk/id/local-authority/38,Oxfordshire County Council,UASC 16&17,20/09/2022,5665,B*Fostering Project Care Fee,9300057080,514.1,OCC SS Oxford City Div 1 Cash
http://statistics.data.gov.uk/id/local-authority/38,Oxfordshire County Council,Support at Home U65 Learning Disability,27/09/2022,5899,Social Care - Direct Payments,3111258812,514.12,Personal Redacted Data
http://statistics.data.gov.uk/id/local-authority/38,Oxfordshire County Council,FOSTERING MAIN,27/09/2022,5227,Other Transport Arrangements,3111257724,514.41,Personal Redacted Data
http://statistics.data.gov.uk/id/local-authority/38,Oxfordshire County Council,Support at Home 65+ Physical Support,13/09/2022,5689,,3111253800,514.56,Pechiv Ltd
http://statistics.data.gov.uk/id/local-authority/38,Oxfordshire County Council,Support at Home U65 Learning Disability,27/09/2022,5899,Social Care - Direct Payments,3111259059,514.76,Personal Redacted Data
http://statistics.data.gov.uk/id/local-authority/38,Oxfordshire County Council,Support at Home U65 Learning Disability,27/09/2022,5899,Social Care - Direct Payments,3111259218,515.39,Purple Conversation Com In Co (DP)
http://statistics.data.gov.uk/id/local-authority/38,Oxfordshire County Council,Community Support Service Banbury,29/09/2022,4525,Furniture,2201031942,516,ESPO
http://statistics.data.gov.uk/id/local-authority/38,Oxfordshire County Council,Oxfordshire Adoption Support Fund,12/09/2022,4861,Hired and Contracted Services,2201024274,516,SWAAY
http://statistics.data.gov.uk/id/local-authority/38,Oxfordshire County Council,Support at Home U65 Learning Disability,30/09/2022,5697,,3111260704,516,Tommy Bee UK Limited
http://statistics.data.gov.uk/id/local-authority/38,Oxfordshire County Council,Support at Home U65 Other /Soc Isolation,27/09/2022,5899,Social Care - Direct Payments,3111259568,516.24,Purple Conversation Com In Co (DP)
http://statistics.data.gov.uk/id/local-authority/38,Oxfordshire County Council,Support at Home 65+ Physical Support,13/09/2022,5698,,3111253300,516.32,Day & Night Care Assistance
http://statistics.data.gov.uk/id/local-authority/38,Oxfordshire County Council,Support at Home 65+ Physical Support,13/09/2022,5689,,3111253550,516.6,Home Helpers Care Ltd
http://statistics.data.gov.uk/id/local-authority/38,Oxfordshire County Council,Support at Home 65+ Memory & Cognition,13/09/2022,5699,,3111254259,516.6,Mega Resources Ltd
http://statistics.data.gov.uk/id/local-authority/38,Oxfordshire County Council,COMM DRAWDOWN FUNDNG,14/09/2022,8510,Other expenses,2201025518,516.65,Network Rail
http://statistics.data.gov.uk/id/local-authority/38,Oxfordshire County Council,UASC 16&17,16/09/2022,5365,Non-Staff Subsistence and Expenses,9300057073,516.8,OCC SS Vale of White Horse Cash
http://statistics.data.gov.uk/id/local-authority/38,Oxfordshire County Council,UASC 16&17,16/09/2022,5665,B*Fostering Project Care Fee,9300057058,516.9,OCC SS Vale of White Horse Cash
http://statistics.data.gov.uk/id/local-authority/38,Oxfordshire County Council,Support at Home 65+ Physical Support,13/09/2022,5689,,3111253909,516.96,PLL Care Services
http://statistics.data.gov.uk/id/local-authority/38,Oxfordshire County Council,Support at Home 65+ Memory & Cognition,27/09/2022,5899,Social Care - Direct Payments,3111259045,517.04,Personal Redacted Data
http://statistics.data.gov.uk/id/local-authority/38,Oxfordshire County Council,Support at Home 65+ Physical Support,16/09/2022,5693,,3111255549,517.04,We-Care-Recruitment Ltd
http://statistics.data.gov.uk/id/local-authority/38,Oxfordshire County Council,Support at Home 65+ Memory & Cognition,13/09/2022,5689,,3111253204,517.22,Casa Care Ltd
http://statistics.data.gov.uk/id/local-authority/38,Oxfordshire County Council,Support at Home U65 Learning Disability,27/09/2022,5899,Social Care - Direct Payments,3111259073,517.56,Personal Redacted Data
http://statistics.data.gov.uk/id/local-authority/38,Oxfordshire County Council,Support at Home 65+ Physical Support,16/09/2022,5693,,3111255517,517.86,AVR (Oxon) Ltd
http://statistics.data.gov.uk/id/local-authority/38,Oxfordshire County Council,TRAINING MANAGEMENT,15/09/2022,3100,Educational and Vocational Training,2201026101,518,Premier Partnership
http://statistics.data.gov.uk/id/local-authority/38,Oxfordshire County Council,Support at Home 65+ Physical Support,13/09/2022,5699,,3111254236,518.7,Home Helpers Care Ltd
http://statistics.data.gov.uk/id/local-authority/38,Oxfordshire County Council,SM DISABILITIES,27/09/2022,5554,Childrens' Social Care - Direct Payments,3111258537,519.12,Purple Conversation Com In Co (DP)
http://statistics.data.gov.uk/id/local-authority/38,Oxfordshire County Council,Support at Home U65 Physical Support,01/09/2022,5696,,3111244961,519.24,Orders of St John Care Trust
http://statistics.data.gov.uk/id/local-authority/38,Oxfordshire County Council,Support at Home U65 Physical Support,01/09/2022,5696,,3111244963,519.24,Orders of St John Care Trust
http://statistics.data.gov.uk/id/local-authority/38,Oxfordshire County Council,Support at Home 65+ Learning Disability,01/09/2022,5696,,3111244969,519.24,Orders of St John Care Trust
http://statistics.data.gov.uk/id/local-authority/38,Oxfordshire County Council,Support at Home U65 Physical Support,29/09/2022,5696,,3111260248,519.24,Orders of St John Care Trust
http://statistics.data.gov.uk/id/local-authority/38,Oxfordshire County Council,Support at Home U65 Physical Support,29/09/2022,5696,,3111260250,519.24,Orders of St John Care Trust
http://statistics.data.gov.uk/id/local-authority/38,Oxfordshire County Council,Support at Home 65+ Learning Disability,29/09/2022,5696,,3111260255,519.24,Orders of St John Care Trust
http://statistics.data.gov.uk/id/local-authority/38,Oxfordshire County Council,Support at Home 65+ Physical Support,13/09/2022,5689,,3111253365,519.54,Golden Services Care Ltd
http://statistics.data.gov.uk/id/local-authority/38,Oxfordshire County Council,Support at Home 65+ Mental Health,27/09/2022,5899,Social Care - Direct Payments,3111258276,519.84,Personal Redacted Data
http://statistics.data.gov.uk/id/local-authority/38,Oxfordshire County Council,Support at Home U65 MH OBC Contract,27/09/2022,5899,Social Care - Direct Payments,3111259847,519.92,Purple Conversation Com In Co (DP)
http://statistics.data.gov.uk/id/local-authority/38,Oxfordshire County Council,Support at Home 65+ Physical Support,14/09/2022,5697,,3111254604,520,Headway Oxford
http://statistics.data.gov.uk/id/local-authority/38,Oxfordshire County Council,Support at Home 65+ Mental Health,07/09/2022,5693,,3111246655,520,Star Projections
http://statistics.data.gov.uk/id/local-authority/38,Oxfordshire County Council,OPERATIONS,06/09/2022,4719,Photocopying,2201021955,520.24,XMA Limited - Toner Orders Only
http://statistics.data.gov.uk/id/local-authority/38,Oxfordshire County Council,MAINSTREAM-SECONDARY,05/09/2022,4314,"Other Trans Contract Costs (CRB, Car Sea",3111245623,520.26,Heyfordian Travel Ltd
http://statistics.data.gov.uk/id/local-authority/38,Oxfordshire County Council,MAINSTREAM-SECONDARY,05/09/2022,4314,"Other Trans Contract Costs (CRB, Car Sea",3111245627,520.26,Heyfordian Travel Ltd
http://statistics.data.gov.uk/id/local-authority/38,Oxfordshire County Council,MAINSTREAM-SECONDARY,05/09/2022,4314,"Other Trans Contract Costs (CRB, Car Sea",3111245616,520.41,Barnes Coaches Ltd
http://statistics.data.gov.uk/id/local-authority/38,Oxfordshire County Council,Support at Home 65+ Learning Disability,12/09/2022,5690,,3111248098,520.46,The Ice Centre
http://statistics.data.gov.uk/id/local-authority/38,Oxfordshire County Council,Support at Home U65 HFA,27/09/2022,5899,Social Care - Direct Payments,3111259521,520.56,Purple Conversation Com In Co (DP)
http://statistics.data.gov.uk/id/local-authority/38,Oxfordshire County Council,Support at Home U65 HFA,27/09/2022,5899,Social Care - Direct Payments,3111259587,520.56,Purple Conversation Com In Co (DP)
http://statistics.data.gov.uk/id/local-authority/38,Oxfordshire County Council,Support at Home U65 MH OBC Contract,27/09/2022,5899,Social Care - Direct Payments,3111259670,520.56,Purple Conversation Com In Co (DP)
http://statistics.data.gov.uk/id/local-authority/38,Oxfordshire County Council,Support at Home 65+ Learning Disability,27/09/2022,5899,Social Care - Direct Payments,3111259760,520.56,Purple Conversation Com In Co (DP)
http://statistics.data.gov.uk/id/local-authority/38,Oxfordshire County Council,Support at Home U65 Physical Support,27/09/2022,5899,Social Care - Direct Payments,3111259808,520.56,Purple Conversation Com In Co (DP)
http://statistics.data.gov.uk/id/local-authority/38,Oxfordshire County Council,Support at Home 65+ Physical Support,27/09/2022,5899,Social Care - Direct Payments,3111259813,520.56,Purple Conversation Com In Co (DP)
http://statistics.data.gov.uk/id/local-authority/38,Oxfordshire County Council,Support at Home U65 Physical Support,01/09/2022,5696,,3111245022,521.37,Orders of St John Care Trust
http://statistics.data.gov.uk/id/local-authority/38,Oxfordshire County Council,Support at Home U65 Physical Support,29/09/2022,5696,,3111260308,521.37,Orders of St John Care Trust
http://statistics.data.gov.uk/id/local-authority/38,Oxfordshire County Council,SM DISABILITIES,27/09/2022,5554,Childrens' Social Care - Direct Payments,3111258527,521.92,Purple Conversation Com In Co (DP)
http://statistics.data.gov.uk/id/local-authority/38,Oxfordshire County Council,FLEET MAINTENANCE,08/09/2022,4495,IT Software,2201023209,522,C Track UK
http://statistics.data.gov.uk/id/local-authority/38,Oxfordshire County Council,STI TESTING+TREATMEN,08/09/2022,4940,Other Services,3111247012,522,George Eliot Hospital NHS Trust
http://statistics.data.gov.uk/id/local-authority/38,Oxfordshire County Council,Support at Home U65 Mental Health,01/09/2022,5696,,3111244999,522.22,Orders of St John Care Trust
http://statistics.data.gov.uk/id/local-authority/38,Oxfordshire County Council,Support at Home U65 Mental Health,29/09/2022,5696,,3111260285,522.22,Orders of St John Care Trust
http://statistics.data.gov.uk/id/local-authority/38,Oxfordshire County Council,Support at Home 65+ Physical Support,01/09/2022,5696,,3111244923,522.33,Orders of St John Care Trust
http://statistics.data.gov.uk/id/local-authority/38,Oxfordshire County Council,Support at Home 65+ Physical Support,29/09/2022,5696,,3111260211,522.33,Orders of St John Care Trust
http://statistics.data.gov.uk/id/local-authority/38,Oxfordshire County Council,Unregistered Placements,08/09/2022,5526,Payments to Private Contractors,2201023469,522.85,MEDGEN LTD
http://statistics.data.gov.uk/id/local-authority/38,Oxfordshire County Council,FOSTERING MAIN,06/09/2022,5549,B*Fostering Allowance - Regulation 38,3111246234,523,Personal Redacted Data
http://statistics.data.gov.uk/id/local-authority/38,Oxfordshire County Council,FOSTERING MAIN,13/09/2022,5549,B*Fostering Allowance - Regulation 38,3111252310,523,Personal Redacted Data
http://statistics.data.gov.uk/id/local-authority/38,Oxfordshire County Council,FOSTERING MAIN,20/09/2022,5549,B*Fostering Allowance - Regulation 38,3111256087,523,Personal Redacted Data
http://statistics.data.gov.uk/id/local-authority/38,Oxfordshire County Council,FOSTERING MAIN,27/09/2022,5549,B*Fostering Allowance - Regulation 38,3111257770,523,Personal Redacted Data
http://statistics.data.gov.uk/id/local-authority/38,Oxfordshire County Council,OPERATIONS,16/09/2022,4719,Photocopying,2201026796,523.3,XMA Limited - Toner Orders Only
http://statistics.data.gov.uk/id/local-authority/38,Oxfordshire County Council,Support at Home 65+ Physical Support,13/09/2022,5689,,3111253719,523.32,My Carer Ltd
http://statistics.data.gov.uk/id/local-authority/38,Oxfordshire County Council,Support at Home U65 Physical Support,13/09/2022,5696,,3111253628,523.64,All Care GB Ltd
http://statistics.data.gov.uk/id/local-authority/38,Oxfordshire County Council,40 THE MOORS,21/09/2022,4270,HTM / Other Vehicle - Hire Charges,2201028134,524,The Oxfordshire Taxi Co Ltd T/A
http://statistics.data.gov.uk/id/local-authority/38,Oxfordshire County Council,FOSTERING MAIN,27/09/2022,5227,Other Transport Arrangements,3111257820,524.4,Personal Redacted Data
http://statistics.data.gov.uk/id/local-authority/38,Oxfordshire County Council,SM DISABILITIES,27/09/2022,5554,Childrens' Social Care - Direct Payments,3111258429,524.56,Purple Conversation Com In Co (DP)
http://statistics.data.gov.uk/id/local-authority/38,Oxfordshire County Council,FOSTERING MAIN,13/09/2022,5227,Other Transport Arrangements,3111252241,524.68,Personal Redacted Data
http://statistics.data.gov.uk/id/local-authority/38,Oxfordshire County Council,Support at Home 65+ Physical Support,13/09/2022,5689,,3111253377,524.7,Goldsmith Personnel Ltd
http://statistics.data.gov.uk/id/local-authority/38,Oxfordshire County Council,FOSTERING MAIN,06/09/2022,5541,B*Foster Parents,3111246401,525,Personal Redacted Data
http://statistics.data.gov.uk/id/local-authority/38,Oxfordshire County Council,FOSTERING MAIN,13/09/2022,5541,B*Foster Parents,3111252481,525,Personal Redacted Data
http://statistics.data.gov.uk/id/local-authority/38,Oxfordshire County Council,FOSTERING MAIN,20/09/2022,5541,B*Foster Parents,3111256171,525,Personal Redacted Data
http://statistics.data.gov.uk/id/local-authority/38,Oxfordshire County Council,FOSTERING MAIN,27/09/2022,5541,B*Foster Parents,3111257863,525,Personal Redacted Data
http://statistics.data.gov.uk/id/local-authority/38,Oxfordshire County Council,Support at Home 65+ Physical Support,13/09/2022,5689,,3111253912,525.29,PLL Care Services
http://statistics.data.gov.uk/id/local-authority/38,Oxfordshire County Council,UASC 16&17,21/09/2022,5559,,3111256882,525.71,Connect Fostering Services Ltd
http://statistics.data.gov.uk/id/local-authority/38,Oxfordshire County Council,Support at Home U65 Autism /Abated,12/09/2022,5690,,3111247515,526.5,Autism at Kingwood Limited
http://statistics.data.gov.uk/id/local-authority/38,Oxfordshire County Council,Support at Home U65 Learning Disability,12/09/2022,5690,,3111248321,527.14,Turnstyle
http://statistics.data.gov.uk/id/local-authority/38,Oxfordshire County Council,LEAVING CARE CITY 1,22/09/2022,3942,Hire of Accommodation and Facilities,3111257236,528,Personal Redacted Data
http://statistics.data.gov.uk/id/local-authority/38,Oxfordshire County Council,LEGAL BUDGET,12/09/2022,5251,Legal Costs,2201024827,528,DNA WORLDWIDE GROUP
http://statistics.data.gov.uk/id/local-authority/38,Oxfordshire County Council,Children in Care Council,21/09/2022,5380,"Author, Speaker and Lecturer Fees",2201028152,528,The Cirdan Sailing Trust Ltd
http://statistics.data.gov.uk/id/local-authority/38,Oxfordshire County Council,Support at Home U65 Physical Support,13/09/2022,5696,,3111253407,528.68,Radis Community Care
http://statistics.data.gov.uk/id/local-authority/38,Oxfordshire County Council,Support at Home 65+ Physical Support,28/09/2022,5693,,3111260033,529,Oasis Private Care Ltd
http://statistics.data.gov.uk/id/local-authority/38,Oxfordshire County Council,Support at Home 65+ Physical Support,13/09/2022,5699,,3111254008,529.2,Agincare UK Ltd
http://statistics.data.gov.uk/id/local-authority/38,Oxfordshire County Council,Support at Home 65+ Memory & Cognition,13/09/2022,5699,,3111254019,529.2,Agincare UK Ltd
http://statistics.data.gov.uk/id/local-authority/38,Oxfordshire County Council,Support at Home 65+ Physical Support,13/09/2022,5699,,3111253936,529.2,All Care GB Ltd
http://statistics.data.gov.uk/id/local-authority/38,Oxfordshire County Council,Support at Home 65+ Physical Support,13/09/2022,5699,,3111253973,529.2,All Care GB Ltd
http://statistics.data.gov.uk/id/local-authority/38,Oxfordshire County Council,Support at Home U65 Physical Support,13/09/2022,5699,,3111253798,529.2,Calvary Care Ltd
http://statistics.data.gov.uk/id/local-authority/38,Oxfordshire County Council,Support at Home U65 Other /Soc Isolation,13/09/2022,5699,,3111253992,529.2,Care Hearted Ltd
http://statistics.data.gov.uk/id/local-authority/38,Oxfordshire County Council,Support at Home 65+ Physical Support,07/09/2022,5693,,3111246611,529.2,CARESTREAM HOME CARE
http://statistics.data.gov.uk/id/local-authority/38,Oxfordshire County Council,Support at Home 65+ Physical Support,13/09/2022,5699,,3111254112,529.2,CaringPlus Healthcare Services Ltd
http://statistics.data.gov.uk/id/local-authority/38,Oxfordshire County Council,Support at Home U65 Physical Support,13/09/2022,5699,,3111254133,529.2,CaringPlus Healthcare Services Ltd
http://statistics.data.gov.uk/id/local-authority/38,Oxfordshire County Council,Support at Home 65+ Physical Support,21/09/2022,5693,,3111256738,529.2,Direct Link Care Ltd
http://statistics.data.gov.uk/id/local-authority/38,Oxfordshire County Council,Support at Home 65+ Physical Support,14/09/2022,5693,,3111254715,529.2,HEALTHCARE ACCESS LTD
http://statistics.data.gov.uk/id/local-authority/38,Oxfordshire County Council,Support at Home 65+ Physical Support,07/09/2022,5693,,3111246633,529.2,JMC Care Solutions Limited
http://statistics.data.gov.uk/id/local-authority/38,Oxfordshire County Council,Support at Home 65+ Physical Support,09/09/2022,5693,,3111247184,529.2,My Carer Ltd
http://statistics.data.gov.uk/id/local-authority/38,Oxfordshire County Council,Support at Home 65+ Physical Support,14/09/2022,5693,,3111254748,529.2,Oxford Private Care
http://statistics.data.gov.uk/id/local-authority/38,Oxfordshire County Council,Support at Home 65+ Memory & Cognition,13/09/2022,5699,,3111254276,529.2,Pechiv Ltd
http://statistics.data.gov.uk/id/local-authority/38,Oxfordshire County Council,Support at Home 65+ Physical Support,21/09/2022,5693,,3111256768,529.2,Procare Healthcare Ltd
http://statistics.data.gov.uk/id/local-authority/38,Oxfordshire County Council,Support at Home 65+ Physical Support,16/09/2022,5693,,3111255524,529.2,Same Ways Care Ltd
http://statistics.data.gov.uk/id/local-authority/38,Oxfordshire County Council,Support at Home 65+ Physical Support,13/09/2022,5699,,3111254400,529.2,Xperience Recruitment Ltd
http://statistics.data.gov.uk/id/local-authority/38,Oxfordshire County Council,Support at Home 65+ Memory & Cognition,13/09/2022,5699,,3111254433,529.2,YOD Ltd
http://statistics.data.gov.uk/id/local-authority/38,Oxfordshire County Council,Support at Home 65+ Physical Support,14/09/2022,5693,,3111254610,529.6,A CARING HAND LTD
http://statistics.data.gov.uk/id/local-authority/38,Oxfordshire County Council,FOSTERING MAIN,27/09/2022,5549,B*Fostering Allowance - Regulation 38,3111257796,529.9,Personal Redacted Data
http://statistics.data.gov.uk/id/local-authority/38,Oxfordshire County Council,Support at Home U65 MH OBC Contract,29/09/2022,4111,Security Costs,2201031926,530,Surefire Services Ltd
http://statistics.data.gov.uk/id/local-authority/38,Oxfordshire County Council,Filming,20/09/2022,4625,"Newspapers, Periodicals and Publications",2201027860,530.1,Tmp (Uk) Ltd
http://statistics.data.gov.uk/id/local-authority/38,Oxfordshire County Council,Children in Care Non-staffing - North,13/09/2022,5365,Non-Staff Subsistence and Expenses,9300056984,530.5,OCC SS Banbury Area Off Cash
http://statistics.data.gov.uk/id/local-authority/38,Oxfordshire County Council,Unregistered Placements,13/09/2022,5365,Non-Staff Subsistence and Expenses,9300056987,530.5,OCC SS Banbury Area Off Cash
http://statistics.data.gov.uk/id/local-authority/38,Oxfordshire County Council,CORONER,26/09/2022,5202,Use of Mortuary Services,2201030382,531.25,Dr Atharina Julai
http://statistics.data.gov.uk/id/local-authority/38,Oxfordshire County Council,Support at Home U65 Learning Disability,12/09/2022,5690,,3111247483,531.51,ADVANCE HOUSING & SUPPORT LTD
http://statistics.data.gov.uk/id/local-authority/38,Oxfordshire County Council,Delegated Health Tasks  - Over 65,21/09/2022,5691,,3111256997,532,Prime Social Care Services Ltd
http://statistics.data.gov.uk/id/local-authority/38,Oxfordshire County Council,Support at Home U65 Learning Disability,13/09/2022,5689,,3111253346,532.14,Golden Services Care Ltd
http://statistics.data.gov.uk/id/local-authority/38,Oxfordshire County Council,Support at Home U65 Physical Support,27/09/2022,5899,Social Care - Direct Payments,3111259109,532.44,Personal Redacted Data
http://statistics.data.gov.uk/id/local-authority/38,Oxfordshire County Council,FOSTERING MAIN,06/09/2022,5549,B*Fostering Allowance - Regulation 38,3111246391,533,Personal Redacted Data
http://statistics.data.gov.uk/id/local-authority/38,Oxfordshire County Council,FOSTERING MAIN,13/09/2022,5549,B*Fostering Allowance - Regulation 38,3111252471,533,Personal Redacted Data
http://statistics.data.gov.uk/id/local-authority/38,Oxfordshire County Council,FOSTERING MAIN,20/09/2022,5549,B*Fostering Allowance - Regulation 38,3111256166,533,Personal Redacted Data
http://statistics.data.gov.uk/id/local-authority/38,Oxfordshire County Council,FOSTERING MAIN,27/09/2022,5549,B*Fostering Allowance - Regulation 38,3111257858,533,Personal Redacted Data
http://statistics.data.gov.uk/id/local-authority/38,Oxfordshire County Council,Support at Home 65+ Physical Support,13/09/2022,5696,,3111253607,533.71,All Care GB Ltd
http://statistics.data.gov.uk/id/local-authority/38,Oxfordshire County Council,Community Support Service Bicester,23/09/2022,2040,Agency Staff,2201029138,533.75,Completely Care Ltd
http://statistics.data.gov.uk/id/local-authority/38,Oxfordshire County Council,Family Solutions Plus Non-staff - Centra,06/09/2022,5394,Other Expenses,3500087135,534,Personal Redacted Data
http://statistics.data.gov.uk/id/local-authority/38,Oxfordshire County Council,Support at Home U65 Sensory Support,27/09/2022,5899,Social Care - Direct Payments,3111258858,534.24,Personal Redacted Data
http://statistics.data.gov.uk/id/local-authority/38,Oxfordshire County Council,LIBRARY COLLECTIONS,15/09/2022,4539,"Books, DVDs and CDs",3111255370,534.32,ASKEWS & HOLTS LIBRARY SERVICES LTD
http://statistics.data.gov.uk/id/local-authority/38,Oxfordshire County Council,Support at Home U65 Physical Support,27/09/2022,5899,Social Care - Direct Payments,3111259591,534.76,Purple Conversation Com In Co (DP)
http://statistics.data.gov.uk/id/local-authority/38,Oxfordshire County Council,Support at Home 65+ Physical Support,14/09/2022,5693,,3111254703,535.5,Enable Health Ltd
http://statistics.data.gov.uk/id/local-authority/38,Oxfordshire County Council,Support at Home 65+ Physical Support,14/09/2022,5693,,3111254772,535.5,Pioneering Care Bicester Limited
http://statistics.data.gov.uk/id/local-authority/38,Oxfordshire County Council,Family Solutions Plus Non-staff - Centra,27/09/2022,5227,Other Transport Arrangements,9300057262,535.65,OCC SS Oxford City Div 1 Cash
http://statistics.data.gov.uk/id/local-authority/38,Oxfordshire County Council,Support at Home U65 Learning Disability,27/09/2022,5899,Social Care - Direct Payments,3111258823,535.68,Personal Redacted Data
http://statistics.data.gov.uk/id/local-authority/38,Oxfordshire County Council,Support at Home U65 Mental Health,27/09/2022,5899,Social Care - Direct Payments,3111259628,535.8,Purple Conversation Com In Co (DP)
http://statistics.data.gov.uk/id/local-authority/38,Oxfordshire County Council,MAINSTREAM-SECONDARY,05/09/2022,4314,"Other Trans Contract Costs (CRB, Car Sea",3111245636,535.92,Heyfordian Travel Ltd
http://statistics.data.gov.uk/id/local-authority/38,Oxfordshire County Council,FOSTERING MAIN,06/09/2022,5541,B*Foster Parents,3111246218,536,Personal Redacted Data
http://statistics.data.gov.uk/id/local-authority/38,Oxfordshire County Council,FOSTERING MAIN,13/09/2022,5541,B*Foster Parents,3111252302,536,Personal Redacted Data
http://statistics.data.gov.uk/id/local-authority/38,Oxfordshire County Council,FOSTERING MAIN,20/09/2022,5541,B*Foster Parents,3111256079,536,Personal Redacted Data
http://statistics.data.gov.uk/id/local-authority/38,Oxfordshire County Council,FOSTERING MAIN,27/09/2022,5541,B*Foster Parents,3111257762,536,Personal Redacted Data
http://statistics.data.gov.uk/id/local-authority/38,Oxfordshire County Council,FOSTERING MAIN,06/09/2022,5541,B*Foster Parents,3111246228,536,Personal Redacted Data
http://statistics.data.gov.uk/id/local-authority/38,Oxfordshire County Council,FOSTERING MAIN,06/09/2022,5541,B*Foster Parents,3111246230,536,Personal Redacted Data
http://statistics.data.gov.uk/id/local-authority/38,Oxfordshire County Council,FOSTERING MAIN,13/09/2022,5541,B*Foster Parents,3111252307,536,Personal Redacted Data
http://statistics.data.gov.uk/id/local-authority/38,Oxfordshire County Council,FOSTERING MAIN,13/09/2022,5541,B*Foster Parents,3111252308,536,Personal Redacted Data
http://statistics.data.gov.uk/id/local-authority/38,Oxfordshire County Council,FOSTERING MAIN,20/09/2022,5541,B*Foster Parents,3111256084,536,Personal Redacted Data
http://statistics.data.gov.uk/id/local-authority/38,Oxfordshire County Council,FOSTERING MAIN,20/09/2022,5541,B*Foster Parents,3111256085,536,Personal Redacted Data
http://statistics.data.gov.uk/id/local-authority/38,Oxfordshire County Council,FOSTERING MAIN,27/09/2022,5541,B*Foster Parents,3111257767,536,Personal Redacted Data
http://statistics.data.gov.uk/id/local-authority/38,Oxfordshire County Council,FOSTERING MAIN,27/09/2022,5541,B*Foster Parents,3111257768,536,Personal Redacted Data
http://statistics.data.gov.uk/id/local-authority/38,Oxfordshire County Council,FOSTERING MAIN,06/09/2022,5545,B*Fostering Enhancements - Level 2,3111246163,536,Personal Redacted Data
http://statistics.data.gov.uk/id/local-authority/38,Oxfordshire County Council,FOSTERING MAIN,13/09/2022,5545,B*Fostering Enhancements - Level 2,3111252276,536,Personal Redacted Data
http://statistics.data.gov.uk/id/local-authority/38,Oxfordshire County Council,FOSTERING MAIN,20/09/2022,5545,B*Fostering Enhancements - Level 2,3111256055,536,Personal Redacted Data
http://statistics.data.gov.uk/id/local-authority/38,Oxfordshire County Council,FOSTERING MAIN,27/09/2022,5545,B*Fostering Enhancements - Level 2,3111257739,536,Personal Redacted Data
http://statistics.data.gov.uk/id/local-authority/38,Oxfordshire County Council,LANDLORD & TENANT,28/09/2022,4001,Uniform Business Rates,3500087758,536,Oxford City Council
http://statistics.data.gov.uk/id/local-authority/38,Oxfordshire County Council,Funded Nursing Care  - Over 65,12/09/2022,5692,,3111247858,537.92,Banbury Heights Nursing Home
http://statistics.data.gov.uk/id/local-authority/38,Oxfordshire County Council,Support at Home U65 Physical Support,01/09/2022,5696,,3111244928,538.71,Orders of St John Care Trust
http://statistics.data.gov.uk/id/local-authority/38,Oxfordshire County Council,Support at Home U65 Physical Support,29/09/2022,5696,,3111260216,538.71,Orders of St John Care Trust
http://statistics.data.gov.uk/id/local-authority/38,Oxfordshire County Council,Support at Home 65+ Physical Support,13/09/2022,5696,,3111253465,538.75,Radis Community Care
http://statistics.data.gov.uk/id/local-authority/38,Oxfordshire County Council,Support at Home U65 MH OBC Contract,27/09/2022,5899,Social Care - Direct Payments,3111259041,538.88,Personal Redacted Data
http://statistics.data.gov.uk/id/local-authority/38,Oxfordshire County Council,Support at Home U65 Learning Disability,20/09/2022,5227,Other Transport Arrangements,3111255765,539,OXO Hire Ltd
http://statistics.data.gov.uk/id/local-authority/38,Oxfordshire County Council,Support at Home 65+ Mental Health,27/09/2022,5899,Social Care - Direct Payments,3111259244,539.08,Purple Conversation Com In Co (DP)
http://statistics.data.gov.uk/id/local-authority/38,Oxfordshire County Council,ECH Central Costs,12/09/2022,5696,,3111248203,539.57,BPHA Limited
http://statistics.data.gov.uk/id/local-authority/38,Oxfordshire County Council,Support at Home U65 Learning Disability,12/09/2022,5690,,3111248190,539.66,Oxford Wholefoods
http://statistics.data.gov.uk/id/local-authority/38,Oxfordshire County Council,Swindon Adoption Support Fund,05/09/2022,4861,Hired and Contracted Services,2201021738,540,2PIP Theraputic Services
http://statistics.data.gov.uk/id/local-authority/38,Oxfordshire County Council,COMM DRAWDOWN FUNDNG,22/09/2022,8510,Other expenses,2201028690,540,Intelligent Data (Collection) Ltd
http://statistics.data.gov.uk/id/local-authority/38,Oxfordshire County Council,Support at Home U65 Learning Disability,21/09/2022,5697,,3111256758,540,Pennyhooks Farm Trust
http://statistics.data.gov.uk/id/local-authority/38,Oxfordshire County Council,FAM GRP CONFERENCES,14/09/2022,4940,Other Services,2201025790,540,Sharon Peart
http://statistics.data.gov.uk/id/local-authority/38,Oxfordshire County Council,FAMILY TIME TEAM,20/09/2022,5394,Other Expenses,2201027591,540,The Salvation Army
http://statistics.data.gov.uk/id/local-authority/38,Oxfordshire County Council,FAMILY TIME TEAM,21/09/2022,5394,Other Expenses,2201028157,540,The Salvation Army
http://statistics.data.gov.uk/id/local-authority/38,Oxfordshire County Council,Community Support Service - Abingdon,20/09/2022,5227,Other Transport Arrangements,3111255771,540,Unitaxi Ltd
http://statistics.data.gov.uk/id/local-authority/38,Oxfordshire County Council,COMMUNITY & ROAD SAFETY,16/09/2022,3103,Other Training Courses and Qualification,2201026841,540,Windrush Bike Project CIC
http://statistics.data.gov.uk/id/local-authority/38,Oxfordshire County Council,COMMUNITY & ROAD SAFETY,20/09/2022,3103,Other Training Courses and Qualification,2201027875,540,Windrush Bike Project CIC
http://statistics.data.gov.uk/id/local-authority/38,Oxfordshire County Council,Support at Home U65 Learning Disability,27/09/2022,5899,Social Care - Direct Payments,3111259496,540.12,Purple Conversation Com In Co (DP)
http://statistics.data.gov.uk/id/local-authority/38,Oxfordshire County Council,Support at Home 65+ Physical Support,01/09/2022,5696,,3111245021,540.85,Orders of St John Care Trust
http://statistics.data.gov.uk/id/local-authority/38,Oxfordshire County Council,Support at Home 65+ Physical Support,29/09/2022,5696,,3111260307,540.85,Orders of St John Care Trust
http://statistics.data.gov.uk/id/local-authority/38,Oxfordshire County Council,Support at Home U65 Learning Disability,27/09/2022,5899,Social Care - Direct Payments,3111258258,541.72,Connection Support (Oxford)
http://statistics.data.gov.uk/id/local-authority/38,Oxfordshire County Council,FLEET COSTS,07/09/2022,4270,HTM / Other Vehicle - Hire Charges,2201022536,541.88,Go Plant Fleet Services
http://statistics.data.gov.uk/id/local-authority/38,Oxfordshire County Council,Support at Home U65 Physical Support,27/09/2022,5899,Social Care - Direct Payments,3111259114,542,Personal Redacted Data
http://statistics.data.gov.uk/id/local-authority/38,Oxfordshire County Council,Support at Home U65 Learning Disability,27/09/2022,5899,Social Care - Direct Payments,3111258941,542.72,Personal Redacted Data
http://statistics.data.gov.uk/id/local-authority/38,Oxfordshire County Council,Support at Home U65 Learning Disability,12/09/2022,5688,,3111250329,543.18,Autism at Kingwood Limited
http://statistics.data.gov.uk/id/local-authority/38,Oxfordshire County Council,PROCUREMENT,20/09/2022,4685,Clothing and Uniforms,2201027520,544.44,BRISTOL UNIFORMS LTD
http://statistics.data.gov.uk/id/local-authority/38,Oxfordshire County Council,Support at Home 65+ Physical Support,01/09/2022,5696,,3111244984,545.33,Orders of St John Care Trust
http://statistics.data.gov.uk/id/local-authority/38,Oxfordshire County Council,Support at Home 65+ Physical Support,29/09/2022,5696,,3111260270,545.33,Orders of St John Care Trust
http://statistics.data.gov.uk/id/local-authority/38,Oxfordshire County Council,LIBRARY COLLECTIONS,01/09/2022,4539,"Books, DVDs and CDs",3111245030,545.51,ASKEWS & HOLTS LIBRARY SERVICES LTD
http://statistics.data.gov.uk/id/local-authority/38,Oxfordshire County Council,Community Support Service Bicester,02/09/2022,4232,Vehicle Fuel,2201021350,545.56,Allstar Business Solutions Ltd
http://statistics.data.gov.uk/id/local-authority/38,Oxfordshire County Council,Support at Home U65 Memory & Cognition,27/09/2022,5899,Social Care - Direct Payments,3111259777,545.56,Purple Conversation Com In Co (DP)
http://statistics.data.gov.uk/id/local-authority/38,Oxfordshire County Council,SHARED LIVES,12/09/2022,5555,Payments to Carers,3111247427,545.93,Personal Redacted Data
http://statistics.data.gov.uk/id/local-authority/38,Oxfordshire County Council,Support at Home 65+ Physical Support,27/09/2022,5899,Social Care - Direct Payments,3111259536,546,Purple Conversation Com In Co (DP)
http://statistics.data.gov.uk/id/local-authority/38,Oxfordshire County Council,SM DISABILITIES,27/09/2022,5554,Childrens' Social Care - Direct Payments,3111258084,546.14,Connection Support (Oxford)
http://statistics.data.gov.uk/id/local-authority/38,Oxfordshire County Council,SM DISABILITIES,27/09/2022,5554,Childrens' Social Care - Direct Payments,3111258086,546.14,Connection Support (Oxford)
http://statistics.data.gov.uk/id/local-authority/38,Oxfordshire County Council,SM DISABILITIES,27/09/2022,5554,Childrens' Social Care - Direct Payments,3111258089,546.14,Connection Support (Oxford)
http://statistics.data.gov.uk/id/local-authority/38,Oxfordshire County Council,Support at Home U65 Physical Support,13/09/2022,5698,,3111253139,546.36,Acquire Care Ltd
http://statistics.data.gov.uk/id/local-authority/38,Oxfordshire County Council,Support at Home U65 Sensory Support,27/09/2022,5899,Social Care - Direct Payments,3111258855,546.44,Personal Redacted Data
http://statistics.data.gov.uk/id/local-authority/38,Oxfordshire County Council,VOIDS/VACANCY COSTS,12/09/2022,3945,Rent,3111247954,546.51,Cherwell District Council
http://statistics.data.gov.uk/id/local-authority/38,Oxfordshire County Council,VOIDS/VACANCY COSTS,12/09/2022,3945,Rent,3111247956,546.51,Cherwell District Council
http://statistics.data.gov.uk/id/local-authority/38,Oxfordshire County Council,CONTRACEPTION,06/09/2022,4933,,3111246777,547,Clifton Hampden Surgery
http://statistics.data.gov.uk/id/local-authority/38,Oxfordshire County Council,Support at Home 65+ Physical Support,13/09/2022,5698,,3111253893,547.08,Oxfordshire Crossroads
http://statistics.data.gov.uk/id/local-authority/38,Oxfordshire County Council,SERVICE DELIVERY,12/09/2022,4685,Clothing and Uniforms,2201024485,547.2,Oxford Safety Supplies
http://statistics.data.gov.uk/id/local-authority/38,Oxfordshire County Council,Support at Home 65+ Physical Support,13/09/2022,5689,,3111253398,547.38,Goldsmith Personnel Ltd
http://statistics.data.gov.uk/id/local-authority/38,Oxfordshire County Council,Support at Home U65 Physical Support,27/09/2022,5899,Social Care - Direct Payments,3111259468,547.76,Purple Conversation Com In Co (DP)
http://statistics.data.gov.uk/id/local-authority/38,Oxfordshire County Council,Support at Home 65+ Physical Support,27/09/2022,5899,Social Care - Direct Payments,3111258770,547.8,Personal Redacted Data
http://statistics.data.gov.uk/id/local-authority/38,Oxfordshire County Council,NURSERY ED FUND,09/09/2022,5537,Payments to Other Establishments,3111247101,548.1,Personal Redacted Data
http://statistics.data.gov.uk/id/local-authority/38,Oxfordshire County Council,,27/09/2022,1531,Cash Allocation Control Account,3111260194,548.7,TRINITY PROTECTION SYSTEMS LTD
http://statistics.data.gov.uk/id/local-authority/38,Oxfordshire County Council,ELEC NPR ST LTG,15/09/2022,5526,Payments to Private Contractors,2201026414,548.76,VolkerHighways
http://statistics.data.gov.uk/id/local-authority/38,Oxfordshire County Council,Support at Home U65 Learning Disability,14/09/2022,5227,Other Transport Arrangements,3111255009,550,Abingdon Taxis FKN Autotaxis
http://statistics.data.gov.uk/id/local-authority/38,Oxfordshire County Council,LEGAL SERVICES,30/09/2022,5251,Legal Costs,2201032444,550,Adam Kayani
http://statistics.data.gov.uk/id/local-authority/38,Oxfordshire County Council,LEGAL SERVICES,14/09/2022,5251,Legal Costs,2201025644,550,Personal Redacted Data
http://statistics.data.gov.uk/id/local-authority/38,Oxfordshire County Council,LEGAL SERVICES,07/09/2022,5251,Legal Costs,2201022452,550,Fazeela Ishmael
http://statistics.data.gov.uk/id/local-authority/38,Oxfordshire County Council,LEGAL SERVICES,22/09/2022,5251,Legal Costs,2201028630,550,Fazeela Ishmael
http://statistics.data.gov.uk/id/local-authority/38,Oxfordshire County Council,COMM DRAWDOWN FUNDNG,26/09/2022,8510,Other expenses,2201029629,550,Intelligent Data (Collection) Ltd
http://statistics.data.gov.uk/id/local-authority/38,Oxfordshire County Council,LEGAL SERVICES,20/09/2022,5251,Legal Costs,2201027549,550,Julie Mackenzie
http://statistics.data.gov.uk/id/local-authority/38,Oxfordshire County Council,LEGAL SERVICES,22/09/2022,5251,Legal Costs,2201028626,550,Miss Justine Ramsden
http://statistics.data.gov.uk/id/local-authority/38,Oxfordshire County Council,LEGAL SERVICES,22/09/2022,5251,Legal Costs,3111257137,550,OCC One Time Vendor
http://statistics.data.gov.uk/id/local-authority/38,Oxfordshire County Council,L&D CORE PROGRAMME,26/09/2022,3103,Other Training Courses and Qualification,2201029684,550,Premier Partnership
http://statistics.data.gov.uk/id/local-authority/38,Oxfordshire County Council,L&D CORE PROGRAMME,30/09/2022,3103,Other Training Courses and Qualification,2201032532,550,Premier Partnership
http://statistics.data.gov.uk/id/local-authority/38,Oxfordshire County Council,FLEET OPERATIONS,08/09/2022,4210,Vehicles and Plant - Repairs and Main,2201023384,550.13,Cherwell District Council
http://statistics.data.gov.uk/id/local-authority/38,Oxfordshire County Council,UASC 16&17,16/09/2022,5665,B*Fostering Project Care Fee,9300057065,550.89,OCC SS Vale of White Horse Cash
http://statistics.data.gov.uk/id/local-authority/38,Oxfordshire County Council,POST18 UASC DCSF FND,16/09/2022,5665,B*Fostering Project Care Fee,9300057056,550.9,OCC SS Oxford City Div 1 Cash
http://statistics.data.gov.uk/id/local-authority/38,Oxfordshire County Council,Support at Home 65+ Learning Disability,13/09/2022,5689,,3111253455,550.94,Greigcare Home Service
http://statistics.data.gov.uk/id/local-authority/38,Oxfordshire County Council,Family Solutions Plus Non-staff - South,12/09/2022,5394,Other Expenses,9300056961,551.1,OCC SS Oxford City Div 1 Cash
http://statistics.data.gov.uk/id/local-authority/38,Oxfordshire County Council,Support at Home U65 Physical Support,27/09/2022,5899,Social Care - Direct Payments,3111259548,551.12,Purple Conversation Com In Co (DP)
http://statistics.data.gov.uk/id/local-authority/38,Oxfordshire County Council,ContrO ASC Payments Control Account,27/09/2022,5554,Childrens' Social Care - Direct Payments,3111258613,551.62,The Disability Resource Centre
http://statistics.data.gov.uk/id/local-authority/38,Oxfordshire County Council,Support at Home U65 MH OBC Contract,13/09/2022,5899,Social Care - Direct Payments,3111252995,551.95,Personal Redacted Data
http://statistics.data.gov.uk/id/local-authority/38,Oxfordshire County Council,Children in Care Non-staffing - South,16/09/2022,5227,Other Transport Arrangements,3111255427,552,OXFORD BLUE CARS
http://statistics.data.gov.uk/id/local-authority/38,Oxfordshire County Council,Support at Home U65 Physical Support,27/09/2022,5899,Social Care - Direct Payments,3111259699,552.76,Purple Conversation Com In Co (DP)
http://statistics.data.gov.uk/id/local-authority/38,Oxfordshire County Council,Children in Care Non-staffing - North,02/09/2022,5365,Non-Staff Subsistence and Expenses,9300056883,552.91,OCC SS Banbury Area Off Cash
http://statistics.data.gov.uk/id/local-authority/38,Oxfordshire County Council,LDD AFTER SCHOOL,29/09/2022,5227,Other Transport Arrangements,3111260559,553.47,Personal Redacted Data
http://statistics.data.gov.uk/id/local-authority/38,Oxfordshire County Council,UASC 16&17,20/09/2022,5665,B*Fostering Project Care Fee,9300057079,553.5,OCC SS Oxford City Div 1 Cash
http://statistics.data.gov.uk/id/local-authority/38,Oxfordshire County Council,Support at Home U65 Memory & Cognition,13/09/2022,5689,,3111253009,553.61,Alina Homecare
http://statistics.data.gov.uk/id/local-authority/38,Oxfordshire County Council,Support at Home U65 Learning Disability,12/09/2022,5688,,3111248836,553.63,ADVANCE HOUSING & SUPPORT LTD
http://statistics.data.gov.uk/id/local-authority/38,Oxfordshire County Council,Support at Home U65 Learning Disability,12/09/2022,5688,,3111248839,553.63,ADVANCE HOUSING & SUPPORT LTD
http://statistics.data.gov.uk/id/local-authority/38,Oxfordshire County Council,Support at Home U65 Learning Disability,12/09/2022,5688,,3111248843,553.63,ADVANCE HOUSING & SUPPORT LTD
http://statistics.data.gov.uk/id/local-authority/38,Oxfordshire County Council,Support at Home U65 Learning Disability,12/09/2022,5688,,3111248846,553.63,ADVANCE HOUSING & SUPPORT LTD
http://statistics.data.gov.uk/id/local-authority/38,Oxfordshire County Council,Support at Home 65+ Physical Support,13/09/2022,5696,,3111253684,553.85,All Care GB Ltd
http://statistics.data.gov.uk/id/local-authority/38,Oxfordshire County Council,MAINSTREAM-SECONDARY,13/09/2022,4322,"Season Tickets - Bus, Rail & Ferry",3111254595,554.25,Oxford Bus Company Ltd
http://statistics.data.gov.uk/id/local-authority/38,Oxfordshire County Council,Support at Home U65 HFA,12/09/2022,5688,,3111248747,554.36,The Laurels (Witney)
http://statistics.data.gov.uk/id/local-authority/38,Oxfordshire County Council,Support at Home 65+ Physical Support,13/09/2022,5699,,3111254222,554.4,Greigcare Home Service
http://statistics.data.gov.uk/id/local-authority/38,Oxfordshire County Council,Early Years SEN Funding,09/09/2022,5537,Payments to Other Establishments,3111247110,554.4,North Leigh Pre-School CIO
http://statistics.data.gov.uk/id/local-authority/38,Oxfordshire County Council,Early Years SEN Funding,30/09/2022,5537,Payments to Other Establishments,3111260631,554.4,The Warborough and Shillingford
http://statistics.data.gov.uk/id/local-authority/38,Oxfordshire County Council,Support at Home 65+ Physical Support,13/09/2022,5699,,3111254409,554.4,YOD Ltd
http://statistics.data.gov.uk/id/local-authority/38,Oxfordshire County Council,Support at Home 65+ Physical Support,13/09/2022,5699,,3111254411,554.4,YOD Ltd
http://statistics.data.gov.uk/id/local-authority/38,Oxfordshire County Council,Support at Home 65+ Learning Disability,27/09/2022,5899,Social Care - Direct Payments,3111259376,554.48,Purple Conversation Com In Co (DP)
http://statistics.data.gov.uk/id/local-authority/38,Oxfordshire County Council,Family Solutions Plus Non-staff - North,06/09/2022,4940,Other Services,2201022028,554.66,Complete Childcare Ltd
http://statistics.data.gov.uk/id/local-authority/38,Oxfordshire County Council,STI TESTING+TREATMEN,08/09/2022,4940,Other Services,3111247036,555.21,George Eliot Hospital NHS Trust
http://statistics.data.gov.uk/id/local-authority/38,Oxfordshire County Council,Support at Home U65 Learning Disability,27/09/2022,5899,Social Care - Direct Payments,3111258830,555.44,Personal Redacted Data
http://statistics.data.gov.uk/id/local-authority/38,Oxfordshire County Council,Support at Home U65 Mental Health,16/09/2022,5693,,3111255501,555.66,CaringPlus Healthcare Services Ltd
http://statistics.data.gov.uk/id/local-authority/38,Oxfordshire County Council,Support at Home 65+ Physical Support,16/09/2022,5693,,3111255508,555.66,CaringPlus Healthcare Services Ltd
http://statistics.data.gov.uk/id/local-authority/38,Oxfordshire County Council,Support at Home U65 Physical Support,09/09/2022,5693,,3111247132,555.8,A CARING HAND LTD
http://statistics.data.gov.uk/id/local-authority/38,Oxfordshire County Council,Support at Home 65+ Physical Support,09/09/2022,5693,,3111247136,555.8,A CARING HAND LTD
http://statistics.data.gov.uk/id/local-authority/38,Oxfordshire County Council,Support at Home 65+ Physical Support,16/09/2022,5693,,3111255507,555.8,CaringPlus Healthcare Services Ltd
http://statistics.data.gov.uk/id/local-authority/38,Oxfordshire County Council,Family Solutions Plus Non-staff - Centra,26/09/2022,4940,Other Services,2201029677,556,Greenstaff Medical
http://statistics.data.gov.uk/id/local-authority/38,Oxfordshire County Council,TRO TEAM,23/09/2022,4790,"Publicity, Promotions and Advertisement",2201029333,556.41,Tmp (Uk) Ltd
http://statistics.data.gov.uk/id/local-authority/38,Oxfordshire County Council,Support at Home 65+ Memory & Cognition,27/09/2022,5899,Social Care - Direct Payments,3111258629,556.52,Personal Redacted Data
http://statistics.data.gov.uk/id/local-authority/38,Oxfordshire County Council,Support at Home U65 Learning Disability,27/09/2022,5899,Social Care - Direct Payments,3111259458,557.84,Purple Conversation Com In Co (DP)
http://statistics.data.gov.uk/id/local-authority/38,Oxfordshire County Council,Support at Home U65 MH OBC Contract,13/09/2022,5689,,3111254071,558.04,Response Organisation
http://statistics.data.gov.uk/id/local-authority/38,Oxfordshire County Council,Support at Home 65+ Subsantance Abuse,13/09/2022,5689,,3111254100,558.04,Response Organisation
http://statistics.data.gov.uk/id/local-authority/38,Oxfordshire County Council,Funded Nursing Care  - Over 65,12/09/2022,5692,,3111250615,558.55,Lincroft Meadow
http://statistics.data.gov.uk/id/local-authority/38,Oxfordshire County Council,Support at Home 65+ Memory & Cognition,13/09/2022,5696,,3111253462,558.89,Radis Community Care
http://statistics.data.gov.uk/id/local-authority/38,Oxfordshire County Council,Support at Home 65+ Physical Support,13/09/2022,5696,,3111253481,558.89,Radis Community Care
http://statistics.data.gov.uk/id/local-authority/38,Oxfordshire County Council,FOSTERING MAIN,27/09/2022,5549,B*Fostering Allowance - Regulation 38,3111257893,558.9,Personal Redacted Data
http://statistics.data.gov.uk/id/local-authority/38,Oxfordshire County Council,SPECIAL GUARDIANSHIP,13/09/2022,5661,B*Carriageway pre surf. dressing patchin,3111252428,559.11,Personal Redacted Data
http://statistics.data.gov.uk/id/local-authority/38,Oxfordshire County Council,Support at Home U65 Mental Health,27/09/2022,5899,Social Care - Direct Payments,3111258797,559.12,Personal Redacted Data
http://statistics.data.gov.uk/id/local-authority/38,Oxfordshire County Council,Support at Home U65 MH OBC Contract,27/09/2022,5899,Social Care - Direct Payments,3111258340,559.12,Personal Redacted Data
http://statistics.data.gov.uk/id/local-authority/38,Oxfordshire County Council,Support at Home 65+ Physical Support,13/09/2022,5689,,3111253085,559.32,Care Outlook Ltd
http://statistics.data.gov.uk/id/local-authority/38,Oxfordshire County Council,FOSTERING MAIN,13/09/2022,5227,Other Transport Arrangements,3111252218,559.34,Personal Redacted Data
http://statistics.data.gov.uk/id/local-authority/38,Oxfordshire County Council,Support at Home 65+ Physical Support,16/09/2022,5693,,3111255518,559.44,AVR (Oxon) Ltd
http://statistics.data.gov.uk/id/local-authority/38,Oxfordshire County Council,TRO TEAM,23/09/2022,4790,"Publicity, Promotions and Advertisement",2201029331,559.98,Tmp (Uk) Ltd
http://statistics.data.gov.uk/id/local-authority/38,Oxfordshire County Council,Support at Home U65 Learning Disability,20/09/2022,5227,Other Transport Arrangements,3111255763,560,Her Ride Limited
http://statistics.data.gov.uk/id/local-authority/38,Oxfordshire County Council,Support at Home U65 Learning Disability,27/09/2022,5899,Social Care - Direct Payments,3111259178,560,Personal Redacted Data
http://statistics.data.gov.uk/id/local-authority/38,Oxfordshire County Council,Swindon Adoption Support Fund,26/09/2022,4861,Hired and Contracted Services,2201030286,560,Joanna Cowley
http://statistics.data.gov.uk/id/local-authority/38,Oxfordshire County Council,Support at Home U65 Learning Disability,27/09/2022,5899,Social Care - Direct Payments,3111258720,560,Personal Redacted Data
http://statistics.data.gov.uk/id/local-authority/38,Oxfordshire County Council,RBWM Adoption Support Fund,14/09/2022,4861,Hired and Contracted Services,2201025958,560,PACT (PARENTS & CHILDREN TOGETHER)
http://statistics.data.gov.uk/id/local-authority/38,Oxfordshire County Council,RBWM Adoption Support Fund,14/09/2022,4861,Hired and Contracted Services,2201025959,560,PACT (PARENTS & CHILDREN TOGETHER)
http://statistics.data.gov.uk/id/local-authority/38,Oxfordshire County Council,Swindon Adoption Support Fund,05/09/2022,4861,Hired and Contracted Services,2201021801,560,The Family Place
http://statistics.data.gov.uk/id/local-authority/38,Oxfordshire County Council,TRAINING MANAGEMENT,22/09/2022,3100,Educational and Vocational Training,2201028736,561,Ann's Munchies Ltd
http://statistics.data.gov.uk/id/local-authority/38,Oxfordshire County Council,LANDLORD & TENANT,28/09/2022,4001,Uniform Business Rates,3500087822,561,West Oxfordshire District Council
http://statistics.data.gov.uk/id/local-authority/38,Oxfordshire County Council,LEAVING CARE CITY 2,22/09/2022,5663,B*Birthday Allowance,9300057154,561.1,OCC SS Oxford City Div 1 Cash
http://statistics.data.gov.uk/id/local-authority/38,Oxfordshire County Council,Support at Home U65 Learning Disability,21/09/2022,5697,,3111256757,561.6,Pennyhooks Farm Trust
http://statistics.data.gov.uk/id/local-authority/38,Oxfordshire County Council,TRO TEAM,23/09/2022,4790,"Publicity, Promotions and Advertisement",2201029313,561.92,Tmp (Uk) Ltd
http://statistics.data.gov.uk/id/local-authority/38,Oxfordshire County Council,SM DISABILITIES,27/09/2022,5554,Childrens' Social Care - Direct Payments,3111258223,562.43,Personal Redacted Data
http://statistics.data.gov.uk/id/local-authority/38,Oxfordshire County Council,Support at Home U65 Physical Support,27/09/2022,5899,Social Care - Direct Payments,3111259318,562.96,Purple Conversation Com In Co (DP)
http://statistics.data.gov.uk/id/local-authority/38,Oxfordshire County Council,Support at Home U65 Learning Disability,13/09/2022,5682,,3111252820,563.42,The Brandon Trust
http://statistics.data.gov.uk/id/local-authority/38,Oxfordshire County Council,Support at Home 65+ Physical Support,13/09/2022,5689,,3111253165,563.54,Caremark (West Oxfordshire & Cherwe
http://statistics.data.gov.uk/id/local-authority/38,Oxfordshire County Council,Support at Home 65+ Physical Support,13/09/2022,5696,,3111253281,563.92,All Care GB Ltd
http://statistics.data.gov.uk/id/local-authority/38,Oxfordshire County Council,Support at Home 65+ Physical Support,13/09/2022,5696,,3111253337,563.92,All Care GB Ltd
http://statistics.data.gov.uk/id/local-authority/38,Oxfordshire County Council,Support at Home 65+ Memory & Cognition,13/09/2022,5696,,3111253673,563.92,All Care GB Ltd
http://statistics.data.gov.uk/id/local-authority/38,Oxfordshire County Council,CONTRACEPTION,06/09/2022,4933,,3111246805,564.36,Principal Medical Ltd
http://statistics.data.gov.uk/id/local-authority/38,Oxfordshire County Council,Support at Home 65+ Physical Support,14/09/2022,5689,,3111254807,564.4,AVR (Oxon) Ltd
http://statistics.data.gov.uk/id/local-authority/38,Oxfordshire County Council,LANDLORD & TENANT,02/09/2022,3951,Non System - Electricity,3111245504,564.4,EDF Energy Customers Ltd
http://statistics.data.gov.uk/id/local-authority/38,Oxfordshire County Council,Support at Home 65+ Memory & Cognition,13/09/2022,5698,,3111253408,564.73,Day & Night Care Assistance
http://statistics.data.gov.uk/id/local-authority/38,Oxfordshire County Council,Support at Home 65+ Physical Support,13/09/2022,5689,,3111253572,565.32,Home Helpers Care Ltd
http://statistics.data.gov.uk/id/local-authority/38,Oxfordshire County Council,Support at Home 65+ Physical Support,13/09/2022,5689,,3111253163,565.33,Caremark (West Oxfordshire & Cherwe
http://statistics.data.gov.uk/id/local-authority/38,Oxfordshire County Council,Community Support Service Bicester,15/09/2022,2040,Agency Staff,2201026510,565.78,Completely Care Ltd
http://statistics.data.gov.uk/id/local-authority/38,Oxfordshire County Council,CONTRACEPTION,06/09/2022,4933,,3111246763,566,Elm Tree Surgery
http://statistics.data.gov.uk/id/local-authority/38,Oxfordshire County Council,Support at Home 65+ Physical Support,13/09/2022,5689,,3111253624,566.34,Kare Plus Oxford
http://statistics.data.gov.uk/id/local-authority/38,Oxfordshire County Council,Support at Home U65 Learning Disability,27/09/2022,5899,Social Care - Direct Payments,3111259278,566.96,Purple Conversation Com In Co (DP)
http://statistics.data.gov.uk/id/local-authority/38,Oxfordshire County Council,Support at Home U65 Memory & Cognition,13/09/2022,5699,,3111254315,567,PLL Care Services
http://statistics.data.gov.uk/id/local-authority/38,Oxfordshire County Council,Support at Home 65+ Memory & Cognition,12/09/2022,5686,,3111248854,567.14,Orders of St John
http://statistics.data.gov.uk/id/local-authority/38,Oxfordshire County Council,Support at Home 65+ Memory & Cognition,12/09/2022,5686,,3111250112,567.14,Orders of St John
http://statistics.data.gov.uk/id/local-authority/38,Oxfordshire County Council,Support at Home 65+ Memory & Cognition,12/09/2022,5686,,3111250151,567.14,Orders of St John
http://statistics.data.gov.uk/id/local-authority/38,Oxfordshire County Council,Oxford City Team,27/09/2022,5091,Postage and Delivery,2201030911,567.24,Velocity Cycle Couriers Limited
http://statistics.data.gov.uk/id/local-authority/38,Oxfordshire County Council,Planned Maintenance,09/09/2022,3787,Premises Repairs,2201023711,567.5,Windrush Door & Window Services Ltd
http://statistics.data.gov.uk/id/local-authority/38,Oxfordshire County Council,TRANSPORT GENERAL,09/09/2022,4270,HTM / Other Vehicle - Hire Charges,2201023928,567.69,DAYS Fleet
http://statistics.data.gov.uk/id/local-authority/38,Oxfordshire County Council,TRANSPORT GENERAL,09/09/2022,4270,HTM / Other Vehicle - Hire Charges,2201023979,567.69,DAYS Fleet
http://statistics.data.gov.uk/id/local-authority/38,Oxfordshire County Council,TRANSPORT GENERAL,09/09/2022,4270,HTM / Other Vehicle - Hire Charges,2201023980,567.69,DAYS Fleet
http://statistics.data.gov.uk/id/local-authority/38,Oxfordshire County Council,ALTERNATIVES TO CARE,14/09/2022,4859,Medical and Counselling Fees,2201025999,567.72,THORNBURY NURSING SERVICES
http://statistics.data.gov.uk/id/local-authority/38,Oxfordshire County Council,FOSTERING MAIN,20/09/2022,5549,B*Fostering Allowance - Regulation 38,3111256022,567.9,Personal Redacted Data
http://statistics.data.gov.uk/id/local-authority/38,Oxfordshire County Council,OTHER,02/09/2022,4705,Printing,2201021200,567.95,ID Management Systems
http://statistics.data.gov.uk/id/local-authority/38,Oxfordshire County Council,Children in Care Non-staffing - South,20/09/2022,5227,Other Transport Arrangements,3111256671,568,D�Arrive Ltd
http://statistics.data.gov.uk/id/local-authority/38,Oxfordshire County Council,Support at Home U65 Physical Support,01/09/2022,5227,Other Transport Arrangements,3111244865,568,My Cabbie LTD t/a J and A Transport
http://statistics.data.gov.uk/id/local-authority/38,Oxfordshire County Council,CAP CHRGES-PRIM SCHS,23/09/2022,8102,Payments to main contractor,2201029104,568,Ridge
http://statistics.data.gov.uk/id/local-authority/38,Oxfordshire County Council,Support at Home U65 Physical Support,27/09/2022,5899,Social Care - Direct Payments,3111258866,568.16,Personal Redacted Data
http://statistics.data.gov.uk/id/local-authority/38,Oxfordshire County Council,Support at Home U65 Learning Disability,27/09/2022,5899,Social Care - Direct Payments,3111258920,568.16,Personal Redacted Data
http://statistics.data.gov.uk/id/local-authority/38,Oxfordshire County Council,Support at Home 65+ Physical Support,13/09/2022,5698,,3111253297,568.41,Day & Night Care Assistance
http://statistics.data.gov.uk/id/local-authority/38,Oxfordshire County Council,Support at Home 65+ Physical Support,13/09/2022,5698,,3111253479,568.87,Day & Night Care Assistance
http://statistics.data.gov.uk/id/local-authority/38,Oxfordshire County Council,MAINSTREAM-SECONDARY,05/09/2022,4314,"Other Trans Contract Costs (CRB, Car Sea",3111245614,569.25,Barnes Coaches Ltd
http://statistics.data.gov.uk/id/local-authority/38,Oxfordshire County Council,Delegated Health Tasks  - Over 65,26/09/2022,5691,,3111257530,569.34,Bluebird Care (Oxford South & West)
http://statistics.data.gov.uk/id/local-authority/38,Oxfordshire County Council,Support at Home U65 Other /Soc Isolation,27/09/2022,5899,Social Care - Direct Payments,3111258573,569.6,Personal Redacted Data
http://statistics.data.gov.uk/id/local-authority/38,Oxfordshire County Council,Family Solutions Plus Non-staff - South,20/09/2022,5227,Other Transport Arrangements,3111255755,570,Her Ride Limited
http://statistics.data.gov.uk/id/local-authority/38,Oxfordshire County Council,Support at Home 65+ Physical Support,13/09/2022,5689,,3111253548,570.36,Home Helpers Care Ltd
http://statistics.data.gov.uk/id/local-authority/38,Oxfordshire County Council,Support at Home 65+ Physical Support,07/09/2022,5693,,3111246622,570.52,Genuine Carers Ltd
http://statistics.data.gov.uk/id/local-authority/38,Oxfordshire County Council,Family Solutions Plus Non-staff - Centra,05/09/2022,5365,Non-Staff Subsistence and Expenses,9300056885,571.34,OCC SS Oxford City Div 1 Cash
http://statistics.data.gov.uk/id/local-authority/38,Oxfordshire County Council,Support at Home U65 Learning Disability,13/09/2022,5689,,3111253830,571.46,Pechiv Ltd
http://statistics.data.gov.uk/id/local-authority/38,Oxfordshire County Council,Support at Home U65 Learning Disability,12/09/2022,5690,,3111248084,571.8,Guideposts Trust
http://statistics.data.gov.uk/id/local-authority/38,Oxfordshire County Council,CONTRACEPTION,06/09/2022,4933,,3111246759,572,Watlington & Chalgrove Surgery
http://statistics.data.gov.uk/id/local-authority/38,Oxfordshire County Council,Support at Home U65 Physical Support,09/09/2022,5697,,3111247120,572.4,Headway Oxford
http://statistics.data.gov.uk/id/local-authority/38,Oxfordshire County Council,Support at Home U65 Learning Disability,12/09/2022,5690,,3111247551,572.4,The Camden Society
http://statistics.data.gov.uk/id/local-authority/38,Oxfordshire County Council,AGENCY RESID - DISAB,06/09/2022,5549,B*Fostering Allowance - Regulation 38,3111246554,573,Personal Redacted Data
http://statistics.data.gov.uk/id/local-authority/38,Oxfordshire County Council,AGENCY RESID - DISAB,13/09/2022,5549,B*Fostering Allowance - Regulation 38,3111252667,573,Personal Redacted Data
http://statistics.data.gov.uk/id/local-authority/38,Oxfordshire County Council,AGENCY RESID - DISAB,20/09/2022,5549,B*Fostering Allowance - Regulation 38,3111256257,573,Personal Redacted Data
http://statistics.data.gov.uk/id/local-authority/38,Oxfordshire County Council,AGENCY RESID - DISAB,27/09/2022,5549,B*Fostering Allowance - Regulation 38,3111257947,573,Personal Redacted Data
http://statistics.data.gov.uk/id/local-authority/38,Oxfordshire County Council,AGENCY RESID - DISAB,06/09/2022,5549,B*Fostering Allowance - Regulation 38,3111246328,573,Personal Redacted Data
http://statistics.data.gov.uk/id/local-authority/38,Oxfordshire County Council,AGENCY RESID - DISAB,13/09/2022,5549,B*Fostering Allowance - Regulation 38,3111252398,573,Personal Redacted Data
http://statistics.data.gov.uk/id/local-authority/38,Oxfordshire County Council,AGENCY RESID - DISAB,20/09/2022,5549,B*Fostering Allowance - Regulation 38,3111256133,573,Personal Redacted Data
http://statistics.data.gov.uk/id/local-authority/38,Oxfordshire County Council,AGENCY RESID - DISAB,27/09/2022,5549,B*Fostering Allowance - Regulation 38,3111257824,573,Personal Redacted Data
http://statistics.data.gov.uk/id/local-authority/38,Oxfordshire County Council,Support at Home 65+ Physical Support,13/09/2022,5699,,3111254052,573.3,Care Outlook Ltd
http://statistics.data.gov.uk/id/local-authority/38,Oxfordshire County Council,Support at Home 65+ Physical Support,28/09/2022,5693,,3111260023,573.3,Oasis Private Care Ltd
http://statistics.data.gov.uk/id/local-authority/38,Oxfordshire County Council,Support at Home 65+ Physical Support,30/09/2022,5693,,3111260681,573.3,Oasis Private Care Ltd
http://statistics.data.gov.uk/id/local-authority/38,Oxfordshire County Council,SEN Additional Funding,14/09/2022,5537,Payments to Other Establishments,3111255223,573.3,Wroxton CE Primary School
http://statistics.data.gov.uk/id/local-authority/38,Oxfordshire County Council,Support at Home U65 Mental Health,13/09/2022,5696,,3111253604,573.99,All Care GB Ltd
http://statistics.data.gov.uk/id/local-authority/38,Oxfordshire County Council,LANDLORD & TENANT,28/09/2022,4001,Uniform Business Rates,3500087746,574,Cherwell District Council
http://statistics.data.gov.uk/id/local-authority/38,Oxfordshire County Council,HN IN SEC SCHOOLS,20/09/2022,5537,Payments to Other Establishments,3111255891,574,FUTURES INSTITUTE BANBURY
http://statistics.data.gov.uk/id/local-authority/38,Oxfordshire County Council,LANDLORD & TENANT,28/09/2022,4001,Uniform Business Rates,3500087835,574,South Oxfordshire District Council
http://statistics.data.gov.uk/id/local-authority/38,Oxfordshire County Council,Delegated Health Tasks  - Over 65,01/09/2022,5691,,3111245315,574.08,Bluebird Care (Oxford South & West)
http://statistics.data.gov.uk/id/local-authority/38,Oxfordshire County Council,DISABILITIES TEAM S,20/09/2022,5394,Other Expenses,9300057078,574.52,OCC SS Vale of White Horse Bank
http://statistics.data.gov.uk/id/local-authority/38,Oxfordshire County Council,ALTERNATIVES TO CARE,16/09/2022,2040,Agency Staff,2201027085,574.57,THORNBURY NURSING SERVICES
http://statistics.data.gov.uk/id/local-authority/38,Oxfordshire County Council,Support at Home 65+ Physical Support,29/09/2022,5696,,3111260300,574.93,Orders of St John Care Trust
http://statistics.data.gov.uk/id/local-authority/38,Oxfordshire County Council,FOSTERING MAIN,06/09/2022,5545,B*Fostering Enhancements - Level 2,3111245970,575,Personal Redacted Data
http://statistics.data.gov.uk/id/local-authority/38,Oxfordshire County Council,FOSTERING MAIN,13/09/2022,5545,B*Fostering Enhancements - Level 2,3111252164,575,Personal Redacted Data
http://statistics.data.gov.uk/id/local-authority/38,Oxfordshire County Council,FOSTERING MAIN,20/09/2022,5545,B*Fostering Enhancements - Level 2,3111255960,575,Personal Redacted Data
http://statistics.data.gov.uk/id/local-authority/38,Oxfordshire County Council,FOSTERING MAIN,27/09/2022,5545,B*Fostering Enhancements - Level 2,3111257637,575,Personal Redacted Data
http://statistics.data.gov.uk/id/local-authority/38,Oxfordshire County Council,Support at Home U65 Physical Support,16/09/2022,5227,Other Transport Arrangements,3111255452,575,OXFORD BLUE CARS
http://statistics.data.gov.uk/id/local-authority/38,Oxfordshire County Council,Support at Home U65 Learning Disability,23/09/2022,5227,Other Transport Arrangements,3111257325,575,Oxon Transport Services Ltd
http://statistics.data.gov.uk/id/local-authority/38,Oxfordshire County Council,Support at Home U65 Learning Disability,27/09/2022,5899,Social Care - Direct Payments,3111259270,575.68,Purple Conversation Com In Co (DP)
http://statistics.data.gov.uk/id/local-authority/38,Oxfordshire County Council,Support at Home 65+ Physical Support,27/09/2022,5899,Social Care - Direct Payments,3111259416,575.68,Purple Conversation Com In Co (DP)
http://statistics.data.gov.uk/id/local-authority/38,Oxfordshire County Council,Support at Home U65 Learning Disability,27/09/2022,5899,Social Care - Direct Payments,3111259807,575.68,Purple Conversation Com In Co (DP)
http://statistics.data.gov.uk/id/local-authority/38,Oxfordshire County Council,Support at Home 65+ Memory & Cognition,27/09/2022,5899,Social Care - Direct Payments,3111258837,576,Personal Redacted Data
http://statistics.data.gov.uk/id/local-authority/38,Oxfordshire County Council,Support at Home U65 Physical Support,14/09/2022,5227,Other Transport Arrangements,3111254988,576,TOOTS TAXIS LTD
http://statistics.data.gov.uk/id/local-authority/38,Oxfordshire County Council,Support at Home 65+ Physical Support,13/09/2022,5689,,3111253207,576.59,Oxfordshire Crossroads
http://statistics.data.gov.uk/id/local-authority/38,Oxfordshire County Council,Health Acquired Brain Injury C Homes U65,05/09/2022,5691,,3111245683,577,Libertatem Healthcare Group
http://statistics.data.gov.uk/id/local-authority/38,Oxfordshire County Council,FOSTERING MAIN,06/09/2022,5541,B*Foster Parents,3111246258,577,Personal Redacted Data
http://statistics.data.gov.uk/id/local-authority/38,Oxfordshire County Council,FOSTERING MAIN,13/09/2022,5541,B*Foster Parents,3111252326,577,Personal Redacted Data
http://statistics.data.gov.uk/id/local-authority/38,Oxfordshire County Council,FOSTERING MAIN,20/09/2022,5541,B*Foster Parents,3111256099,577,Personal Redacted Data
http://statistics.data.gov.uk/id/local-authority/38,Oxfordshire County Council,FOSTERING MAIN,27/09/2022,5541,B*Foster Parents,3111257786,577,Personal Redacted Data
http://statistics.data.gov.uk/id/local-authority/38,Oxfordshire County Council,AIDS & ADPT TEAM,30/09/2022,4450,Disability Aids and Equipment,2201032365,577.5,Oxford University Hospitals NHS Tru
http://statistics.data.gov.uk/id/local-authority/38,Oxfordshire County Council,Children in Care Non-staffing - South,20/09/2022,5394,Other Expenses,3111256193,577.5,Personal Redacted Data
http://statistics.data.gov.uk/id/local-authority/38,Oxfordshire County Council,Community Support Service - Witney,06/09/2022,4232,Vehicle Fuel,2201022161,577.8,Allstar Business Solutions Ltd
http://statistics.data.gov.uk/id/local-authority/38,Oxfordshire County Council,Support at Home U65 Learning Disability,12/09/2022,5690,,3111248246,578.74,Turnstyle
http://statistics.data.gov.uk/id/local-authority/38,Oxfordshire County Council,Support at Home 65+ Mental Health,13/09/2022,5696,,3111253467,579.03,Radis Community Care
http://statistics.data.gov.uk/id/local-authority/38,Oxfordshire County Council,Support at Home 65+ Physical Support,13/09/2022,5696,,3111253473,579.03,Radis Community Care
http://statistics.data.gov.uk/id/local-authority/38,Oxfordshire County Council,Support at Home 65+ Mental Health,13/09/2022,5689,,3111253335,579.6,Golden Services Care Ltd
http://statistics.data.gov.uk/id/local-authority/38,Oxfordshire County Council,Delegated Health Tasks  - Over 65,16/09/2022,5691,,3111255627,579.71,Bluebird Care
http://statistics.data.gov.uk/id/local-authority/38,Oxfordshire County Council,ALTERNATIVES TO CARE,16/09/2022,2040,Agency Staff,2201027147,579.79,THORNBURY NURSING SERVICES
http://statistics.data.gov.uk/id/local-authority/38,Oxfordshire County Council,Support at Home U65 Learning Disability,13/09/2022,5682,,3111252834,579.87,The Brandon Trust
http://statistics.data.gov.uk/id/local-authority/38,Oxfordshire County Council,Family Solutions Plus Non-staff - Centra,14/09/2022,5227,Other Transport Arrangements,9300057006,580.15,OCC SS Oxford City Div 1 Cash
http://statistics.data.gov.uk/id/local-authority/38,Oxfordshire County Council,Support at Home 65+ Physical Support,28/09/2022,5693,,3111260063,580.16,XPERIENCE RECRUITMENT LIMITED
http://statistics.data.gov.uk/id/local-authority/38,Oxfordshire County Council,GYPSY & TRAVELLER SV,05/09/2022,3951,Non System - Electricity,2201021851,580.39,EDF Energy Customers Ltd
http://statistics.data.gov.uk/id/local-authority/38,Oxfordshire County Council,SM DISABILITIES,27/09/2022,5554,Childrens' Social Care - Direct Payments,3111258454,580.81,Purple Conversation Com In Co (DP)
http://statistics.data.gov.uk/id/local-authority/38,Oxfordshire County Council,ADOPTION ALLOWANCES,06/09/2022,5664,B*Holiday Allowance,3111246434,582.3,Personal Redacted Data
http://statistics.data.gov.uk/id/local-authority/38,Oxfordshire County Council,ADOPTION ALLOWANCES,13/09/2022,5664,B*Holiday Allowance,3111252936,582.3,Personal Redacted Data
http://statistics.data.gov.uk/id/local-authority/38,Oxfordshire County Council,ADOPTION ALLOWANCES,20/09/2022,5664,B*Holiday Allowance,3111256612,582.3,Personal Redacted Data
http://statistics.data.gov.uk/id/local-authority/38,Oxfordshire County Council,ADOPTION ALLOWANCES,27/09/2022,5664,B*Holiday Allowance,3111258556,582.3,Personal Redacted Data
http://statistics.data.gov.uk/id/local-authority/38,Oxfordshire County Council,COUNTY PRINT FINSHRS,20/09/2022,4531,Materials,2201027844,582.5,Quadient UK Limited
http://statistics.data.gov.uk/id/local-authority/38,Oxfordshire County Council,COUNTY PRINT FINSHRS,27/09/2022,4531,Materials,2201030798,582.5,Quadient UK Limited
http://statistics.data.gov.uk/id/local-authority/38,Oxfordshire County Council,,16/09/2022,1448,Blackfield Inc & Exp A/c,3111255471,582.65,OCC One Time Vendor
http://statistics.data.gov.uk/id/local-authority/38,Oxfordshire County Council,Police & Crime Scrutiny Panel,22/09/2022,5190,Subscriptions,3111257059,583.33,OCC One Time Vendor
http://statistics.data.gov.uk/id/local-authority/38,Oxfordshire County Council,Support at Home U65 Learning Disability,27/09/2022,5899,Social Care - Direct Payments,3111259774,583.48,Purple Conversation Com In Co (DP)
http://statistics.data.gov.uk/id/local-authority/38,Oxfordshire County Council,Support at Home U65 Learning Disability,12/09/2022,5690,,3111248139,583.84,MacIntyre Care (Womaston)
http://statistics.data.gov.uk/id/local-authority/38,Oxfordshire County Council,Support at Home U65 Learning Disability,12/09/2022,5690,,3111248158,583.84,MacIntyre Care (Womaston)
http://statistics.data.gov.uk/id/local-authority/38,Oxfordshire County Council,Support at Home 65+ Learning Disability,12/09/2022,5690,,3111248170,583.84,MacIntyre Care (Womaston)
http://statistics.data.gov.uk/id/local-authority/38,Oxfordshire County Council,Support at Home U65 Learning Disability,12/09/2022,5690,,3111248174,583.84,MacIntyre Care (Womaston)
http://statistics.data.gov.uk/id/local-authority/38,Oxfordshire County Council,Support at Home U65 Learning Disability,12/09/2022,5690,,3111247506,584.1,Autism at Kingwood Limited
http://statistics.data.gov.uk/id/local-authority/38,Oxfordshire County Council,Support at Home U65 Learning Disability,12/09/2022,5690,,3111247511,584.1,Autism at Kingwood Limited
http://statistics.data.gov.uk/id/local-authority/38,Oxfordshire County Council,Support at Home 65+ Mental Health,27/09/2022,5899,Social Care - Direct Payments,3111259381,584.16,Purple Conversation Com In Co (DP)
http://statistics.data.gov.uk/id/local-authority/38,Oxfordshire County Council,DISABILITIES TEAM S,16/09/2022,5394,Other Expenses,9300057074,584.52,OCC SS Vale of White Horse Bank
http://statistics.data.gov.uk/id/local-authority/38,Oxfordshire County Council,COMMUNITY & ROAD SAFETY,29/09/2022,3103,Other Training Courses and Qualification,2201031914,585,The Bike Academy (South) Ltd
http://statistics.data.gov.uk/id/local-authority/38,Oxfordshire County Council,COMMUNITY & ROAD SAFETY,30/09/2022,3103,Other Training Courses and Qualification,2201032512,585,The Bike Academy (South) Ltd
http://statistics.data.gov.uk/id/local-authority/38,Oxfordshire County Council,ON ST PARK OXFD SPA,28/09/2022,5091,Postage and Delivery,2201031695,585.37,Royal Mail Retail
http://statistics.data.gov.uk/id/local-authority/38,Oxfordshire County Council,LIBRARY COLLECTIONS,20/09/2022,4539,"Books, DVDs and CDs",3111255789,585.83,ASKEWS & HOLTS LIBRARY SERVICES LTD
http://statistics.data.gov.uk/id/local-authority/38,Oxfordshire County Council,GYPSY & TRAVELLER SV,05/09/2022,3951,Non System - Electricity,2201021854,586.19,EDF Energy Customers Ltd
http://statistics.data.gov.uk/id/local-authority/38,Oxfordshire County Council,Support at Home U65 Physical Support,13/09/2022,5689,,3111253247,586.25,Oxfordshire Crossroads
http://statistics.data.gov.uk/id/local-authority/38,Oxfordshire County Council,Support at Home 65+ Physical Support,13/09/2022,5698,,3111253315,587.78,Day & Night Care Assistance
http://statistics.data.gov.uk/id/local-authority/38,Oxfordshire County Council,FOSTERING MAIN,13/09/2022,5549,B*Fostering Allowance - Regulation 38,3111252412,587.9,Personal Redacted Data
http://statistics.data.gov.uk/id/local-authority/38,Oxfordshire County Council,FAM GRP CONFERENCES,29/09/2022,4940,Other Services,2201032062,588.4,Jessica Howards
http://statistics.data.gov.uk/id/local-authority/38,Oxfordshire County Council,Support at Home 65+ Physical Support,13/09/2022,5698,,3111253551,588.7,Day & Night Care Assistance
http://statistics.data.gov.uk/id/local-authority/38,Oxfordshire County Council,Support at Home U65 Learning Disability,13/09/2022,5682,,3111252738,589.26,The Brandon Trust
http://statistics.data.gov.uk/id/local-authority/38,Oxfordshire County Council,SM DISABILITIES,27/09/2022,5554,Childrens' Social Care - Direct Payments,3111258552,589.49,Purple Conversation Com In Co (DP)
http://statistics.data.gov.uk/id/local-authority/38,Oxfordshire County Council,Support at Home 65+ Physical Support,14/09/2022,5693,,3111254663,589.76,CARE COMPASSION AND CONVERSATIONS
http://statistics.data.gov.uk/id/local-authority/38,Oxfordshire County Council,RBWM Adoption Support Fund,06/09/2022,4861,Hired and Contracted Services,2201022418,590,Heads & Hearts Ltd
http://statistics.data.gov.uk/id/local-authority/38,Oxfordshire County Council,Support at Home 65+ Memory & Cognition,13/09/2022,5698,,3111253201,590.1,Bridges Home Care Ltd
http://statistics.data.gov.uk/id/local-authority/38,Oxfordshire County Council,Support at Home 65+ Physical Support,13/09/2022,5689,,3111253447,590.35,Greigcare Home Service
http://statistics.data.gov.uk/id/local-authority/38,Oxfordshire County Council,MAINSTREAM-SECONDARY,13/09/2022,4322,"Season Tickets - Bus, Rail & Ferry",3111254597,591,Oxford Bus Company Ltd
http://statistics.data.gov.uk/id/local-authority/38,Oxfordshire County Council,Support at Home U65 Learning Disability,27/09/2022,5899,Social Care - Direct Payments,3111258875,591.04,Personal Redacted Data
http://statistics.data.gov.uk/id/local-authority/38,Oxfordshire County Council,Support at Home 65+ Physical Support,27/09/2022,5899,Social Care - Direct Payments,3111258719,592,Personal Redacted Data
http://statistics.data.gov.uk/id/local-authority/38,Oxfordshire County Council,Support at Home 65+ Physical Support,13/09/2022,5699,,3111254104,592.2,CaringPlus Healthcare Services Ltd
http://statistics.data.gov.uk/id/local-authority/38,Oxfordshire County Council,Support at Home 65+ Physical Support,13/09/2022,5699,,3111254420,592.2,YOD Ltd
http://statistics.data.gov.uk/id/local-authority/38,Oxfordshire County Council,Support at Home U65 Mental Health,27/09/2022,5899,Social Care - Direct Payments,3111259222,592.64,Purple Conversation Com In Co (DP)
http://statistics.data.gov.uk/id/local-authority/38,Oxfordshire County Council,Support at Home 65+ Physical Support,30/09/2022,5693,,3111260649,592.88,Care with Care Ltd
http://statistics.data.gov.uk/id/local-authority/38,Oxfordshire County Council,Support at Home 65+ Physical Support,27/09/2022,5899,Social Care - Direct Payments,3111258624,593.6,Personal Redacted Data
http://statistics.data.gov.uk/id/local-authority/38,Oxfordshire County Council,FOSTERING MAIN,13/09/2022,5227,Other Transport Arrangements,3111252282,593.61,Personal Redacted Data
http://statistics.data.gov.uk/id/local-authority/38,Oxfordshire County Council,,16/09/2022,1531,Cash Allocation Control Account,3111257022,594,NATIONAL EDUCATION GROUP LTD
http://statistics.data.gov.uk/id/local-authority/38,Oxfordshire County Council,Support at Home 65+ Physical Support,13/09/2022,5696,,3111253639,594.13,All Care GB Ltd
http://statistics.data.gov.uk/id/local-authority/38,Oxfordshire County Council,SM DISABILITIES,27/09/2022,5554,Childrens' Social Care - Direct Payments,3111258519,594.98,Purple Conversation Com In Co (DP)
http://statistics.data.gov.uk/id/local-authority/38,Oxfordshire County Council,West Berkshire Adoption Support Fund,21/09/2022,4861,Hired and Contracted Services,2201028280,595,Integrate Families
http://statistics.data.gov.uk/id/local-authority/38,Oxfordshire County Council,POST18 UASC DCSF FND,09/09/2022,5665,B*Fostering Project Care Fee,9300056952,595.15,OCC SS Oxford City Div 1 Cash
http://statistics.data.gov.uk/id/local-authority/38,Oxfordshire County Council,ELEC NPR ST LTG,15/09/2022,5526,Payments to Private Contractors,2201026342,595.3,VolkerHighways
http://statistics.data.gov.uk/id/local-authority/38,Oxfordshire County Council,ELEC NPR ST LTG,15/09/2022,5526,Payments to Private Contractors,2201026359,595.3,VolkerHighways
http://statistics.data.gov.uk/id/local-authority/38,Oxfordshire County Council,ELEC NPR ST LTG,15/09/2022,5526,Payments to Private Contractors,2201026430,595.3,VolkerHighways
http://statistics.data.gov.uk/id/local-authority/38,Oxfordshire County Council,ELEC NPR ST LTG,15/09/2022,5526,Payments to Private Contractors,2201026448,595.3,VolkerHighways
http://statistics.data.gov.uk/id/local-authority/38,Oxfordshire County Council,ELEC NPR ST LTG,15/09/2022,5526,Payments to Private Contractors,2201026463,595.3,VolkerHighways
http://statistics.data.gov.uk/id/local-authority/38,Oxfordshire County Council,ELEC NPR ST LTG,15/09/2022,5526,Payments to Private Contractors,2201026485,595.3,VolkerHighways
http://statistics.data.gov.uk/id/local-authority/38,Oxfordshire County Council,ELEC NPR ST LTG,15/09/2022,5526,Payments to Private Contractors,2201026489,595.3,VolkerHighways
http://statistics.data.gov.uk/id/local-authority/38,Oxfordshire County Council,ELEC NPR ST LTG,16/09/2022,5526,Payments to Private Contractors,2201026825,595.3,VolkerHighways
http://statistics.data.gov.uk/id/local-authority/38,Oxfordshire County Council,Support at Home U65 Learning Disability,12/09/2022,5690,,3111247528,595.8,Real Life Options
http://statistics.data.gov.uk/id/local-authority/38,Oxfordshire County Council,Support at Home 65+ Learning Disability,12/09/2022,5688,,3111250140,595.8,The Brandon Trust
http://statistics.data.gov.uk/id/local-authority/38,Oxfordshire County Council,Support at Home U65 Physical Support,27/09/2022,5899,Social Care - Direct Payments,3111259287,596,Purple Conversation Com In Co (DP)
http://statistics.data.gov.uk/id/local-authority/38,Oxfordshire County Council,Support at Home U65 Learning Disability,20/09/2022,5227,Other Transport Arrangements,3111255770,596.8,Unitaxi Ltd
http://statistics.data.gov.uk/id/local-authority/38,Oxfordshire County Council,Support at Home U65 Learning Disability,01/09/2022,5696,,3111244933,597.14,Orders of St John Care Trust
http://statistics.data.gov.uk/id/local-authority/38,Oxfordshire County Council,Support at Home U65 Learning Disability,29/09/2022,5696,,3111260221,597.14,Orders of St John Care Trust
http://statistics.data.gov.uk/id/local-authority/38,Oxfordshire County Council,Support at Home U65 Learning Disability,27/09/2022,5899,Social Care - Direct Payments,3111259543,597.56,Purple Conversation Com In Co (DP)
http://statistics.data.gov.uk/id/local-authority/38,Oxfordshire County Council,Community Support Service Wantage,15/09/2022,2040,Agency Staff,2201026233,597.8,Completely Care Ltd
http://statistics.data.gov.uk/id/local-authority/38,Oxfordshire County Council,COUNTY HALL,01/09/2022,4477,Catering Equipment,2201020938,598,CF Corporate Finance Ltd
http://statistics.data.gov.uk/id/local-authority/38,Oxfordshire County Council,Support at Home 65+ Physical Support,13/09/2022,5698,,3111253841,598.06,Oxford Private Care
http://statistics.data.gov.uk/id/local-authority/38,Oxfordshire County Council,Support at Home U65 MH OBC Contract,13/09/2022,5689,,3111253199,598.79,Casa Care Ltd
http://statistics.data.gov.uk/id/local-authority/38,Oxfordshire County Council,Support at Home U65 Learning Disability,01/09/2022,5696,,3111245007,599.28,Orders of St John Care Trust
http://statistics.data.gov.uk/id/local-authority/38,Oxfordshire County Council,Support at Home U65 Learning Disability,27/09/2022,5899,Social Care - Direct Payments,3111259208,599.84,Personal Redacted Data
http://statistics.data.gov.uk/id/local-authority/38,Oxfordshire County Council,Support at Home 65+ Physical Support,27/09/2022,5899,Social Care - Direct Payments,3111258407,599.92,Personal Redacted Data
http://statistics.data.gov.uk/id/local-authority/38,Oxfordshire County Council,SEN TRANSPORT,20/09/2022,5227,Other Transport Arrangements,3111255782,600,A2B Castle Cars Ltd
http://statistics.data.gov.uk/id/local-authority/38,Oxfordshire County Council,PRIM. STAT ASSESS.,15/09/2022,7003,"Courses, Classes, Workshops and Clubs",3111255730,600,Bernwode Schools Trust
http://statistics.data.gov.uk/id/local-authority/38,Oxfordshire County Council,Councillors Priorities Fund,05/09/2022,4940,Other Services,3111245571,600,Bromsgrove Day Centre
http://statistics.data.gov.uk/id/local-authority/38,Oxfordshire County Council,Community Support Service Wantage,16/09/2022,2040,Agency Staff,2201027202,600,Completely Care Ltd
http://statistics.data.gov.uk/id/local-authority/38,Oxfordshire County Council,LEGAL SERVICES,20/09/2022,5251,Legal Costs,2201027525,600,Fazeela Ishmael
http://statistics.data.gov.uk/id/local-authority/38,Oxfordshire County Council,Recruitment,12/09/2022,3200,Staff Advertising - General,2201024566,600,Fluid Ideas Limited
http://statistics.data.gov.uk/id/local-authority/38,Oxfordshire County Council,LEGAL SERVICES,20/09/2022,5251,Legal Costs,2201027529,600,James Dove
http://statistics.data.gov.uk/id/local-authority/38,Oxfordshire County Council,Family Solutions Plus Non-staff - North,05/09/2022,5365,Non-Staff Subsistence and Expenses,3500087116,600,Personal Redacted Data
http://statistics.data.gov.uk/id/local-authority/38,Oxfordshire County Council,Councillors Priorities Fund,26/09/2022,4940,Other Services,3111257443,600,"North Abingdon PCC, Christ Church"
http://statistics.data.gov.uk/id/local-authority/38,Oxfordshire County Council,SEN TRANSPORT,23/09/2022,4330,Transport to School Activities,3111257322,600,Oxon Transport Services Ltd
http://statistics.data.gov.uk/id/local-authority/38,Oxfordshire County Council,LEGAL SERVICES,20/09/2022,5251,Legal Costs,2201027487,600,Paige Campbell
http://statistics.data.gov.uk/id/local-authority/38,Oxfordshire County Council,West Berkshire Adoption Support Fund,05/09/2022,4861,Hired and Contracted Services,2201021941,600,The Annex Project
http://statistics.data.gov.uk/id/local-authority/38,Oxfordshire County Council,Support at Home 65+ Physical Support,20/09/2022,5227,Other Transport Arrangements,3111255773,600,Unitaxi Ltd
http://statistics.data.gov.uk/id/local-authority/38,Oxfordshire County Council,Support at Home U65 Learning Disability,13/09/2022,5682,,3111252822,600.23,The Brandon Trust
http://statistics.data.gov.uk/id/local-authority/38,Oxfordshire County Council,Support at Home U65 Other /Soc Isolation,07/09/2022,5693,,3111246658,600.25,Star Projections
http://statistics.data.gov.uk/id/local-authority/38,Oxfordshire County Council,Delegated Health Tasks  - Over 65,21/09/2022,5691,,3111256968,600.74,Bluebird Care (Oxford South & West)
http://statistics.data.gov.uk/id/local-authority/38,Oxfordshire County Council,Support at Home 65+ Memory & Cognition,27/09/2022,5899,Social Care - Direct Payments,3111259191,601.76,Personal Redacted Data
http://statistics.data.gov.uk/id/local-authority/38,Oxfordshire County Council,FOSTERING MAIN,06/09/2022,5549,B*Fostering Allowance - Regulation 38,3111246096,602,Personal Redacted Data
http://statistics.data.gov.uk/id/local-authority/38,Oxfordshire County Council,Support at Home 65+ Physical Support,13/09/2022,5689,,3111253136,602.87,Caremark (West Oxfordshire & Cherwe
http://statistics.data.gov.uk/id/local-authority/38,Oxfordshire County Council,Property Cleaning,11/09/2022,4060,Cleaning Materials,2201024166,602.95,Seldram Supplies
http://statistics.data.gov.uk/id/local-authority/38,Oxfordshire County Council,Support at Home U65 Learning Disability,13/09/2022,5682,,3111252836,603.52,The Brandon Trust
http://statistics.data.gov.uk/id/local-authority/38,Oxfordshire County Council,Family Solutions Plus Non-staff - Centra,26/09/2022,4820,Sampling and Testing,2201029739,604,DNA WORLDWIDE GROUP
http://statistics.data.gov.uk/id/local-authority/38,Oxfordshire County Council,,07/09/2022,1325,Attachment of Earnings,3111246581,604,HM Courts and Tribunal Service
http://statistics.data.gov.uk/id/local-authority/38,Oxfordshire County Council,Support at Home U65 Learning Disability,29/09/2022,5696,,3111260293,604.15,Orders of St John Care Trust
http://statistics.data.gov.uk/id/local-authority/38,Oxfordshire County Council,Support at Home U65 Physical Support,13/09/2022,5689,,3111254149,604.77,T.HOW HOMELY LTD
http://statistics.data.gov.uk/id/local-authority/38,Oxfordshire County Council,Support at Home U65 Learning Disability,09/09/2022,5693,,3111247134,604.8,A CARING HAND LTD
http://statistics.data.gov.uk/id/local-authority/38,Oxfordshire County Council,Support at Home 65+ Physical Support,13/09/2022,5699,,3111253871,604.8,Care Hearted Ltd
http://statistics.data.gov.uk/id/local-authority/38,Oxfordshire County Council,Support at Home 65+ Physical Support,13/09/2022,5689,,3111253338,604.8,Golden Services Care Ltd
http://statistics.data.gov.uk/id/local-authority/38,Oxfordshire County Council,Support at Home 65+ Physical Support,02/09/2022,5693,,3111245489,604.8,Pioneering Care Bicester Limited
http://statistics.data.gov.uk/id/local-authority/38,Oxfordshire County Council,Support at Home 65+ Physical Support,13/09/2022,5699,,3111254361,604.8,PLL Care Services
http://statistics.data.gov.uk/id/local-authority/38,Oxfordshire County Council,Support at Home U65 HFA,16/09/2022,5693,,3111255533,604.8,We-Care-Recruitment Ltd
http://statistics.data.gov.uk/id/local-authority/38,Oxfordshire County Council,Resources and Waste Partnership,30/09/2022,4790,"Publicity, Promotions and Advertisement",2201032411,605,Global Media Group Services Ltd
http://statistics.data.gov.uk/id/local-authority/38,Oxfordshire County Council,Support at Home U65 Learning Disability,27/09/2022,5899,Social Care - Direct Payments,3111258667,605.08,Personal Redacted Data
http://statistics.data.gov.uk/id/local-authority/38,Oxfordshire County Council,DEFINITIVE MAP,30/09/2022,4790,"Publicity, Promotions and Advertisement",2201032369,605.34,Tmp (Uk) Ltd
http://statistics.data.gov.uk/id/local-authority/38,Oxfordshire County Council,Support at Home U65 Physical Support,27/09/2022,5899,Social Care - Direct Payments,3111259776,605.36,Purple Conversation Com In Co (DP)
http://statistics.data.gov.uk/id/local-authority/38,Oxfordshire County Council,ALTERNATIVES TO CARE,16/09/2022,2040,Agency Staff,2201027103,605.47,THORNBURY NURSING SERVICES
http://statistics.data.gov.uk/id/local-authority/38,Oxfordshire County Council,Support at Home U65 Learning Disability,27/09/2022,5899,Social Care - Direct Payments,3111259858,605.84,Rosekel Resourcing Ltd
http://statistics.data.gov.uk/id/local-authority/38,Oxfordshire County Council,CONTRACEPTION,06/09/2022,4933,,3111246770,606,Banbury Road Medical Centre
http://statistics.data.gov.uk/id/local-authority/38,Oxfordshire County Council,FLEET COSTS,07/09/2022,4270,HTM / Other Vehicle - Hire Charges,2201022539,606.05,Go Plant Fleet Services
http://statistics.data.gov.uk/id/local-authority/38,Oxfordshire County Council,Support at Home U65 Learning Disability,27/09/2022,5899,Social Care - Direct Payments,3111258705,606.32,Personal Redacted Data
http://statistics.data.gov.uk/id/local-authority/38,Oxfordshire County Council,Delegated Health Tasks  - Over 65,30/09/2022,5691,,3111260747,606.4,George Springall Homecare
http://statistics.data.gov.uk/id/local-authority/38,Oxfordshire County Council,Support at Home 65+ Physical Support,27/09/2022,5899,Social Care - Direct Payments,3111259630,607.64,Purple Conversation Com In Co (DP)
http://statistics.data.gov.uk/id/local-authority/38,Oxfordshire County Council,Support at Home 65+ Physical Support,13/09/2022,5698,,3111253873,607.71,Oxfordshire Crossroads
http://statistics.data.gov.uk/id/local-authority/38,Oxfordshire County Council,UASC 16&17,05/09/2022,5365,Non-Staff Subsistence and Expenses,9300056889,609.2,OCC SS Banbury Area Off Cash
http://statistics.data.gov.uk/id/local-authority/38,Oxfordshire County Council,Support at Home 65+ Physical Support,13/09/2022,5689,,3111253693,609.84,My Carer Ltd
http://statistics.data.gov.uk/id/local-authority/38,Oxfordshire County Council,Family Solutions Plus Non-staff - North,02/09/2022,5227,Other Transport Arrangements,9300056877,610.71,OCC SS Banbury Area Off Cash
http://statistics.data.gov.uk/id/local-authority/38,Oxfordshire County Council,Support at Home 65+ Physical Support,27/09/2022,5899,Social Care - Direct Payments,3111259344,611.88,Purple Conversation Com In Co (DP)
http://statistics.data.gov.uk/id/local-authority/38,Oxfordshire County Council,NTS UASC Agency,04/09/2022,2040,Agency Staff,2201021467,612,Completely Care Ltd
http://statistics.data.gov.uk/id/local-authority/38,Oxfordshire County Council,Afghanistan settler holding hotel fund,29/09/2022,3942,Hire of Accommodation and Facilities,2201031939,612,Hill End Outdoor Education
http://statistics.data.gov.uk/id/local-authority/38,Oxfordshire County Council,Support at Home U65 HFA,27/09/2022,5899,Social Care - Direct Payments,3111259320,612.24,Purple Conversation Com In Co (DP)
http://statistics.data.gov.uk/id/local-authority/38,Oxfordshire County Council,Support at Home U65 MH OBC Contract,09/09/2022,5693,,3111247168,612.31,Care at Home
http://statistics.data.gov.uk/id/local-authority/38,Oxfordshire County Council,MUSEUMS COLLECTIONS,08/09/2022,4495,IT Software,2201023312,612.5,SURFACE IMPRESSION LTD
http://statistics.data.gov.uk/id/local-authority/38,Oxfordshire County Council,SAFER COMMUNITIES UN,09/09/2022,8102,Payments to main contractor,2201024106,613,tmd Building Consultancy Ltd
http://statistics.data.gov.uk/id/local-authority/38,Oxfordshire County Council,LD Continuing Care - Sup at Home - U65,05/09/2022,5691,,3111245653,613.05,THORNBURY NURSING SERVICES
http://statistics.data.gov.uk/id/local-authority/38,Oxfordshire County Council,LD Continuing Care - Sup at Home - U65,05/09/2022,5691,,3111245656,613.05,THORNBURY NURSING SERVICES
http://statistics.data.gov.uk/id/local-authority/38,Oxfordshire County Council,Support at Home U65 Other /Soc Isolation,12/09/2022,5690,,3111247481,613.29,ADVANCE HOUSING & SUPPORT LTD
http://statistics.data.gov.uk/id/local-authority/38,Oxfordshire County Council,Support at Home U65 Learning Disability,13/09/2022,5698,,3111253824,614.71,Oxford Private Care
http://statistics.data.gov.uk/id/local-authority/38,Oxfordshire County Council,Support at Home 65+ Physical Support,12/09/2022,5696,,3111251943,615.51,Radis Community Care
http://statistics.data.gov.uk/id/local-authority/38,Oxfordshire County Council,SEN TRANSPORT,21/09/2022,4320,Pupil / Client Travel Reimbursement,3111256696,615.68,Personal Redacted Data
http://statistics.data.gov.uk/id/local-authority/38,Oxfordshire County Council,Support at Home U65 Physical Support,13/09/2022,5689,,3111253072,615.73,Care Outlook Ltd
http://statistics.data.gov.uk/id/local-authority/38,Oxfordshire County Council,Unregistered Placements,08/09/2022,5526,Payments to Private Contractors,2201023486,615.8,MEDGEN LTD
http://statistics.data.gov.uk/id/local-authority/38,Oxfordshire County Council,Support at Home U65 Learning Disability,12/09/2022,5690,,3111248393,616.46,Style Acre
http://statistics.data.gov.uk/id/local-authority/38,Oxfordshire County Council,Support at Home U65 Learning Disability,12/09/2022,5690,,3111248448,616.46,Style Acre
http://statistics.data.gov.uk/id/local-authority/38,Oxfordshire County Council,Support at Home U65 Learning Disability,12/09/2022,5690,,3111248484,616.46,Style Acre
http://statistics.data.gov.uk/id/local-authority/38,Oxfordshire County Council,Support at Home U65 Learning Disability,12/09/2022,5690,,3111248286,616.46,Turnstyle
http://statistics.data.gov.uk/id/local-authority/38,Oxfordshire County Council,Support at Home 65+ Learning Disability,12/09/2022,5690,,3111248342,616.46,Turnstyle
http://statistics.data.gov.uk/id/local-authority/38,Oxfordshire County Council,POST18 UASC DCSF FND,28/09/2022,5663,B*Birthday Allowance,9300057289,616.75,OCC SS Oxford City Div 1 Cash
http://statistics.data.gov.uk/id/local-authority/38,Oxfordshire County Council,Support at Home 65+ Physical Support,13/09/2022,5699,,3111254196,617.4,CaringPlus Healthcare Services Ltd
http://statistics.data.gov.uk/id/local-authority/38,Oxfordshire County Council,Support at Home U65 Physical Support,13/09/2022,5689,,3111253343,617.4,Golden Services Care Ltd
http://statistics.data.gov.uk/id/local-authority/38,Oxfordshire County Council,Support at Home 65+ Physical Support,28/09/2022,5693,,3111260027,617.4,Oasis Private Care Ltd
http://statistics.data.gov.uk/id/local-authority/38,Oxfordshire County Council,Support at Home U65 HFA,27/09/2022,5899,Social Care - Direct Payments,3111259870,618.48,Personal Redacted Data
http://statistics.data.gov.uk/id/local-authority/38,Oxfordshire County Council,ALTERNATIVES TO CARE,16/09/2022,2040,Agency Staff,2201027247,618.49,THORNBURY NURSING SERVICES
http://statistics.data.gov.uk/id/local-authority/38,Oxfordshire County Council,Support at Home 65+ Physical Support,13/09/2022,5689,,3111253793,619.71,Oxford Private Care
http://statistics.data.gov.uk/id/local-authority/38,Oxfordshire County Council,Support at Home U65 MH OBC Contract,13/09/2022,5689,,3111254057,620.04,Response Organisation
http://statistics.data.gov.uk/id/local-authority/38,Oxfordshire County Council,Support at Home U65 Mental Health,13/09/2022,5689,,3111254074,620.04,Response Organisation
http://statistics.data.gov.uk/id/local-authority/38,Oxfordshire County Council,Support at Home U65 Memory & Cognition,09/09/2022,5697,,3111247115,620.1,Headway Oxford
http://statistics.data.gov.uk/id/local-authority/38,Oxfordshire County Council,Support at Home U65 Physical Support,09/09/2022,5697,,3111247116,620.1,Headway Oxford
http://statistics.data.gov.uk/id/local-authority/38,Oxfordshire County Council,Support at Home U65 Physical Support,09/09/2022,5697,,3111247119,620.1,Headway Oxford
http://statistics.data.gov.uk/id/local-authority/38,Oxfordshire County Council,Support at Home U65 Memory & Cognition,09/09/2022,5697,,3111247121,620.1,Headway Oxford
http://statistics.data.gov.uk/id/local-authority/38,Oxfordshire County Council,Support at Home 65+ Physical Support,09/09/2022,5697,,3111247124,620.1,Headway Oxford
http://statistics.data.gov.uk/id/local-authority/38,Oxfordshire County Council,FOSTERING MAIN,06/09/2022,5549,B*Fostering Allowance - Regulation 38,3111246064,620.94,Personal Redacted Data
http://statistics.data.gov.uk/id/local-authority/38,Oxfordshire County Council,Delegated Health Tasks  - Over 65,30/09/2022,5691,,3111260781,621,Joining Hands Healthcare Ltd
http://statistics.data.gov.uk/id/local-authority/38,Oxfordshire County Council,Support at Home U65 Learning Disability,12/09/2022,5688,,3111249892,621.6,The Brandon Trust
http://statistics.data.gov.uk/id/local-authority/38,Oxfordshire County Council,Support at Home U65 Learning Disability,27/09/2022,5899,Social Care - Direct Payments,3111258956,621.76,Personal Redacted Data
http://statistics.data.gov.uk/id/local-authority/38,Oxfordshire County Council,LIBRARY COLLECTIONS,26/09/2022,4539,"Books, DVDs and CDs",2201030579,621.99,Books Asia Ltd
http://statistics.data.gov.uk/id/local-authority/38,Oxfordshire County Council,Support at Home U65 Learning Disability,27/09/2022,5899,Social Care - Direct Payments,3111259502,623.52,Purple Conversation Com In Co (DP)
http://statistics.data.gov.uk/id/local-authority/38,Oxfordshire County Council,Support at Home 65+ Physical Support,01/09/2022,5696,,3111245014,623.62,Orders of St John Care Trust
http://statistics.data.gov.uk/id/local-authority/38,Oxfordshire County Council,Support at Home 65+ Physical Support,13/09/2022,5699,,3111253752,623.7,Bridges Home Care Ltd
http://statistics.data.gov.uk/id/local-authority/38,Oxfordshire County Council,LANDLORD & TENANT,28/09/2022,4001,Uniform Business Rates,3500087823,624,West Oxfordshire District Council
http://statistics.data.gov.uk/id/local-authority/38,Oxfordshire County Council,SHORT BREAK ACTIVITIES,27/09/2022,5161,Adoption Expenses - Fees and Expenses,2201030863,625,Parasol Projects
http://statistics.data.gov.uk/id/local-authority/38,Oxfordshire County Council,Support at Home U65 Physical Support,13/09/2022,5698,,3111253747,628.69,Oxford Private Care
http://statistics.data.gov.uk/id/local-authority/38,Oxfordshire County Council,LIBRARY COLLECTIONS,01/09/2022,4539,"Books, DVDs and CDs",2201021023,628.72,ULVERSCROFT LARGE PRINT BOOKS LTD
http://statistics.data.gov.uk/id/local-authority/38,Oxfordshire County Council,LIBRARY COLLECTIONS,01/09/2022,4539,"Books, DVDs and CDs",2201021024,628.72,ULVERSCROFT LARGE PRINT BOOKS LTD
http://statistics.data.gov.uk/id/local-authority/38,Oxfordshire County Council,LIBRARY COLLECTIONS,23/09/2022,4539,"Books, DVDs and CDs",2201029566,628.72,ULVERSCROFT LARGE PRINT BOOKS LTD
http://statistics.data.gov.uk/id/local-authority/38,Oxfordshire County Council,LIBRARY COLLECTIONS,23/09/2022,4539,"Books, DVDs and CDs",2201029567,628.72,ULVERSCROFT LARGE PRINT BOOKS LTD
http://statistics.data.gov.uk/id/local-authority/38,Oxfordshire County Council,FOSTERING MAIN,27/09/2022,5549,B*Fostering Allowance - Regulation 38,3111257857,628.9,Personal Redacted Data
http://statistics.data.gov.uk/id/local-authority/38,Oxfordshire County Council,FOSTERING MAIN,13/09/2022,5549,B*Fostering Allowance - Regulation 38,3111252660,628.9,Personal Redacted Data
http://statistics.data.gov.uk/id/local-authority/38,Oxfordshire County Council,Support at Home 65+ Learning Disability,13/09/2022,5696,,3111253375,629.38,Radis Community Care
http://statistics.data.gov.uk/id/local-authority/38,Oxfordshire County Council,Swindon Adoption Support Fund,06/09/2022,4861,Hired and Contracted Services,2201022017,630,2PIP Theraputic Services
http://statistics.data.gov.uk/id/local-authority/38,Oxfordshire County Council,FLEET COSTS,14/09/2022,4270,HTM / Other Vehicle - Hire Charges,2201025578,630,Go Plant Fleet Services
http://statistics.data.gov.uk/id/local-authority/38,Oxfordshire County Council,Support at Home U65 Learning Disability,30/09/2022,5697,,3111260657,630,Guideposts Trust
http://statistics.data.gov.uk/id/local-authority/38,Oxfordshire County Council,Support at Home U65 Learning Disability,23/09/2022,5227,Other Transport Arrangements,3111257344,630,Oxon Transport Services Ltd
http://statistics.data.gov.uk/id/local-authority/38,Oxfordshire County Council,Support at Home 65+ Memory & Cognition,27/09/2022,5899,Social Care - Direct Payments,3111258899,630,Personal Redacted Data
http://statistics.data.gov.uk/id/local-authority/38,Oxfordshire County Council,Support at Home 65+ Physical Support,27/09/2022,5899,Social Care - Direct Payments,3111259444,630.2,Purple Conversation Com In Co (DP)
http://statistics.data.gov.uk/id/local-authority/38,Oxfordshire County Council,DISABILITIES TEAM-C,21/09/2022,5227,Other Transport Arrangements,3111256792,630.24,LINK SHIRES LTD
http://statistics.data.gov.uk/id/local-authority/38,Oxfordshire County Council,Support at Home U65 Learning Disability,27/09/2022,5899,Social Care - Direct Payments,3111259303,630.28,Purple Conversation Com In Co (DP)
http://statistics.data.gov.uk/id/local-authority/38,Oxfordshire County Council,POST18 UASC DCSF FND,08/09/2022,5785,Client Lodgings and Accommodation,3111246907,631.46,Personal Redacted Data
http://statistics.data.gov.uk/id/local-authority/38,Oxfordshire County Council,Support at Home U65 Physical Support,27/09/2022,5899,Social Care - Direct Payments,3111259038,631.76,Personal Redacted Data
http://statistics.data.gov.uk/id/local-authority/38,Oxfordshire County Council,Family Solutions Plus Non-staff - North,23/09/2022,5365,Non-Staff Subsistence and Expenses,9300057223,632.1,OCC SS Banbury Area Off Cash
http://statistics.data.gov.uk/id/local-authority/38,Oxfordshire County Council,FOSTERING MAIN,27/09/2022,5227,Other Transport Arrangements,3111257684,632.31,Personal Redacted Data
http://statistics.data.gov.uk/id/local-authority/38,Oxfordshire County Council,LEGAL BUDGET,16/09/2022,5251,Legal Costs,2201026861,632.5,Brethertons LLP
http://statistics.data.gov.uk/id/local-authority/38,Oxfordshire County Council,Refuse,22/09/2022,4092,General Refuse Collection and Disposal,2201029021,632.52,GRUNDON WASTE MANAGEMENT LTD
http://statistics.data.gov.uk/id/local-authority/38,Oxfordshire County Council,Support at Home U65 Learning Disability,12/09/2022,5690,,3111248391,632.57,Style Acre
http://statistics.data.gov.uk/id/local-authority/38,Oxfordshire County Council,Support at Home U65 Learning Disability,12/09/2022,5690,,3111248455,632.57,Style Acre
http://statistics.data.gov.uk/id/local-authority/38,Oxfordshire County Council,Support at Home U65 Learning Disability,12/09/2022,5690,,3111248488,632.57,Style Acre
http://statistics.data.gov.uk/id/local-authority/38,Oxfordshire County Council,SEN Additional Funding,14/09/2022,5537,Payments to Other Establishments,3111255249,632.68,St Johns Academy Trust
http://statistics.data.gov.uk/id/local-authority/38,Oxfordshire County Council,Support at Home 65+ Physical Support,02/09/2022,5693,,3111245495,632.94,AVR (Oxon) Ltd
http://statistics.data.gov.uk/id/local-authority/38,Oxfordshire County Council,SM DISABILITIES,27/09/2022,5554,Childrens' Social Care - Direct Payments,3111258632,633.09,The Disability Resource Centre
http://statistics.data.gov.uk/id/local-authority/38,Oxfordshire County Council,Pensions Investments,28/09/2022,4495,IT Software,2201031409,633.96,Bytes Software Services
http://statistics.data.gov.uk/id/local-authority/38,Oxfordshire County Council,Support at Home 65+ Physical Support,13/09/2022,5696,,3111253361,634.41,All Care GB Ltd
http://statistics.data.gov.uk/id/local-authority/38,Oxfordshire County Council,Support at Home U65 Physical Support,27/09/2022,5899,Social Care - Direct Payments,3111259273,635.04,Purple Conversation Com In Co (DP)
http://statistics.data.gov.uk/id/local-authority/38,Oxfordshire County Council,Support at Home 65+ Physical Support,13/09/2022,5699,,3111254376,635.04,SIETE LTD
http://statistics.data.gov.uk/id/local-authority/38,Oxfordshire County Council,Support at Home U65 Physical Support,16/09/2022,5693,,3111255500,635.28,CaringPlus Healthcare Services Ltd
http://statistics.data.gov.uk/id/local-authority/38,Oxfordshire County Council,Support at Home U65 Learning Disability,13/09/2022,5682,,3111252760,635.44,The Brandon Trust
http://statistics.data.gov.uk/id/local-authority/38,Oxfordshire County Council,Support at Home 65+ Physical Support,13/09/2022,5689,,3111253835,635.45,PLL Care Services
http://statistics.data.gov.uk/id/local-authority/38,Oxfordshire County Council,Support at Home 65+ Memory & Cognition,27/09/2022,5899,Social Care - Direct Payments,3111258490,636,Personal Redacted Data
http://statistics.data.gov.uk/id/local-authority/38,Oxfordshire County Council,Support at Home U65 Learning Disability,12/09/2022,5690,,3111248293,636.23,Turnstyle
http://statistics.data.gov.uk/id/local-authority/38,Oxfordshire County Council,Support at Home 65+ Physical Support,13/09/2022,5699,,3111254378,636.3,SIETE LTD
http://statistics.data.gov.uk/id/local-authority/38,Oxfordshire County Council,ALTERNATIVES TO CARE,16/09/2022,2040,Agency Staff,2201027341,636.84,THORNBURY NURSING SERVICES
http://statistics.data.gov.uk/id/local-authority/38,Oxfordshire County Council,STI TESTING+TREATMEN,08/09/2022,4940,Other Services,3111247016,636.89,George Eliot Hospital NHS Trust
http://statistics.data.gov.uk/id/local-authority/38,Oxfordshire County Council,MUSEUM RETAIL,05/09/2022,4531,Materials,2201021940,637.08,Keycraft
http://statistics.data.gov.uk/id/local-authority/38,Oxfordshire County Council,Support at Home U65 MH OBC Contract,13/09/2022,5689,,3111254096,637.09,Response Organisation
http://statistics.data.gov.uk/id/local-authority/38,Oxfordshire County Council,FAM GRP CONFERENCES,26/09/2022,4940,Other Services,2201030362,637.89,Mrs Laurie Smith
http://statistics.data.gov.uk/id/local-authority/38,Oxfordshire County Council,Care Homes - Over 65 Physical Sypport,12/09/2022,5687,,3111251495,638.01,Four Seasons (Headington) Ltd
http://statistics.data.gov.uk/id/local-authority/38,Oxfordshire County Council,Support at Home 65+ Physical Support,01/09/2022,5696,,3111245015,638.23,Orders of St John Care Trust
http://statistics.data.gov.uk/id/local-authority/38,Oxfordshire County Council,Support at Home 65+ Learning Disability,01/09/2022,5696,,3111245025,638.23,Orders of St John Care Trust
http://statistics.data.gov.uk/id/local-authority/38,Oxfordshire County Council,Support at Home 65+ Physical Support,29/09/2022,5696,,3111260301,638.23,Orders of St John Care Trust
http://statistics.data.gov.uk/id/local-authority/38,Oxfordshire County Council,Support at Home 65+ Learning Disability,29/09/2022,5696,,3111260311,638.23,Orders of St John Care Trust
http://statistics.data.gov.uk/id/local-authority/38,Oxfordshire County Council,Support at Home U65 Learning Disability,12/09/2022,5690,,3111247533,638.36,Style Acre
http://statistics.data.gov.uk/id/local-authority/38,Oxfordshire County Council,Support at Home U65 Learning Disability,13/09/2022,5682,,3111252789,638.52,The Brandon Trust
http://statistics.data.gov.uk/id/local-authority/38,Oxfordshire County Council,Support at Home 65+ Physical Support,01/09/2022,5696,,3111244986,639.07,Orders of St John Care Trust
http://statistics.data.gov.uk/id/local-authority/38,Oxfordshire County Council,Support at Home 65+ Physical Support,29/09/2022,5696,,3111260272,639.07,Orders of St John Care Trust
http://statistics.data.gov.uk/id/local-authority/38,Oxfordshire County Council,Support at Home 65+ Physical Support,01/09/2022,5696,,3111244913,639.18,Orders of St John Care Trust
http://statistics.data.gov.uk/id/local-authority/38,Oxfordshire County Council,Support at Home 65+ Physical Support,29/09/2022,5696,,3111260202,639.18,Orders of St John Care Trust
http://statistics.data.gov.uk/id/local-authority/38,Oxfordshire County Council,Support at Home U65 Learning Disability,13/09/2022,5682,,3111252721,639.73,The Brandon Trust
http://statistics.data.gov.uk/id/local-authority/38,Oxfordshire County Council,Rapid Response Reablement Outreach Team,01/09/2022,5227,Other Transport Arrangements,3111244857,640,Express Travel Oxford
http://statistics.data.gov.uk/id/local-authority/38,Oxfordshire County Council,Support at Home U65 Learning Disability,20/09/2022,5899,Social Care - Direct Payments,3111255943,640,Personal Redacted Data
http://statistics.data.gov.uk/id/local-authority/38,Oxfordshire County Council,Reactive Maintenance,23/09/2022,3787,Premises Repairs,2201029114,640,Thames Ceilings Ltd
http://statistics.data.gov.uk/id/local-authority/38,Oxfordshire County Council,Community Support Service - Witney,02/09/2022,2040,Agency Staff,2201021225,640.5,Completely Care Ltd
http://statistics.data.gov.uk/id/local-authority/38,Oxfordshire County Council,Community Support Service - Witney,02/09/2022,2040,Agency Staff,2201021364,640.5,Completely Care Ltd
http://statistics.data.gov.uk/id/local-authority/38,Oxfordshire County Council,Delegated Health Tasks  - Under 65,26/09/2022,5691,,3111257561,640.5,Enable Health Ltd
http://statistics.data.gov.uk/id/local-authority/38,Oxfordshire County Council,Support at Home U65 Physical Support,27/09/2022,5899,Social Care - Direct Payments,3111259634,640.72,Purple Conversation Com In Co (DP)
http://statistics.data.gov.uk/id/local-authority/38,Oxfordshire County Council,ALTERNATIVES TO CARE,16/09/2022,2040,Agency Staff,2201027246,640.85,THORNBURY NURSING SERVICES
http://statistics.data.gov.uk/id/local-authority/38,Oxfordshire County Council,LEAVING CARE NORTH,07/09/2022,5415,Residential Activities,9300056923,641.25,OCC SS Oxford City Div 1 Cash
http://statistics.data.gov.uk/id/local-authority/38,Oxfordshire County Council,Support at Home U65 Physical Support,27/09/2022,5899,Social Care - Direct Payments,3111258969,641.32,Personal Redacted Data
http://statistics.data.gov.uk/id/local-authority/38,Oxfordshire County Council,Support at Home U65 Autism /Abated,27/09/2022,5899,Social Care - Direct Payments,3111259139,641.4,Personal Redacted Data
http://statistics.data.gov.uk/id/local-authority/38,Oxfordshire County Council,Support at Home 65+ Physical Support,13/09/2022,5689,,3111253463,641.41,Greigcare Home Service
http://statistics.data.gov.uk/id/local-authority/38,Oxfordshire County Council,,07/09/2022,1325,Attachment of Earnings,3111246571,641.66,Bristow and Sutor
http://statistics.data.gov.uk/id/local-authority/38,Oxfordshire County Council,Planned Maintenance,22/09/2022,3787,Premises Repairs,2201028993,642,ARJO LTD
http://statistics.data.gov.uk/id/local-authority/38,Oxfordshire County Council,DISABILITIES TEAM-C,21/09/2022,5227,Other Transport Arrangements,9300057133,642.1,OCC SS Oxford City Div 1 Cash
http://statistics.data.gov.uk/id/local-authority/38,Oxfordshire County Council,Support at Home 65+ Physical Support,14/09/2022,5693,,3111254630,642.6,Angel Care Group
http://statistics.data.gov.uk/id/local-authority/38,Oxfordshire County Council,Support at Home 65+ Physical Support,14/09/2022,5693,,3111254682,642.64,Chamomile Care Ltd
http://statistics.data.gov.uk/id/local-authority/38,Oxfordshire County Council,Family Solutions Plus Non-staff - Centra,06/09/2022,5394,Other Expenses,9300056904,643.15,OCC SS Vale of White Horse Cash
http://statistics.data.gov.uk/id/local-authority/38,Oxfordshire County Council,Support at Home U65 Learning Disability,12/09/2022,5690,,3111247553,643.44,The Camden Society
http://statistics.data.gov.uk/id/local-authority/38,Oxfordshire County Council,Support at Home 65+ Physical Support,09/09/2022,5693,,3111247175,644,Kwikfix Recruitment Services Ltd
http://statistics.data.gov.uk/id/local-authority/38,Oxfordshire County Council,Support at Home 65+ Physical Support,13/09/2022,5689,,3111253092,644.29,Care Outlook Ltd
http://statistics.data.gov.uk/id/local-authority/38,Oxfordshire County Council,Support at Home 65+ Memory & Cognition,13/09/2022,5696,,3111253292,644.48,All Care GB Ltd
http://statistics.data.gov.uk/id/local-authority/38,Oxfordshire County Council,Support at Home 65+ Learning Disability,13/09/2022,5696,,3111253323,644.48,All Care GB Ltd
http://statistics.data.gov.uk/id/local-authority/38,Oxfordshire County Council,ALTERNATIVES TO CARE,16/09/2022,2040,Agency Staff,2201027288,644.88,THORNBURY NURSING SERVICES
http://statistics.data.gov.uk/id/local-authority/38,Oxfordshire County Council,Family Solutions Plus Non-staff - South,16/09/2022,5227,Other Transport Arrangements,3111255555,645,OXFORD BLUE CARS
http://statistics.data.gov.uk/id/local-authority/38,Oxfordshire County Council,FLEET COSTS,13/09/2022,4270,HTM / Other Vehicle - Hire Charges,2201025421,645.56,Go Plant Fleet Services
http://statistics.data.gov.uk/id/local-authority/38,Oxfordshire County Council,Support at Home 65+ Memory & Cognition,12/09/2022,5685,B*Cycle tracks,3111247783,645.69,Vale House
http://statistics.data.gov.uk/id/local-authority/38,Oxfordshire County Council,FOSTERING MAIN,06/09/2022,5549,B*Fostering Allowance - Regulation 38,3111246072,646,Personal Redacted Data
http://statistics.data.gov.uk/id/local-authority/38,Oxfordshire County Council,FOSTERING MAIN,13/09/2022,5549,B*Fostering Allowance - Regulation 38,3111252222,646,Personal Redacted Data
http://statistics.data.gov.uk/id/local-authority/38,Oxfordshire County Council,FOSTERING MAIN,20/09/2022,5549,B*Fostering Allowance - Regulation 38,3111256007,646,Personal Redacted Data
http://statistics.data.gov.uk/id/local-authority/38,Oxfordshire County Council,FOSTERING MAIN,27/09/2022,5549,B*Fostering Allowance - Regulation 38,3111257687,646,Personal Redacted Data
http://statistics.data.gov.uk/id/local-authority/38,Oxfordshire County Council,FPT SOUTH/VALE,13/09/2022,4525,Furniture,3111252304,646.65,Personal Redacted Data
http://statistics.data.gov.uk/id/local-authority/38,Oxfordshire County Council,Support at Home U65 Learning Disability,12/09/2022,5690,,3111248125,647.36,MacIntyre Care (Womaston)
http://statistics.data.gov.uk/id/local-authority/38,Oxfordshire County Council,Support at Home U65 Learning Disability,12/09/2022,5690,,3111248153,647.36,MacIntyre Care (Womaston)
http://statistics.data.gov.uk/id/local-authority/38,Oxfordshire County Council,Support at Home U65 Learning Disability,27/09/2022,5899,Social Care - Direct Payments,3111259265,647.76,Purple Conversation Com In Co (DP)
http://statistics.data.gov.uk/id/local-authority/38,Oxfordshire County Council,Support at Home U65 Learning Disability,27/09/2022,5899,Social Care - Direct Payments,3111259554,647.76,Purple Conversation Com In Co (DP)
http://statistics.data.gov.uk/id/local-authority/38,Oxfordshire County Council,Support at Home U65 Learning Disability,27/09/2022,5899,Social Care - Direct Payments,3111259786,647.76,Purple Conversation Com In Co (DP)
http://statistics.data.gov.uk/id/local-authority/38,Oxfordshire County Council,SODC P&D INCOME,15/09/2022,4861,Hired and Contracted Services,2201026142,647.77,Robelec Ltd
http://statistics.data.gov.uk/id/local-authority/38,Oxfordshire County Council,Support at Home 65+ Physical Support,27/09/2022,5899,Social Care - Direct Payments,3111258883,648.32,Personal Redacted Data
http://statistics.data.gov.uk/id/local-authority/38,Oxfordshire County Council,Support at Home U65 Autism /Abated,12/09/2022,5690,,3111248381,648.69,Style Acre
http://statistics.data.gov.uk/id/local-authority/38,Oxfordshire County Council,Support at Home U65 Learning Disability,12/09/2022,5690,,3111248462,648.69,Style Acre
http://statistics.data.gov.uk/id/local-authority/38,Oxfordshire County Council,Support at Home U65 Learning Disability,12/09/2022,5690,,3111248100,648.69,The Ice Centre
http://statistics.data.gov.uk/id/local-authority/38,Oxfordshire County Council,Support at Home 65+ Learning Disability,12/09/2022,5690,,3111248244,648.69,Turnstyle
http://statistics.data.gov.uk/id/local-authority/38,Oxfordshire County Council,Support at Home U65 Learning Disability,12/09/2022,5690,,3111248279,648.69,Turnstyle
http://statistics.data.gov.uk/id/local-authority/38,Oxfordshire County Council,Support at Home U65 Learning Disability,27/09/2022,5899,Social Care - Direct Payments,3111259207,648.72,Personal Redacted Data
http://statistics.data.gov.uk/id/local-authority/38,Oxfordshire County Council,STI TESTING+TREATMEN,08/09/2022,4940,Other Services,3111246991,649,Cambridge Community Services
http://statistics.data.gov.uk/id/local-authority/38,Oxfordshire County Council,Support at Home U65 Learning Disability,27/09/2022,5899,Social Care - Direct Payments,3111258371,649.24,Personal Redacted Data
http://statistics.data.gov.uk/id/local-authority/38,Oxfordshire County Council,Support at Home 65+ Learning Disability,14/09/2022,5693,,3111254773,649.74,Pioneering Care Bicester Limited
http://statistics.data.gov.uk/id/local-authority/38,Oxfordshire County Council,LEAVING CARE CITY 1,29/09/2022,3942,Hire of Accommodation and Facilities,3111260527,650,Personal Redacted Data
http://statistics.data.gov.uk/id/local-authority/38,Oxfordshire County Council,FLEET OPERATIONS,05/09/2022,4270,HTM / Other Vehicle - Hire Charges,2201021925,650,London Hire
http://statistics.data.gov.uk/id/local-authority/38,Oxfordshire County Council,LEGAL SERVICES,07/09/2022,5251,Legal Costs,2201022451,650,Oliver Powell (Harcourt)
http://statistics.data.gov.uk/id/local-authority/38,Oxfordshire County Council,ALTERNATIVES TO CARE,15/09/2022,2040,Agency Staff,2201026669,650.28,THORNBURY NURSING SERVICES
http://statistics.data.gov.uk/id/local-authority/38,Oxfordshire County Council,Support at Home 65+ Physical Support,29/09/2022,5696,,3111260256,650.7,Orders of St John Care Trust
http://statistics.data.gov.uk/id/local-authority/38,Oxfordshire County Council,Support at Home U65 Mental Health,13/09/2022,5689,,3111254060,651.04,Response Organisation
http://statistics.data.gov.uk/id/local-authority/38,Oxfordshire County Council,ALTERNATIVES TO CARE,14/09/2022,4859,Medical and Counselling Fees,2201026004,651.95,THORNBURY NURSING SERVICES
http://statistics.data.gov.uk/id/local-authority/38,Oxfordshire County Council,ALTERNATIVES TO CARE,14/09/2022,4859,Medical and Counselling Fees,2201025998,652.27,THORNBURY NURSING SERVICES
http://statistics.data.gov.uk/id/local-authority/38,Oxfordshire County Council,Support at Home U65 MH OBC Contract,27/09/2022,5899,Social Care - Direct Payments,3111259612,652.64,Purple Conversation Com In Co (DP)
http://statistics.data.gov.uk/id/local-authority/38,Oxfordshire County Council,Support at Home U65 Learning Disability,27/09/2022,5899,Social Care - Direct Payments,3111259185,653.88,Personal Redacted Data
http://statistics.data.gov.uk/id/local-authority/38,Oxfordshire County Council,WASTE REDUCTION GEN,30/09/2022,4861,Hired and Contracted Services,2201032413,654,RESOURCE FUTURES
http://statistics.data.gov.uk/id/local-authority/38,Oxfordshire County Council,Delegated Health Tasks  - Over 65,26/09/2022,5691,,3111257521,654.06,Bluebird Care (Oxford South & West)
http://statistics.data.gov.uk/id/local-authority/38,Oxfordshire County Council,FAM GRP CONFERENCES,08/09/2022,4940,Other Services,2201023280,654.15,Mrs Laurie Smith
http://statistics.data.gov.uk/id/local-authority/38,Oxfordshire County Council,Support at Home U65 Sensory Support,27/09/2022,5899,Social Care - Direct Payments,3111259497,655.08,Purple Conversation Com In Co (DP)
http://statistics.data.gov.uk/id/local-authority/38,Oxfordshire County Council,Support at Home U65 Learning Disability,01/09/2022,5696,,3111244924,655.57,Orders of St John Care Trust
http://statistics.data.gov.uk/id/local-authority/38,Oxfordshire County Council,Support at Home U65 Learning Disability,01/09/2022,5696,,3111244952,655.57,Orders of St John Care Trust
http://statistics.data.gov.uk/id/local-authority/38,Oxfordshire County Council,Support at Home 65+ Physical Support,01/09/2022,5696,,3111244970,655.57,Orders of St John Care Trust
http://statistics.data.gov.uk/id/local-authority/38,Oxfordshire County Council,Support at Home U65 Learning Disability,29/09/2022,5696,,3111260212,655.57,Orders of St John Care Trust
http://statistics.data.gov.uk/id/local-authority/38,Oxfordshire County Council,Support at Home U65 Learning Disability,29/09/2022,5696,,3111260238,655.57,Orders of St John Care Trust
http://statistics.data.gov.uk/id/local-authority/38,Oxfordshire County Council,ALTERNATIVES TO CARE,14/09/2022,4859,Medical and Counselling Fees,2201026005,655.87,THORNBURY NURSING SERVICES
http://statistics.data.gov.uk/id/local-authority/38,Oxfordshire County Council,ECH Central Costs,12/09/2022,5696,,3111248200,655.93,BPHA Limited
http://statistics.data.gov.uk/id/local-authority/38,Oxfordshire County Council,Children in Care Non-staffing - South,21/09/2022,5394,Other Expenses,9300057134,656.7,OCC SS Oxford City Div 1 Cash
http://statistics.data.gov.uk/id/local-authority/38,Oxfordshire County Council,Support at Home U65 Learning Disability,27/09/2022,5899,Social Care - Direct Payments,3111259000,657.52,Personal Redacted Data
http://statistics.data.gov.uk/id/local-authority/38,Oxfordshire County Council,CAP CHRGES-PRIM SCHS,05/09/2022,8102,Payments to main contractor,2201021891,658,Thames Ceilings Ltd
http://statistics.data.gov.uk/id/local-authority/38,Oxfordshire County Council,CONTRACEPTION,06/09/2022,4933,,3111246803,658.42,Principal Medical Ltd
http://statistics.data.gov.uk/id/local-authority/38,Oxfordshire County Council,ALTERNATIVES TO CARE,16/09/2022,2040,Agency Staff,2201027190,658.48,THORNBURY NURSING SERVICES
http://statistics.data.gov.uk/id/local-authority/38,Oxfordshire County Council,Support at Home U65 Learning Disability,13/09/2022,5689,,3111253305,658.61,Genuine Carers Ltd
http://statistics.data.gov.uk/id/local-authority/38,Oxfordshire County Council,Support at Home U65 Mental Health,13/09/2022,5698,,3111253658,658.62,KCARE NURSING AGENCY
http://statistics.data.gov.uk/id/local-authority/38,Oxfordshire County Council,Support at Home U65 Learning Disability,12/09/2022,5690,,3111248111,658.71,The Ice Centre
http://statistics.data.gov.uk/id/local-authority/38,Oxfordshire County Council,Support at Home U65 Learning Disability,12/09/2022,5690,,3111248117,658.71,The Ice Centre
http://statistics.data.gov.uk/id/local-authority/38,Oxfordshire County Council,Support at Home U65 Autism /Abated,12/09/2022,5690,,3111248241,658.98,Turnstyle
http://statistics.data.gov.uk/id/local-authority/38,Oxfordshire County Council,LIBRARY COLLECTIONS,06/09/2022,4539,"Books, DVDs and CDs",2201022082,659.2,W F HOWES LTD
http://statistics.data.gov.uk/id/local-authority/38,Oxfordshire County Council,Support at Home U65 Physical Support,13/09/2022,5689,,3111253310,659.42,Genuine Carers Ltd
http://statistics.data.gov.uk/id/local-authority/38,Oxfordshire County Council,Family Solutions Plus Non-staff - Centra,08/09/2022,5365,Non-Staff Subsistence and Expenses,9300056934,659.85,OCC SS Oxford City Div 1 Cash
http://statistics.data.gov.uk/id/local-authority/38,Oxfordshire County Council,Support at Home U65 Learning Disability,15/09/2022,5227,Other Transport Arrangements,3111255355,660,BC CARS
http://statistics.data.gov.uk/id/local-authority/38,Oxfordshire County Council,Community Support Service Bicester,15/09/2022,5227,Other Transport Arrangements,3111255341,660,Bicester Cars UK Ltd
http://statistics.data.gov.uk/id/local-authority/38,Oxfordshire County Council,PREMISES,15/09/2022,4122,Other premises related costs,2201026263,660,COMPLIANCE365
http://statistics.data.gov.uk/id/local-authority/38,Oxfordshire County Council,L&D CORE PROGRAMME,20/09/2022,3100,Educational and Vocational Training,2201027483,660,Premier Partnership
http://statistics.data.gov.uk/id/local-authority/38,Oxfordshire County Council,L&D CORE PROGRAMME,26/09/2022,3100,Educational and Vocational Training,2201029680,660,Premier Partnership
http://statistics.data.gov.uk/id/local-authority/38,Oxfordshire County Council,Support at Home U65 Learning Disability,12/09/2022,5690,,3111247537,660,Style Acre
http://statistics.data.gov.uk/id/local-authority/38,Oxfordshire County Council,ALTERNATIVES TO CARE,14/09/2022,4859,Medical and Counselling Fees,2201025997,660.44,THORNBURY NURSING SERVICES
http://statistics.data.gov.uk/id/local-authority/38,Oxfordshire County Council,CONTRACT MANAGEMENT,28/09/2022,4001,Uniform Business Rates,3500087724,661,Cherwell District Council
http://statistics.data.gov.uk/id/local-authority/38,Oxfordshire County Council,Family Solutions Plus Non-staff - Centra,12/09/2022,4940,Other Services,2201024807,661,Greenstaff Medical
http://statistics.data.gov.uk/id/local-authority/38,Oxfordshire County Council,LANDLORD & TENANT,28/09/2022,4001,Uniform Business Rates,3500087861,661,Vale of White Horse District Counci
http://statistics.data.gov.uk/id/local-authority/38,Oxfordshire County Council,Support at Home U65 Learning Disability,12/09/2022,5690,,3111248367,661.2,Style Acre
http://statistics.data.gov.uk/id/local-authority/38,Oxfordshire County Council,Care Homes - Over 65 Physical Sypport,12/09/2022,5685,B*Cycle tracks,3111250929,661.46,Oxford Beaumont
http://statistics.data.gov.uk/id/local-authority/38,Oxfordshire County Council,Unregistered Placements,15/09/2022,2040,Agency Staff,2201026249,661.48,THORNBURY NURSING SERVICES
http://statistics.data.gov.uk/id/local-authority/38,Oxfordshire County Council,Unregistered Placements,15/09/2022,2040,Agency Staff,2201026250,661.48,THORNBURY NURSING SERVICES
http://statistics.data.gov.uk/id/local-authority/38,Oxfordshire County Council,ALTERNATIVES TO CARE,15/09/2022,2040,Agency Staff,2201026603,661.48,THORNBURY NURSING SERVICES
http://statistics.data.gov.uk/id/local-authority/38,Oxfordshire County Council,ALTERNATIVES TO CARE,15/09/2022,2040,Agency Staff,2201026606,661.48,THORNBURY NURSING SERVICES
http://statistics.data.gov.uk/id/local-authority/38,Oxfordshire County Council,ALTERNATIVES TO CARE,15/09/2022,2040,Agency Staff,2201026610,661.48,THORNBURY NURSING SERVICES
http://statistics.data.gov.uk/id/local-authority/38,Oxfordshire County Council,ALTERNATIVES TO CARE,15/09/2022,2040,Agency Staff,2201026616,661.48,THORNBURY NURSING SERVICES
http://statistics.data.gov.uk/id/local-authority/38,Oxfordshire County Council,ALTERNATIVES TO CARE,15/09/2022,2040,Agency Staff,2201026657,661.48,THORNBURY NURSING SERVICES
http://statistics.data.gov.uk/id/local-authority/38,Oxfordshire County Council,ALTERNATIVES TO CARE,15/09/2022,2040,Agency Staff,2201026658,661.48,THORNBURY NURSING SERVICES
http://statistics.data.gov.uk/id/local-authority/38,Oxfordshire County Council,ALTERNATIVES TO CARE,15/09/2022,2040,Agency Staff,2201026667,661.48,THORNBURY NURSING SERVICES
http://statistics.data.gov.uk/id/local-authority/38,Oxfordshire County Council,ALTERNATIVES TO CARE,15/09/2022,2040,Agency Staff,2201026694,661.48,THORNBURY NURSING SERVICES
http://statistics.data.gov.uk/id/local-authority/38,Oxfordshire County Council,ALTERNATIVES TO CARE,15/09/2022,2040,Agency Staff,2201026698,661.48,THORNBURY NURSING SERVICES
http://statistics.data.gov.uk/id/local-authority/38,Oxfordshire County Council,ALTERNATIVES TO CARE,15/09/2022,2040,Agency Staff,2201026707,661.48,THORNBURY NURSING SERVICES
http://statistics.data.gov.uk/id/local-authority/38,Oxfordshire County Council,ALTERNATIVES TO CARE,15/09/2022,2040,Agency Staff,2201026709,661.48,THORNBURY NURSING SERVICES
http://statistics.data.gov.uk/id/local-authority/38,Oxfordshire County Council,ALTERNATIVES TO CARE,15/09/2022,2040,Agency Staff,2201026714,661.48,THORNBURY NURSING SERVICES
http://statistics.data.gov.uk/id/local-authority/38,Oxfordshire County Council,ALTERNATIVES TO CARE,15/09/2022,2040,Agency Staff,2201026715,661.48,THORNBURY NURSING SERVICES
http://statistics.data.gov.uk/id/local-authority/38,Oxfordshire County Council,ALTERNATIVES TO CARE,15/09/2022,2040,Agency Staff,2201026717,661.48,THORNBURY NURSING SERVICES
http://statistics.data.gov.uk/id/local-authority/38,Oxfordshire County Council,ALTERNATIVES TO CARE,15/09/2022,2040,Agency Staff,2201026729,661.48,THORNBURY NURSING SERVICES
http://statistics.data.gov.uk/id/local-authority/38,Oxfordshire County Council,ALTERNATIVES TO CARE,16/09/2022,2040,Agency Staff,2201027081,661.48,THORNBURY NURSING SERVICES
http://statistics.data.gov.uk/id/local-authority/38,Oxfordshire County Council,ALTERNATIVES TO CARE,16/09/2022,2040,Agency Staff,2201027082,661.48,THORNBURY NURSING SERVICES
http://statistics.data.gov.uk/id/local-authority/38,Oxfordshire County Council,ALTERNATIVES TO CARE,16/09/2022,2040,Agency Staff,2201027095,661.48,THORNBURY NURSING SERVICES
http://statistics.data.gov.uk/id/local-authority/38,Oxfordshire County Council,ALTERNATIVES TO CARE,16/09/2022,2040,Agency Staff,2201027146,661.48,THORNBURY NURSING SERVICES
http://statistics.data.gov.uk/id/local-authority/38,Oxfordshire County Council,ALTERNATIVES TO CARE,16/09/2022,2040,Agency Staff,2201027154,661.48,THORNBURY NURSING SERVICES
http://statistics.data.gov.uk/id/local-authority/38,Oxfordshire County Council,ALTERNATIVES TO CARE,16/09/2022,2040,Agency Staff,2201027155,661.48,THORNBURY NURSING SERVICES
http://statistics.data.gov.uk/id/local-authority/38,Oxfordshire County Council,ALTERNATIVES TO CARE,16/09/2022,2040,Agency Staff,2201027183,661.48,THORNBURY NURSING SERVICES
http://statistics.data.gov.uk/id/local-authority/38,Oxfordshire County Council,ALTERNATIVES TO CARE,16/09/2022,2040,Agency Staff,2201027203,661.48,THORNBURY NURSING SERVICES
http://statistics.data.gov.uk/id/local-authority/38,Oxfordshire County Council,ALTERNATIVES TO CARE,16/09/2022,2040,Agency Staff,2201027209,661.48,THORNBURY NURSING SERVICES
http://statistics.data.gov.uk/id/local-authority/38,Oxfordshire County Council,ALTERNATIVES TO CARE,16/09/2022,2040,Agency Staff,2201027211,661.48,THORNBURY NURSING SERVICES
http://statistics.data.gov.uk/id/local-authority/38,Oxfordshire County Council,ALTERNATIVES TO CARE,16/09/2022,2040,Agency Staff,2201027233,661.48,THORNBURY NURSING SERVICES
http://statistics.data.gov.uk/id/local-authority/38,Oxfordshire County Council,ALTERNATIVES TO CARE,16/09/2022,2040,Agency Staff,2201027258,661.48,THORNBURY NURSING SERVICES
http://statistics.data.gov.uk/id/local-authority/38,Oxfordshire County Council,ALTERNATIVES TO CARE,16/09/2022,2040,Agency Staff,2201027264,661.48,THORNBURY NURSING SERVICES
http://statistics.data.gov.uk/id/local-authority/38,Oxfordshire County Council,ALTERNATIVES TO CARE,16/09/2022,2040,Agency Staff,2201027295,661.48,THORNBURY NURSING SERVICES
http://statistics.data.gov.uk/id/local-authority/38,Oxfordshire County Council,ALTERNATIVES TO CARE,16/09/2022,2040,Agency Staff,2201027306,661.48,THORNBURY NURSING SERVICES
http://statistics.data.gov.uk/id/local-authority/38,Oxfordshire County Council,ALTERNATIVES TO CARE,16/09/2022,2040,Agency Staff,2201027342,661.48,THORNBURY NURSING SERVICES
http://statistics.data.gov.uk/id/local-authority/38,Oxfordshire County Council,ALTERNATIVES TO CARE,16/09/2022,2040,Agency Staff,2201027346,661.48,THORNBURY NURSING SERVICES
http://statistics.data.gov.uk/id/local-authority/38,Oxfordshire County Council,ALTERNATIVES TO CARE,21/09/2022,2040,Agency Staff,2201028205,661.48,THORNBURY NURSING SERVICES
http://statistics.data.gov.uk/id/local-authority/38,Oxfordshire County Council,ALTERNATIVES TO CARE,21/09/2022,2040,Agency Staff,2201028206,661.48,THORNBURY NURSING SERVICES
http://statistics.data.gov.uk/id/local-authority/38,Oxfordshire County Council,ALTERNATIVES TO CARE,21/09/2022,2040,Agency Staff,2201028218,661.48,THORNBURY NURSING SERVICES
http://statistics.data.gov.uk/id/local-authority/38,Oxfordshire County Council,ALTERNATIVES TO CARE,21/09/2022,2040,Agency Staff,2201028239,661.48,THORNBURY NURSING SERVICES
http://statistics.data.gov.uk/id/local-authority/38,Oxfordshire County Council,Support at Home 65+ Physical Support,13/09/2022,5689,,3111253046,661.5,Amber Healthcare Personnel Ltd
http://statistics.data.gov.uk/id/local-authority/38,Oxfordshire County Council,Support at Home 65+ Memory & Cognition,16/09/2022,5693,,3111255487,661.5,BETTER LIFE CARE LTD
http://statistics.data.gov.uk/id/local-authority/38,Oxfordshire County Council,Support at Home 65+ Physical Support,13/09/2022,5699,,3111254370,661.5,PLL Care Services
http://statistics.data.gov.uk/id/local-authority/38,Oxfordshire County Council,Support at Home U65 Learning Disability,27/09/2022,5899,Social Care - Direct Payments,3111259017,661.88,Personal Redacted Data
http://statistics.data.gov.uk/id/local-authority/38,Oxfordshire County Council,Support at Home U65 Physical Support,01/09/2022,5696,,3111244927,662.18,Orders of St John Care Trust
http://statistics.data.gov.uk/id/local-authority/38,Oxfordshire County Council,Support at Home U65 Physical Support,29/09/2022,5696,,3111260215,662.18,Orders of St John Care Trust
http://statistics.data.gov.uk/id/local-authority/38,Oxfordshire County Council,Support at Home 65+ Memory & Cognition,07/09/2022,5693,,3111246608,662.5,CARESTREAM HOME CARE
http://statistics.data.gov.uk/id/local-authority/38,Oxfordshire County Council,ALTERNATIVES TO CARE,16/09/2022,2040,Agency Staff,2201027165,663.16,THORNBURY NURSING SERVICES
http://statistics.data.gov.uk/id/local-authority/38,Oxfordshire County Council,Support at Home U65 Learning Disability,13/09/2022,5682,,3111252770,663.81,The Brandon Trust
http://statistics.data.gov.uk/id/local-authority/38,Oxfordshire County Council,Support at Home U65 HFA,12/09/2022,5690,,3111248335,664.12,Turnstyle
http://statistics.data.gov.uk/id/local-authority/38,Oxfordshire County Council,Family Solutions Plus Non-staff - South,16/09/2022,4685,Clothing and Uniforms,9300057061,664.25,OCC SS Vale of White Horse Cash
http://statistics.data.gov.uk/id/local-authority/38,Oxfordshire County Council,Swindon Adoption Support Fund,05/09/2022,4861,Hired and Contracted Services,2201021774,665,2PIP Theraputic Services
http://statistics.data.gov.uk/id/local-authority/38,Oxfordshire County Council,Swindon Adoption Support Fund,05/09/2022,4861,Hired and Contracted Services,2201021790,665,2PIP Theraputic Services
http://statistics.data.gov.uk/id/local-authority/38,Oxfordshire County Council,FLEET COSTS,07/09/2022,4270,HTM / Other Vehicle - Hire Charges,2201022498,665,West Wallasey Fleet Hire Services
http://statistics.data.gov.uk/id/local-authority/38,Oxfordshire County Council,ALTERNATIVES TO CARE,16/09/2022,2040,Agency Staff,2201027201,665.12,THORNBURY NURSING SERVICES
http://statistics.data.gov.uk/id/local-authority/38,Oxfordshire County Council,Support at Home 65+ Mental Health,09/09/2022,5693,,3111247161,665.82,Genuine Carers Ltd
http://statistics.data.gov.uk/id/local-authority/38,Oxfordshire County Council,Support at Home 65+ Physical Support,09/09/2022,5693,,3111247166,665.84,Genuine Carers Ltd
http://statistics.data.gov.uk/id/local-authority/38,Oxfordshire County Council,Support at Home 65+ Memory & Cognition,14/09/2022,5693,,3111254743,665.84,Oxford Private Care
http://statistics.data.gov.uk/id/local-authority/38,Oxfordshire County Council,FOSTERING MAIN,06/09/2022,5549,B*Fostering Allowance - Regulation 38,3111246413,666.29,Personal Redacted Data
http://statistics.data.gov.uk/id/local-authority/38,Oxfordshire County Council,,23/09/2022,1448,Blackfield Inc & Exp A/c,3111257375,666.48,OCC One Time Vendor
http://statistics.data.gov.uk/id/local-authority/38,Oxfordshire County Council,LEGAL SERVICES,22/09/2022,5251,Legal Costs,2201028623,666.67,Miss Anna Yarde
http://statistics.data.gov.uk/id/local-authority/38,Oxfordshire County Council,LEAVING CARE CITY 1,14/09/2022,4685,Clothing and Uniforms,9300057005,667.1,OCC SS Oxford City Div 1 Cash
http://statistics.data.gov.uk/id/local-authority/38,Oxfordshire County Council,Support at Home U65 Learning Disability,12/09/2022,5690,,3111247517,667.54,Autism at Kingwood Limited
http://statistics.data.gov.uk/id/local-authority/38,Oxfordshire County Council,ALTERNATIVES TO CARE,15/09/2022,2040,Agency Staff,2201026634,667.78,THORNBURY NURSING SERVICES
http://statistics.data.gov.uk/id/local-authority/38,Oxfordshire County Council,Support at Home 65+ Physical Support,07/09/2022,5693,,3111246596,667.8,Bicester PA and Care LLP
http://statistics.data.gov.uk/id/local-authority/38,Oxfordshire County Council,Support at Home U65 Physical Support,13/09/2022,5689,,3111253502,667.8,Home Helpers Care Ltd
http://statistics.data.gov.uk/id/local-authority/38,Oxfordshire County Council,Support at Home U65 Physical Support,27/09/2022,5899,Social Care - Direct Payments,3111259729,667.8,Purple Conversation Com In Co (DP)
http://statistics.data.gov.uk/id/local-authority/38,Oxfordshire County Council,Support at Home 65+ Learning Disability,12/09/2022,5690,,3111247563,667.8,The Camden Society
http://statistics.data.gov.uk/id/local-authority/38,Oxfordshire County Council,Support at Home U65 Learning Disability,27/09/2022,5899,Social Care - Direct Payments,3111259638,668.2,Purple Conversation Com In Co (DP)
http://statistics.data.gov.uk/id/local-authority/38,Oxfordshire County Council,Homes for Ukraine - Education,26/09/2022,5537,Payments to Other Establishments,3111259878,668.64,Blewbury Endowed C of E Primary Sch
http://statistics.data.gov.uk/id/local-authority/38,Oxfordshire County Council,Support at Home 65+ Physical Support,13/09/2022,5689,,3111253121,669.46,Caremark (West Oxfordshire & Cherwe
http://statistics.data.gov.uk/id/local-authority/38,Oxfordshire County Council,Support at Home U65 Learning Disability,12/09/2022,5690,,3111247544,669.71,The Camden Society
http://statistics.data.gov.uk/id/local-authority/38,Oxfordshire County Council,Delegated Health Tasks  - Over 65,13/09/2022,5698,,3111253189,669.9,Bridges Home Care Ltd
http://statistics.data.gov.uk/id/local-authority/38,Oxfordshire County Council,STI TESTING+TREATMEN,08/09/2022,4940,Other Services,3111247038,670,George Eliot Hospital NHS Trust
http://statistics.data.gov.uk/id/local-authority/38,Oxfordshire County Council,Swindon Adoption Support Fund,06/09/2022,4861,Hired and Contracted Services,2201022059,670,Joanna Cowley
http://statistics.data.gov.uk/id/local-authority/38,Oxfordshire County Council,ALTERNATIVES TO CARE,15/09/2022,2040,Agency Staff,2201026706,670.2,THORNBURY NURSING SERVICES
http://statistics.data.gov.uk/id/local-authority/38,Oxfordshire County Council,Support at Home 65+ Memory & Cognition,27/09/2022,5899,Social Care - Direct Payments,3111259175,670.4,Personal Redacted Data
http://statistics.data.gov.uk/id/local-authority/38,Oxfordshire County Council,STI TESTING+TREATMEN,08/09/2022,4940,Other Services,3111247030,670.51,George Eliot Hospital NHS Trust
http://statistics.data.gov.uk/id/local-authority/38,Oxfordshire County Council,Support at Home 65+ Physical Support,13/09/2022,5698,,3111253849,671.13,Oxford Private Care
http://statistics.data.gov.uk/id/local-authority/38,Oxfordshire County Council,ALTERNATIVES TO CARE,15/09/2022,2040,Agency Staff,2201026580,671.19,THORNBURY NURSING SERVICES
http://statistics.data.gov.uk/id/local-authority/38,Oxfordshire County Council,Support at Home U65 Physical Support,13/09/2022,5689,,3111253569,671.23,Home Helpers Care Ltd
http://statistics.data.gov.uk/id/local-authority/38,Oxfordshire County Council,Support at Home 65+ Learning Disability,27/09/2022,5899,Social Care - Direct Payments,3111259753,671.56,Purple Conversation Com In Co (DP)
http://statistics.data.gov.uk/id/local-authority/38,Oxfordshire County Council,Support at Home U65 Mental Health,07/09/2022,5693,,3111246626,672,JMC Care Solutions Limited
http://statistics.data.gov.uk/id/local-authority/38,Oxfordshire County Council,FLEET COSTS,07/09/2022,4270,HTM / Other Vehicle - Hire Charges,2201022477,672,West Wallasey Fleet Hire Services
http://statistics.data.gov.uk/id/local-authority/38,Oxfordshire County Council,LD Continuing Care - Sup at Home - U65,05/09/2022,5691,,3111245658,672.36,Paterson Recruitment
http://statistics.data.gov.uk/id/local-authority/38,Oxfordshire County Council,ALTERNATIVES TO CARE,15/09/2022,2040,Agency Staff,2201026708,672.84,THORNBURY NURSING SERVICES
http://statistics.data.gov.uk/id/local-authority/38,Oxfordshire County Council,Support at Home 65+ Physical Support,27/09/2022,5899,Social Care - Direct Payments,3111259523,673.2,Purple Conversation Com In Co (DP)
http://statistics.data.gov.uk/id/local-authority/38,Oxfordshire County Council,Support at Home 65+ Physical Support,27/09/2022,5899,Social Care - Direct Payments,3111259854,673.2,Purple Conversation Com In Co (DP)
http://statistics.data.gov.uk/id/local-authority/38,Oxfordshire County Council,Support at Home U65 Learning Disability,12/09/2022,5688,,3111249962,673.33,The Brandon Trust
http://statistics.data.gov.uk/id/local-authority/38,Oxfordshire County Council,Support at Home U65 MH OBC Contract,15/09/2022,5691,,3111255277,673.5,Care With Dignity Partnerships
http://statistics.data.gov.uk/id/local-authority/38,Oxfordshire County Council,ALTERNATIVES TO CARE,16/09/2022,2040,Agency Staff,2201027299,673.63,THORNBURY NURSING SERVICES
http://statistics.data.gov.uk/id/local-authority/38,Oxfordshire County Council,LEAVING CARE CITY 2,29/09/2022,4685,Clothing and Uniforms,9300057320,673.85,OCC SS Oxford City Div 1 Cash
http://statistics.data.gov.uk/id/local-authority/38,Oxfordshire County Council,Delegated Health Tasks  - Over 65,16/09/2022,5691,,3111255563,674.25,Bluebird Care
http://statistics.data.gov.uk/id/local-authority/38,Oxfordshire County Council,Delegated Health Tasks  - Over 65,16/09/2022,5691,,3111255565,674.25,Bluebird Care
http://statistics.data.gov.uk/id/local-authority/38,Oxfordshire County Council,Delegated Health Tasks  - Over 65,16/09/2022,5691,,3111255567,674.25,Bluebird Care
http://statistics.data.gov.uk/id/local-authority/38,Oxfordshire County Council,Delegated Health Tasks  - Under 65,16/09/2022,5691,,3111255578,674.25,Bluebird Care
http://statistics.data.gov.uk/id/local-authority/38,Oxfordshire County Council,Delegated Health Tasks  - Over 65,16/09/2022,5691,,3111255632,674.25,Bluebird Care
http://statistics.data.gov.uk/id/local-authority/38,Oxfordshire County Council,Delegated Health Tasks  - Over 65,16/09/2022,5691,,3111255633,674.25,Bluebird Care
http://statistics.data.gov.uk/id/local-authority/38,Oxfordshire County Council,ALTERNATIVES TO CARE,16/09/2022,2040,Agency Staff,2201027344,674.52,THORNBURY NURSING SERVICES
http://statistics.data.gov.uk/id/local-authority/38,Oxfordshire County Council,Support at Home 65+ Memory & Cognition,13/09/2022,5696,,3111253651,674.69,All Care GB Ltd
http://statistics.data.gov.uk/id/local-authority/38,Oxfordshire County Council,ALTERNATIVES TO CARE,15/09/2022,2040,Agency Staff,2201026607,674.85,THORNBURY NURSING SERVICES
http://statistics.data.gov.uk/id/local-authority/38,Oxfordshire County Council,ALTERNATIVES TO CARE,16/09/2022,2040,Agency Staff,2201027262,674.98,THORNBURY NURSING SERVICES
